Workbook

Sheet Welcome
AA1: 32 | AB1: =INDEX(AB$4:AB$45,MATCH(MyVoteNo,$AA$4:$AA$45,0)) -> Forestry, Fisheries and the Environment | AC1: =INDEX(AC$4:AC$45,MATCH(MyVoteNo,$AA$4:$AA$45,0)) -> Gcobisa Magazi | AE1: =INDEX(AE$4:AE$45,MATCH(MyVoteNo,$AA$4:$AA$45,0)) -> Gcobisa.Magazi@treasury.gov.za | AF1: =INDEX(AF$4:AF$45,MATCH(MyVoteNo,$AA$4:$AA$45,0)) -> Ashley Ramasimu | AH1: =INDEX(AH$4:AH$45,MATCH(MyVoteNo,$AA$4:$AA$45,0)) -> Ashley.Ramasimu@treasury.gov.za
E2: MTEC Submission Workbook - 2023 MTEF | AI2: Dept Ceilings | AL2: CoE Ceilings | AS2: Departmental Ceilings | AT2: =SUM(AT4:AT45) -> 1937192445 | AU2: 2033659738 | AV2: 2141771211 | AY2: Compensation Ceilings | AZ2: =SUM(AZ4:AZ45) -> 178139543 | BA2: 187017838 | BB2: 195396248
Z3: Dept Index No. | AA3: Vote No. | AB3: Department | AC3: Contact Person | AD3: Tel | AE3: email | AF3: Contact Person | AG3: Tel | AH3: email | AI3: =MyYear5 -> 2023/24 | AJ3: =MyYear6 -> 2024/25 | AK3: =MyYear7 -> 2025/26 | AL3: =AI3 -> 2023/24 | AM3: 2024/25 | AN3: 2025/26 | AS3: Department | AT3: =AI3 -> 2023/24 | AU3: 2024/25 | AV3: 2025/26 | AY3: Department | AZ3: =AI3 -> 2023/24 | BA3: 2024/25 | BB3: 2025/26
Z4: 1 | AA4: 29 | AB4: Agriculture, Land Reform and Rural Development | AC4: Bothwell Deka | AD4: (012) 395 6784 | AE4: Bothwell.Deka@treasury.gov.za | AF4: Humbelani Ramuedzisi | AG4: (012) 315 5585 | AH4: Humbelani.Ramuedzisi@treasury.gov.za | AI4: =IFERROR(INDEX((AT$4:AT$45),MATCH($AB4,$AS$4:$AS$45,0)),0) -> 17387702 | AJ4: =IFERROR(INDEX((AU$4:AU$45),MATCH($AB4,$AS$4:$AS$45,0)),0) -> 18168574 | AK4: =IFERROR(INDEX((AV$4:AV$45),MATCH($AB4,$AS$4:$AS$45,0)),0) -> 18982512 | AL4: =IFERROR(INDEX((AZ$4:AZ$45),MATCH($AB4,$AY$4:$AY$45,0)),0) -> 3856499 | AM4: =IFERROR(INDEX((BA$4:BA$45),MATCH($AB4,$AY$4:$AY$45,0)),0) -> 4029693 | AN4: =IFERROR(INDEX((BB$4:BB$45),MATCH($AB4,$AY$4:$AY$45,0)),0) -> 4210223 | AS4: Agriculture, Land Reform and Rural Development | AT4: 17387702 | AU4: 18168574 | AV4: 18982512 | AY4: Agriculture, Land Reform and Rural Development | AZ4: 3856499 | BA4: 4029693 | BB4: 4210223
Z5: 2 | AA5: 16 | AB5: Basic Education | AC5: Spencer Janari | AD5: (012) 315 5436 | AE5: Spencer.Janari@treasury.gov.za | AF5: Shaneel Ragoo | AG5: (012) 315 5323 | AH5: shaneel.ragoo@treasury.gov.za | AI5: 30388009 | AJ5: 31406684 | AK5: 32813705 | AL5: 541065 | AM5: 565363 | AN5: 590690 | AS5: Basic Education | AT5: 30388009 | AU5: 31406684 | AV5: 32813705 | AY5: Basic Education | AZ5: 541065 | BA5: 565363 | BB5: 590690
Z6: 3 | AA6: 42 | AB6: Centre for Public Service Innovation | AC6: George Tembo | AD6: (012) 315 5514 | AE6: George.Tembo@treasury.gov.za | AF6: Uvadhya Singh | AG6: (012) 315 9030 | AH6: Uvadhya.Singh@treasury.gov.za | AI6: =IFERROR(INDEX((AT$4:AT$45),MATCH($AB6,$AS$4:$AS$45,0)),0) -> 45363 | AJ6: =IFERROR(INDEX((AU$4:AU$45),MATCH($AB6,$AS$4:$AS$45,0)),0) -> 47400 | AK6: =IFERROR(INDEX((AV$4:AV$45),MATCH($AB6,$AS$4:$AS$45,0)),0) -> 49526 | AL6: =IFERROR(INDEX((AZ$4:AZ$45),MATCH($AB6,$AY$4:$AY$45,0)),0) -> 24869 | AM6: =IFERROR(INDEX((BA$4:BA$45),MATCH($AB6,$AY$4:$AY$45,0)),0) -> 25985 | AN6: =IFERROR(INDEX((BB$4:BB$45),MATCH($AB6,$AY$4:$AY$45,0)),0) -> 27150 | AS6: Centre for Public Service Innovation | AT6: 45363 | AU6: 47400 | AV6: 49526 | AY6: Centre for Public Service Innovation | AZ6: 24869 | BA6: 25985 | BB6: 27150
B7: ="VOTE " &$AA$1&": " -> VOTE 32: | C7: =MyDeptName -> Forestry, Fisheries and the Environment | Z7: 4 | AA7: 21 | AB7: Civilian Secretariat for the Police Service | AC7: Nompumelelo Radebe | AD7: (012) 315 5957 | AE7: Nompumelelo.Radebe@treasury.gov.za | AF7: Velisubuhle Buti | AG7: (012) 395 6709 | AH7: Velisubuhle.Buti@treasury.gov.za | AI7: 150489 | AJ7: 157245 | AK7: 164284 | AL7: 105189 | AM7: 109906 | AN7: 114831 | AS7: Civilian Secretariat for the Police Service | AT7: 150489 | AU7: 157245 | AV7: 164284 | AY7: Civilian Secretariat for the Police Service | AZ7: 105189 | BA7: 109906 | BB7: 114831
Z8: 5 | AA8: 30 | AB8: Communications and Digital Technologies | AC8: Rezah Atcha | AD8: (012) 315 5287 | AE8: Rezah.Atcha@treasury.gov.za | AF8: Keitumetse Motshegwe | AG8: (012) 395 6750 | AH8: keitumetse.motshegwe@treasury.gov.za | AI8: 2426409 | AJ8: 2535360 | AK8: 2583461 | AL8: 291288 | AM8: 304366 | AN8: 318003 | AS8: Communications and Digital Technologies | AT8: 2426409 | AU8: 2535360 | AV8: 2583461 | AY8: Communications and Digital Technologies | AZ8: 291288 | BA8: 304366 | BB8: 318003
Z9: 6 | AA9: 3 | AB9: Cooperative Governance | AC9: Millicent Mulaudzi | AD9: (012) 395 6576 | AE9: Millicent.Mulaudzi@treasury.gov.za | AF9: Millicent Mulaudzi | AG9: (012) 395 6576 | AH9: Millicent.Mulaudzi@treasury.gov.za | AI9: 119225831 | AJ9: 127419419 | AK9: 133127805 | AL9: 333973 | AM9: 348968 | AN9: 364600 | AS9: Cooperative Governance | AT9: 119225831 | AU9: 127419419 | AV9: 133127805 | AY9: Cooperative Governance | AZ9: 333973 | BA9: 348968 | BB9: 364600
B10: Enquiries | F10: Department Contact Details | I10: PLEASE CLICK THE BUTTON BELOW TO SUBMIT AN INPUT… (Note: Input can not be submitted if ceilings on the 'Data' sheet are exceeded.) | Z10: 7 | AA10: 22 | AB10: Correctional Services | AC10: Elvis Ramafamba | AD10: (012) 315 5204 | AE10: Elvis.Ramafamba@treasury.gov.za | AF10: Keabetswe Matlwa | AG10: (012) 395 6678 | AH10: Keabetswe.Matlwa@treasury.gov.za | AI10: 25593909 | AJ10: 26743311 | AK10: 27941397 | AL10: 16928739 | AM10: 17689000 | AN10: 18481466 | AS10: Correctional Services | AT10: 25593909 | AU10: 26743311 | AV10: 27941397 | AY10: Correctional Services | AZ10: 16928739 | BA10: 17689000 | BB10: 18481466
B11: =AC1 -> Gcobisa Magazi | D11: =AE1 -> Gcobisa.Magazi@treasury.gov.za | F11: Name: | Z11: 8 | AA11: 23 | AB11: Defence | AC11: Mashudu Bidzha | AD11: (012) 315 5344 | AE11: Mashudu.Bidzha@treasury.gov.za | AF11: Lesiba Ledwaba | AG11: (012) 315 6660 | AH11: Lesiba.Ledwaba@treasury.gov.za | AI11: 47959805 | AJ11: 49277735 | AK11: 51485360 | AL11: 29649010 | AM11: 30980536 | AN11: 32368468 | AS11: Defence | AT11: 47959805 | AU11: 49277735 | AV11: 51485360 | AY11: Defence | AZ11: 29649010 | BA11: 30980536 | BB11: 32368468
B12: =IF(AF1=B11,"",AF1) -> Ashley Ramasimu | D12: =IF(AH1=D11,"",AH1) -> Ashley.Ramasimu@treasury.gov.za | F12: Email: | Z12: 9 | AA12: 31 | AB12: Employment and Labour | AC12: Judy Naidoo | AD12: (012) 315 5269 | AE12: Judy.Naidoo@treasury.gov.za | AF12: Dennis Machobani | AG12: (012) 315 5269 | AH12: Dennis.Machobani@treasury.gov.za | AI12: 3983468 | AJ12: 3772616 | AK12: 3941622 | AL12: 1378647 | AM12: 1440561 | AN12: 1505099 | AS12: Employment and Labour | AT12: 3983468 | AU12: 3772616 | AV12: 3941622 | AY12: Employment and Labour | AZ12: 1378647 | BA12: 1440561 | BB12: 1505099
F13: Telephone number: | Z13: 10 | AA13: 32 | AB13: Forestry, Fisheries and the Environment | AC13: Gcobisa Magazi | AD13: (012) 315 5320 | AE13: Gcobisa.Magazi@treasury.gov.za | AF13: Ashley Ramasimu | AG13: (012) 315 5166 | AH13: Ashley.Ramasimu@treasury.gov.za | AI13: 8947150 | AJ13: 9348937 | AK13: 9767746 | AL13: 1889993 | AM13: 1974872 | AN13: 2063344 | AS13: Forestry, Fisheries and the Environment | AT13: 8947150 | AU13: 9348937 | AV13: 9767746 | AY13: Forestry, Fisheries and the Environment | AZ13: 1889993 | BA13: 1974872 | BB13: 2063344
F14: Mobile (optional): | Z14: 11 | AA14: 4 | AB14: Government Communication and Information System | AC14: Mokgatla Tema | AD14: (012) 315 5948 | AE14: Mokgatla.Tema@treasury.gov.za | AF14: Viwe Sobudula | AG14: (012) 315 5015 | AH14: Viwe.Sobudula@treasury.gov.za | AI14: 714862 | AJ14: 746830 | AK14: 780277 | AL14: 275218 | AM14: 287579 | AN14: 300460 | AS14: Government Communication and Information System | AT14: 714862 | AU14: 746830 | AV14: 780277 | AY14: Government Communication and Information System | AZ14: 275218 | BA14: 287579 | BB14: 300460
Z15: 12 | AA15: 18 | AB15: Health | AC15: Refiloe Thokoa | AD15: (012) 395 6559 | AE15: Refiloe.thokoa@treasury.gov.za | AF15: Jonatan Daven | AG15: (012) 315 6711 | AH15: Jonatan.Daven@treasury.gov.za | AI15: 60620455 | AJ15: 62157612 | AK15: 64942267 | AL15: 760135 | AM15: 794290 | AN15: 829876 | AS15: Health | AT15: 60620455 | AU15: 62157612 | AV15: 64942267 | AY15: Health | AZ15: 760135 | BA15: 794290 | BB15: 829876
Z16: 13 | AA16: 17 | AB16: Higher Education and Training | AC16: Spencer Janari | AD16: (012) 315 5436 | AE16: Spencer.Janari@treasury.gov.za | AF16: Barileng Sape | AG16: (012) 406 9069 | AH16: barileng.sape@treasury.gov.za | AI16: 136190371 | AJ16: 144509123 | AK16: 151981819 | AL16: 10962604 | AM16: 11454929 | AN16: 11968107 | AS16: Higher Education and Training | AT16: 136190371 | AU16: 144509123 | AV16: 151981819 | AY16: Higher Education and Training | AZ16: 10962604 | BA16: 11454929 | BB16: 11968107
Z17: 14 | AA17: 5 | AB17: Home Affairs | AC17: Timothy Murwa | AD17: (012) 315 5002 | AE17: Timothy.Murwa@treasury.gov.za | AF17: Pindi Masiso | AG17: (012) 315 5722 | AH17: Pindi.Masiso@treasury.gov.za | AI17: 9332567 | AJ17: 9751680 | AK17: 10188556 | AL17: 3781770 | AM17: 3951607 | AN17: 4128639 | AS17: Home Affairs | AT17: 9332567 | AU17: 9751680 | AV17: 10188556 | AY17: Home Affairs | AZ17: 3781770 | BA17: 3951607 | BB17: 4128639
Z18: 15 | AA18: 33 | AB18: Human Settlements | AC18: Ulrike Britton | AD18: (012) 315 5578 | AE18: Ulrike.Britton@treasury.gov.za | AF18: Lindiwe Ngcongwane | AG18: (012) 315 5357 | AH18: Lindiwe.Ngcongwane@treasury.gov.za | AI18: 34457574 | AJ18: 35508742 | AK18: 37099532 | AL18: 403176 | AM18: 421283 | AN18: 440156 | AS18: Human Settlements | AT18: 34457574 | AU18: 35508742 | AV18: 37099532 | AY18: Human Settlements | AZ18: 403176 | BA18: 421283 | BB18: 440156
Z19: 16 | AA19: 24 | AB19: Independent Police Investigative Directorate | AC19: Nompumelelo Radebe | AD19: (012) 315 5957 | AE19: Nompumelelo.Radebe@treasury.gov.za | AF19: Velisubuhle Buti | AG19: (012) 395 6709 | AH19: Velisubuhle.Buti@treasury.gov.za | AI19: 357989 | AJ19: 374064 | AK19: 390822 | AL19: 239613 | AM19: 250376 | AN19: 261591 | AS19: Independent Police Investigative Directorate | AT19: 357989 | AU19: 374064 | AV19: 390822 | AY19: Independent Police Investigative Directorate | AZ19: 239613 | BA19: 250376 | BB19: 261591
Z20: 17 | AA20: 6 | AB20: International Relations and Cooperation | AC20: George Tembo | AD20: (012) 315 5514 | AE20: George.Tembo@treasury.gov.za | AF20: Mercy Mhlophe | AG20: (012) 315 5598 | AH20: mercy.mhlope@treasury.gov.za | AI20: 6611037 | AJ20: 6907933 | AK20: 7217415 | AL20: 2839854 | AM20: 2967390 | AN20: 3100331 | AS20: International Relations and Cooperation | AT20: 6611037 | AU20: 6907933 | AV20: 7217415 | AY20: International Relations and Cooperation | AZ20: 2839854 | BA20: 2967390 | BB20: 3100331
Z21: 18 | AA21: 25 | AB21: Justice and Constitutional Development | AC21: Werner Krause | AD21: (012) 315 5211 | AE21: Werner.Krause@treasury.gov.za | AF21: Siphamandla Khumalo | AG21: (012)315 5759 | AH21: siphamandla.khumalo@treasury.gov.za | AI21: 22210993 | AJ21: 23209291 | AK21: 24249060 | AL21: 12522222 | AM21: 13086101 | AN21: 13672358 | AS21: Justice and Constitutional Development | AT21: 22210993 | AU21: 23209291 | AV21: 24249060 | AY21: Justice and Constitutional Development | AZ21: 12522222 | BA21: 13086101 | BB21: 13672358
Z22: 19 | AA22: 26 | AB22: Military Veterans | AC22: Mashudu Bidzha | AD22: (012) 315 5344 | AE22: Mashudu.Bidzha@treasury.gov.za | AF22: Lesiba Ledwaba | AG22: (012) 315 6660 | AH22: Lesiba.Ledwaba@treasury.gov.za | AI22: 662993 | AJ22: 692764 | AK22: 723793 | AL22: 130736 | AM22: 136607 | AN22: 142727 | AS22: Military Veterans | AT22: 662993 | AU22: 692764 | AV22: 723793 | AY22: Military Veterans | AZ22: 130736 | BA22: 136607 | BB22: 142727
Z23: 20 | AA23: 34 | AB23: Mineral Resources and Energy | AC23: Rezah Atcha | AD23: (012) 315 5287 | AE23: Rezah.Atcha@treasury.gov.za | AF23: Nomagugu Madikane | AG23: (012) 315 5312 | AH23: Nomagugu.Madikane@treasury.gov.za | AI23: 10653456 | AJ23: 11205147 | AK23: 11707142 | AL23: 1037131 | AM23: 1083709 | AN23: 1132261 | AS23: Mineral Resources and Energy | AT23: 10653456 | AU23: 11205147 | AV23: 11707142 | AY23: Mineral Resources and Energy | AZ23: 1037131 | BA23: 1083709 | BB23: 1132261
Z24: 21 | AA24: 7 | AB24: National School of Government | AC24: George Tembo | AD24: (012) 315 5514 | AE24: George.Tembo@treasury.gov.za | AF24: Uvadhya Singh | AG24: (012) 315 9030 | AH24: Uvadhya.Singh@treasury.gov.za | AI24: 225944 | AJ24: 235642 | AK24: 246196 | AL24: 59309 | AM24: 61974 | AN24: 64750 | AS24: National School of Government | AT24: 225944 | AU24: 235642 | AV24: 246196 | AY24: National School of Government | AZ24: 59309 | BA24: 61974 | BB24: 64750
Z25: 22 | AA25: 8 | AB25: National Treasury | AC25: Mokgatla Tema | AD25: (012) 315 5948 | AE25: Mokgatla.Tema@treasury.gov.za | AF25: Rhoda Marais | AG25: (012) 315 5906 | AH25: Rhoda.Marais@treasury.gov.za | AI25: 930737811 | AJ25: 977634759 | AK25: 1039728978 | AL25: 890023 | AM25: 902007 | AN25: 942414 | AS25: National Treasury | AT25: 930737811 | AU25: 977634759 | AV25: 1039728978 | AY25: National Treasury | AZ25: 890023 | BA25: 902007 | BB25: 942414
Z26: 23 | AA26: 27 | AB26: Office of the Chief Justice | AC26: Elvis Ramafamba | AD26: (012) 315 5204 | AE26: Elvis.Ramafamba@treasury.gov.za | AF26: Keabetswe Matlwa | AG26: (012) 395 6678 | AH26: Keabetswe.Matlwa@treasury.gov.za | AI26: 2357611 | AJ26: 2463491 | AK26: 2573851 | AL26: 1740705 | AM26: 1818880 | AN26: 1900371 | AS26: Office of the Chief Justice | AT26: 2357611 | AU26: 2463491 | AV26: 2573851 | AY26: Office of the Chief Justice | AZ26: 1740705 | BA26: 1818880 | BB26: 1900371
Z27: 24 | AA27: 2 | AB27: Parliament | AC27: Timothy Murwa | AD27: (012) 315 5002 | AE27: Timothy.Murwa@treasury.gov.za | AF27: Maggy Makoka | AG27: (012) 315 5468 | AH27: Maggy.Mokoka@Treasury.gov.za | AI27: 2657570 | AJ27: 2776916 | AK27: 2901323 | AL27: 1399164 | AM27: 1461998 | AN27: 1527497 | AS27: Parliament | AT27: 2657570 | AU27: 2776916 | AV27: 2901323 | AY27: Parliament | AZ27: 1399164 | BA27: 1461998 | BB27: 1527497
Z28: 25 | AA28: 9 | AB28: Planning, Monitoring and Evaluation | AC28: Mokgatla Tema | AD28: (012) 315 5948 | AE28: Mokgatla.Tema@treasury.gov.za | AF28: Viwe Sobudula | AG28: (012) 315 5015 | AH28: Viwe.Sobudula@treasury.gov.za | AI28: 466812 | AJ28: 487769 | AK28: 509615 | AL28: 311990 | AM28: 326003 | AN28: 340607 | AS28: Planning, Monitoring and Evaluation | AT28: 466812 | AU28: 487769 | AV28: 509615 | AY28: Planning, Monitoring and Evaluation | AZ28: 311990 | BA28: 326003 | BB28: 340607
Z29: 26 | AA29: 28 | AB29: Police | AC29: Nompumelelo Radebe | AD29: (012) 315 5957 | AE29: Nompumelelo.Radebe@treasury.gov.za | AF29: Velisubuhle Buti | AG29: (012) 395 6709 | AH29: Velisubuhle.Buti@treasury.gov.za | AI29: 99018831 | AJ29: 104373725 | AK29: 109049663 | AL29: 77232311 | AM29: 81608782 | AN29: 85264855 | AS29: Police | AT29: 99018831 | AU29: 104373725 | AV29: 109049663 | AY29: Police | AZ29: 77232311 | BA29: 81608782 | BB29: 85264855
Z30: 27 | AA30: 10 | AB30: Public Enterprises | AC30: Isaac Kurasha | AD30: (012) 315 5213 | AE30: Isaac.Kurasha@treasury.gov.za | AF30: Ntandokazi Makaula | AG30: (012) 395 6667 | AH30: Ntandokazi.Makaula@treasury.gov.za | AI30: 297553 | AJ30: 310915 | AK30: 324839 | AL30: 179974 | AM30: 188057 | AN30: 196481 | AS30: Public Enterprises | AT30: 297553 | AU30: 310915 | AV30: 324839 | AY30: Public Enterprises | AZ30: 179974 | BA30: 188057 | BB30: 196481
Z31: 28 | AA31: 11 | AB31: Public Service and Administration | AC31: George Tembo | AD31: (012) 315 5514 | AE31: George.Tembo@treasury.gov.za | AF31: Uvadhya Singh | AG31: (012) 315 9030 | AH31: Uvadhya.Singh@treasury.gov.za | AI31: 543462 | AJ31: 567875 | AK31: 593307 | AL31: 290747 | AM31: 303804 | AN31: 317415 | AS31: Public Service Commission | AT31: 284921 | AU31: 297715 | AV31: 311054 | AY31: Public Service Commission | AZ31: 212877 | BA31: 222437 | BB31: 232403
Z32: 29 | AA32: 12 | AB32: Public Service Commission | AC32: George Tembo | AD32: (012) 315 5514 | AE32: George.Tembo@treasury.gov.za | AF32: Mercy Mhlophe | AG32: (012) 315 5598 | AH32: mercy.mhlope@treasury.gov.za | AI32: 284921 | AJ32: 297715 | AK32: 311054 | AL32: 212877 | AM32: 222437 | AN32: 232403 | AS32: Public Service and Administration | AT32: 543462 | AU32: 567875 | AV32: 593307 | AY32: Public Service and Administration | AZ32: 290747 | BA32: 303804 | BB32: 317415
Z33: 30 | AA33: 13 | AB33: Public Works and Infrastructure | AC33: George Tembo | AD33: (012) 315 5514 | AE33: George.Tembo@treasury.gov.za | AF33: Uvadhya Singh | AG33: (012) 315 9030 | AH33: Uvadhya.Singh@treasury.gov.za | AI33: 8568946 | AJ33: 8954214 | AK33: 9355359 | AL33: 571442 | AM33: 597104 | AN33: 623854 | AS33: Public Works and Infrastructure | AT33: 8568946 | AU33: 8954214 | AV33: 9355359 | AY33: Public Works and Infrastructure | AZ33: 571442 | BA33: 597104 | BB33: 623854
Z34: 31 | AA34: 35 | AB34: Science and Innovation | AC34: Gcobisa Magazi | AD34: (012) 315 5320 | AE34: Gcobisa.Magazi@treasury.gov.za | AF34: Thabiso Molewa | AG34: (012) 395 6780 | AH34: Thabiso.Molewa@treasury.gov.za | AI34: 9244581 | AJ34: 9659756 | AK34: 10092514 | AL34: 358376 | AM34: 374470 | AN34: 391249 | AS34: Science and Innovation | AT34: 9244581 | AU34: 9659756 | AV34: 10092514 | AY34: Science and Innovation | AZ34: 358376 | BA34: 374470 | BB34: 391249
Z35: 32 | AA35: 36 | AB35: Small Business Development | AC35: Isaac Kurasha | AD35: (012) 315 5213 | AE35: Isaac.Kurasha@treasury.gov.za | AF35: Rudzani Sikhwari | AG35: (012) 315 5823 | AH35: rudzani.sikhwari@treasury.gov.za | AI35: 2569927 | AJ35: 2685340 | AK35: 2805646 | AL35: 220264 | AM35: 246706 | AN35: 257760 | AS35: Small Business Development | AT35: 2569927 | AU35: 2685340 | AV35: 2805646 | AY35: Small Business Development | AZ35: 220264 | BA35: 246706 | BB35: 257760
Z36: 33 | AA36: 19 | AB36: Social Development | AC36: Pebetse Maleka | AD36: (012) 315 5566 | AE36: Pebetse.Maleka@treasury.gov.za | AF36: Yusuf Mayet | AG36: (012) 315 5189 | AH36: Yusuf.Mayet@treasury.gov.za | AI36: 221041972 | AJ36: 232974986 | AK36: 243412261 | AL36: 498009 | AM36: 520374 | AN36: 543688 | AS36: Social Development | AT36: 221041972 | AU36: 232974986 | AV36: 243412261 | AY36: Social Development | AZ36: 498009 | BA36: 520374 | BB36: 543688
Z37: 34 | AA37: 37 | AB37: Sport, Arts and Culture | AC37: Judy Naidoo | AD37: (012) 315 5269 | AE37: Judy.Naidoo@treasury.gov.za | AF37: Yamkela Ngewu | AG37: (012) 315 5936 | AH37: Yamkela.Ngewu@treasury.gov.za | AI37: 6347204 | AJ37: 6149504 | AK37: 6425006 | AL37: 376422 | AM37: 393325 | AN37: 410947 | AS37: Sport, Arts and Culture | AT37: 6347204 | AU37: 6149504 | AV37: 6425006 | AY37: Sport, Arts and Culture | AZ37: 376422 | BA37: 393325 | BB37: 410947
Z38: 35 | AA38: 14 | AB38: Statistics South Africa | AC38: Mokgatla Tema | AD38: (012) 315 5948 | AE38: Mokgatla.Tema@treasury.gov.za | AF38: Thobeka Mbonambi | AG38: (012) 395 6719 | AH38: Thobeka.Mbonambi@treasury.gov.za | AI38: 2644134 | AJ38: 2774713 | AK38: 2899018 | AL38: 1600931 | AM38: 1684662 | AN38: 1760135 | AS38: Statistics South Africa | AT38: 2644134 | AU38: 2774713 | AV38: 2899018 | AY38: Statistics South Africa | AZ38: 1600931 | BA38: 1684662 | BB38: 1760135
Z39: 36 | AA39: 1 | AB39: The Presidency | AC39: Pindi Masiso | AD39: (012) 315 5468 | AE39: Pindi.Masiso@treasury.gov.za | AF39: Maggy Mokoka | AG39: (012) 315 5468 | AH39: Maggy.Mokoka@treasury.gov.za | AI39: 610485 | AJ39: 637903 | AK39: 666479 | AL39: 376377 | AM39: 393280 | AN39: 410898 | AS39: The Presidency | AT39: 610485 | AU39: 637903 | AV39: 666479 | AY39: The Presidency | AZ39: 376377 | BA39: 393280 | BB39: 410898
Z40: 37 | AA40: 38 | AB40: Tourism | AC40: Gcobisa Magazi | AD40: (012) 315 5320 | AE40: Gcobisa.Magazi@treasury.gov.za | AF40: Ashley Ramasimu | AG40: (012) 315 5166 | AH40: Ashley.Ramasimu@treasury.gov.za | AI40: 2492307 | AJ40: 2604237 | AK40: 2720908 | AL40: 363524 | AM40: 379846 | AN40: 396864 | AS40: Tourism | AT40: 2492307 | AU40: 2604237 | AV40: 2720908 | AY40: Tourism | AZ40: 363524 | BA40: 379846 | BB40: 396864
Z41: 38 | AA41: 39 | AB41: Trade, Industry and Competition | AC41: Isaac Kurasha | AD41: (012) 315 5213 | AE41: Isaac.Kurasha@treasury.gov.za | AF41: Rudzani Sikhwari | AG41: (012) 315 5823 | AH41: rudzani.sikhwari@treasury.gov.za | AI41: 10887653 | AJ41: 10553269 | AK41: 11026040 | AL41: 1031246 | AM41: 1045762 | AN41: 1092612 | AS41: Trade, Industry and Competition | AT41: 10887653 | AU41: 10553269 | AV41: 11026040 | AY41: Trade, Industry and Competition | AZ41: 1031246 | BA41: 1045762 | BB41: 1092612
Z42: 39 | AA42: 15 | AB42: Traditional Affairs | AC42: Millicent Mulaudzi | AD42: (012) 395 6576 | AE42: Millicent.Mulaudzi@treasury.gov.za | AF42: Amanda Matutu | AG42: (012) 395 6786 | AH42: Amanda.Matutu@treasury.gov.za | AI42: 179962 | AJ42: 188044 | AK42: 196465 | AL42: 89020 | AM42: 93018 | AN42: 97185 | AS42: Traditional Affairs | AT42: 179962 | AU42: 188044 | AV42: 196465 | AY42: Traditional Affairs | AZ42: 89020 | BA42: 93018 | BB42: 97185
Z43: 40 | AA43: 40 | AB43: Transport | AC43: Dumebi Ubogu | AD43: (012) 315 5077 | AE43: Dumebi.Ubogu@treasury.gov.za | AF43: Luyolo Ntlangula | AG43: (012) 315-5571 | AH43: luyolo.ntangula@treasury.gov.za | AI43: 76907174 | AJ43: 81658177 | AK43: 85316464 | AL43: 531457 | AM43: 555328 | AN43: 580210 | AS43: Transport | AT43: 76907174 | AU43: 81658177 | AV43: 85316464 | AY43: Transport | AZ43: 531457 | BA43: 555328 | BB43: 580210
Z44: 41 | AA44: 41 | AB44: Water and Sanitation | AC44: Millicent Mulaudzi | AD44: (012) 395 6576 | AE44: Millicent.Mulaudzi@treasury.gov.za | AF44: Iqbal Mahomed Alli | AG44: (012) 315 5809 | AH44: Iqbal.Mahomed-Alli@treasury.gov.za | AI44: 20155237 | AJ44: 20913287 | AK44: 19624487 | AL44: 1741701 | AM44: 1819924 | AN44: 1901455 | AS44: Water and Sanitation | AT44: 20155237 | AU44: 20913287 | AV44: 19624487 | AY44: Water and Sanitation | AZ44: 1741701 | BA44: 1819924 | BB44: 1901455
Z45: 42 | AA45: 20 | AB45: Women, Youth and Persons with Disabilities | AC45: Pebetse Maleka | AD45: (012) 315 5566 | AE45: Pebetse.Maleka@treasury.gov.za | AF45: Lindi Mzankomo | AG45: (012) 315 5256 | AH45: Lindi.Mzankomo@treasury.gov.za | AI45: 1031916 | AJ45: 817034 | AK45: 853637 | AL45: 111943 | AM45: 116976 | AN45: 122218 | AS45: Women, Youth and Persons with Disabilities | AT45: 1031916 | AU45: 817034 | AV45: 853637 | AY45: Women, Youth and Persons with Disabilities | AZ45: 111943 | BA45: 116976 | BB45: 122218
AI48: =SUM(AI4:AI45) -> 1937192445 | AJ48: 2033659738 | AK48: 2141771211 | AL48: 178139543 | AM48: 187017838 | AN48: 195396248
AI49: 1751895269 | AJ49: 1789735540 | AL49: 174140115.3 | AM49: 173620506.6

Sheet Notes
B42: Link to 2023 MTEF Guidelines
B43: http://www.treasury.gov.za/publications/guidelines/default.aspx
R57: Click "Enable Content"
R69: Tick "Ignore Privacy Levels" box
R72: Click "Save"

Sheet Pivot % growth
B14: Econ3 | C14: (All)
B16: Row Labels | C16: 2023/24 Revised baseline | D16: 2024/25 Revised baseline | E16: 2025/26 Revised baseline | F16: 2023/24 adjustment | G16: 2024/25 adjustment | H16: 2025/26 adjustment | I16: % YoY 2023/24 | J16: % YoY 2024/25 | K16: % YoY 2025/26 | L16: Ave Ann growth History | M16: Ave Ann growth MTEF | N16: 2023/24 % adjustment | O16: 2024/25 % adjustment | P16: 2025/26 % adjustment
B17: Administration | C17: 1227954 | D17: 1347049 | E17: 1407397 | F17: 0 | G17: 0 | H17: 0 | I17: -0.01688963612 | J17: 0.09698653207 | K17: 0.04480015204 | L17: 0.1112431129 | M17: 0.04058828533 | N17: 0 | O17: 0 | P17: 0
B18: Current payments | C18: 983095 | D18: 1090694 | E18: 1139557 | F18: 0 | G18: 0 | H18: 0 | I18: -0.03401263621 | J18: 0.1094492394 | K18: 0.04479991638 | L18: 0.1172097194 | M18: 0.03841432456 | N18: 0 | O18: 0 | P18: 0
B19: Transfers and subsidies | C19: 2000 | D19: 2000 | E19: 2090 | F19: 0 | G19: 0 | H19: 0 | I19: 0 | J19: 0 | K19: 0.045 | L19: -0.311200445 | M19: 0.01478046163 | N19: 0 | O19: 0 | P19: 0
B20: Payments for capital assets | C20: 242859 | D20: 254355 | E20: 265750 | F20: 0 | G20: 0 | H20: 0 | I20: 0.05894741432 | J20: 0.04733610861 | K20: 0.04479959112 | L20: 0.095897252 | M20: 0.05034302315 | N20: 0 | O20: 0 | P20: 0
B21: Payments for financial assets | C21: 0 | D21: 0 | E21: 0 | F21: 0 | G21: 0 | H21: 0 | I21: 0 | J21: 0 | K21: 0 | L21: -1 | M21: 0 | N21: 0 | O21: 0 | P21: 0
B22: Regulatory Compliance and Sector Monitoring | C22: 215047 | D22: 221106 | E22: 231007 | F22: 0 | G22: 0 | H22: 0 | I22: -0.03931256617 | J22: 0.02817523611 | K22: 0.04477942706 | L22: 0.005639746326 | M22: 0.01055034327 | N22: 0 | O22: 0 | P22: 0
B23: Current payments | C23: 212347 | D23: 218406 | E23: 228186 | F23: 0 | G23: 0 | H23: 0 | I23: -0.02970111539 | J23: 0.02853348529 | K23: 0.04477898959 | L23: 0.01327467455 | M23: 0.01402687637 | N23: 0 | O23: 0 | P23: 0
B24: Transfers and subsidies | C24: 2700 | D24: 2700 | E24: 2821 | F24: 0 | G24: 0 | H24: 0 | I24: -0.46 | J24: 0 | K24: 0.04481481481 | L24: -0.01431358649 | M24: -0.1736874276 | N24: 0 | O24: 0 | P24: 0
B25: Payments for capital assets | C25: 0 | D25: 0 | E25: 0 | F25: 0 | G25: 0 | H25: 0 | I25: 0 | J25: 0 | K25: 0 | L25: -1 | M25: 0 | N25: 0 | O25: 0 | P25: 0
B26: Payments for financial assets | C26: 0 | D26: 0 | E26: 0 | F26: 0 | G26: 0 | H26: 0 | I26: 0 | J26: 0 | K26: 0 | L26: 0 | M26: 0 | N26: 0 | O26: 0 | P26: 0
B27: Oceans and Coasts | C27: 480853 | D27: 502573 | E27: 525085 | F27: 0 | G27: 0 | H27: 0 | I27: -0.002185073438 | J27: 0.04516972963 | K27: 0.04479349269 | L27: 0.01664531944 | M27: 0.02901670746 | N27: 0 | O27: 0 | P27: 0
B28: Current payments | C28: 471146 | D28: 493550 | E28: 515658 | F28: 0 | G28: 0 | H28: 0 | I28: -0.003498307953 | J28: 0.04755213883 | K28: 0.04479384054 | L28: 0.02912622892 | M28: 0.02934611721 | N28: 0 | O28: 0 | P28: 0
B29: Transfers and subsidies | C29: 0 | D29: 0 | E29: 0 | F29: 0 | G29: 0 | H29: 0 | I29: 0 | J29: 0 | K29: 0 | L29: -1 | M29: 0 | N29: 0 | O29: 0 | P29: 0
B30: Payments for capital assets | C30: 9707 | D30: 9023 | E30: 9427 | F30: 0 | G30: 0 | H30: 0 | I30: 0.06600043927 | J30: -0.07046461317 | K30: 0.04477446526 | L30: -0.08775995818 | M30: 0.01161506218 | N30: 0 | O30: 0 | P30: 0
B31: Payments for financial assets | C31: 0 | D31: 0 | E31: 0 | F31: 0 | G31: 0 | H31: 0 | I31: 0 | J31: 0 | K31: 0 | L31: -1 | M31: 0 | N31: 0 | O31: 0 | P31: 0
B32: Climate Change, Air Quality and Sustainable Development | C32: 475765 | D32: 497687 | E32: 519981 | F32: 0 | G32: 0 | H32: 0 | I32: 0.01041496323 | J32: 0.04607737013 | K32: 0.0447952227 | L32: 0.01503109032 | M32: 0.03362955333 | N32: 0 | O32: 0 | P32: 0
B33: Current payments | C33: 226995 | D33: 239647 | E33: 250381 | F33: 0 | G33: 0 | H33: 0 | I33: 0.01588303214 | J33: 0.0557369105 | K33: 0.04479087992 | L33: 0.01478825043 | M33: 0.03866682787 | N33: 0 | O33: 0 | P33: 0
B34: Transfers and subsidies | C34: 238964 | D34: 248590 | E34: 259727 | F34: 0 | G34: 0 | H34: 0 | I34: 0.003443294813 | J34: 0.04028221824 | K34: 0.04480067581 | L34: 0.01279333646 | M34: 0.0293407158 | N34: 0 | O34: 0 | P34: 0
B35: Payments for capital assets | C35: 9806 | D35: 9450 | E35: 9873 | F35: 0 | G35: 0 | H35: 0 | I35: 0.05770682774 | J35: -0.03630430349 | K35: 0.04476190476 | L35: 0.0889824379 | M35: 0.02119226983 | N35: 0 | O35: 0 | P35: 0
B36: Payments for financial assets | C36: 0 | D36: 0 | E36: 0 | F36: 0 | G36: 0 | H36: 0 | I36: 0 | J36: 0 | K36: 0 | L36: -1 | M36: 0 | N36: 0 | O36: 0 | P36: 0
B37: Biodiversity and Conservation | C37: 903133 | D37: 942885 | E37: 985124 | F37: 0 | G37: 0 | H37: 0 | I37: -0.02966447236 | J37: 0.04401566547 | K37: 0.04479761583 | L37: 0.05313718043 | M37: 0.01910838217 | N37: 0 | O37: 0 | P37: 0
B38: Current payments | C38: 155561 | D38: 162778 | E38: 170068 | F38: 0 | G38: 0 | H38: 0 | I38: -0.06940531098 | J38: 0.04639337623 | K38: 0.0447849218 | L38: 0.0736442905 | M38: 0.005759513512 | N38: 0 | O38: 0 | P38: 0
B39: Transfers and subsidies | C39: 747552 | D39: 780087 | E39: 815035 | F39: 0 | G39: 0 | H39: 0 | I39: -0.02096495364 | J39: 0.04352205599 | K39: 0.04480013127 | L39: 0.04919829419 | M39: 0.02198462744 | N39: 0 | O39: 0 | P39: 0
B40: Payments for capital assets | C40: 20 | D40: 20 | E40: 21 | F40: 0 | G40: 0 | H40: 0 | I40: 0 | J40: 0 | K40: 0.05 | L40: -0.6901009529 | M40: 0.01639635681 | N40: 0 | O40: 0 | P40: 0
B41: Payments for financial assets | C41: 0 | D41: 0 | E41: 0 | F41: 0 | G41: 0 | H41: 0 | I41: 0 | J41: 0 | K41: 0 | L41: 0 | M41: 0 | N41: 0 | O41: 0 | P41: 0
B42: Environmental Programmes | C42: 3865616 | D42: 3975176 | E42: 4153263 | F42: 0 | G42: 0 | H42: 0 | I42: 0.03120216611 | J42: 0.02834218401 | K42: 0.04479977742 | L42: -0.01658540602 | M42: 0.03475653973 | N42: 0 | O42: 0 | P42: 0
B43: Current payments | C43: 3349831 | D43: 3478496 | E43: 3634334 | F43: 0 | G43: 0 | H43: 0 | I43: 0.06372376082 | J43: 0.03840940035 | K43: 0.04480039649 | L43: 0.06849573151 | M43: 0.04892297978 | N43: 0 | O43: 0 | P43: 0
B44: Transfers and subsidies | C44: 498462 | D44: 479051 | E44: 500512 | F44: 0 | G44: 0 | H44: 0 | I44: -0.1441360696 | J44: -0.03894178493 | K44: 0.044798988 | L44: -0.1973502277 | M44: -0.04925863976 | N44: 0 | O44: 0 | P44: 0
B45: Payments for capital assets | C45: 17323 | D45: 17629 | E45: 18417 | F45: 0 | G45: 0 | H45: 0 | I45: 0.01381166969 | J45: 0.01766437684 | K45: 0.04469907539 | L45: -0.5733512101 | M45: 0.02530015467 | N45: 0 | O45: 0 | P45: 0
B46: Payments for financial assets | C46: 0 | D46: 0 | E46: 0 | F46: 0 | G46: 0 | H46: 0 | I46: 0 | J46: 0 | K46: 0 | L46: -1 | M46: 0 | N46: 0 | O46: 0 | P46: 0
B47: Chemicals and Waste Management | C47: 611254 | D47: 638791 | E47: 667402 | F47: 0 | G47: 0 | H47: 0 | I47: -0.02629193687 | J47: 0.04505001194 | K47: 0.04478929728 | L47: 0.02143479216 | M47: 0.0206218272 | N47: 0 | O47: 0 | P47: 0
B48: Current payments | C48: 505383 | D48: 528956 | E48: 552646 | F48: 0 | G48: 0 | H48: 0 | I48: -0.03192049758 | J48: 0.0466438325 | K48: 0.04478633383 | L48: 0.0536519094 | M48: 0.01916806972 | N48: 0 | O48: 0 | P48: 0
B49: Transfers and subsidies | C49: 87968 | D49: 91919 | E49: 96037 | F49: 0 | G49: 0 | H49: 0 | I49: 0.003834215812 | J49: 0.04491405966 | K49: 0.04480031332 | L49: 0.008243744764 | M49: 0.03099989372 | N49: 0 | O49: 0 | P49: 0
B50: Payments for capital assets | C50: 17903 | D50: 17916 | E50: 18719 | F50: 0 | G50: 0 | H50: 0 | I50: -0.009789823009 | J50: 0.0007261352846 | K50: 0.04482027238 | L50: -0.3190928625 | M50: 0.01164484469 | N50: 0 | O50: 0 | P50: 0
B51: Payments for financial assets | C51: 0 | D51: 0 | E51: 0 | F51: 0 | G51: 0 | H51: 0 | I51: 0 | J51: 0 | K51: 0 | L51: 0 | M51: 0 | N51: 0 | O51: 0 | P51: 0
B52: Forestry Management | C52: 638332 | D52: 670338 | E52: 700365 | F52: 0 | G52: 0 | H52: 0 | I52: -0.07481948072 | J52: 0.05014005251 | K52: 0.04479382043 | L52: -0.05893790382 | M52: 0.005004714963 | N52: 0 | O52: 0 | P52: 0
B53: Current payments | C53: 613874 | D53: 645721 | E53: 674645 | F53: 0 | G53: 0 | H53: 0 | I53: -0.07948218492 | J53: 0.0518787243 | K53: 0.04479333954 | L53: -0.05453453242 | M53: 0.003866792303 | N53: 0 | O53: 0 | P53: 0
B54: Transfers and subsidies | C54: 685 | D54: 690 | E54: 721 | F54: 0 | G54: 0 | H54: 0 | I54: -0.06164383562 | J54: 0.007299270073 | K54: 0.04492753623 | L54: -0.5246860434 | M54: -0.004126594399 | N54: 0 | O54: 0 | P54: 0
B55: Payments for capital assets | C55: 23773 | D55: 23927 | E55: 24999 | F55: 0 | G55: 0 | H55: 0 | I55: 0.0639069143 | J55: 0.006477937156 | K55: 0.04480294228 | L55: -0.1105008383 | M55: 0.03811968396 | N55: 0 | O55: 0 | P55: 0
B56: Payments for financial assets | C56: 0 | D56: 0 | E56: 0 | F56: 0 | G56: 0 | H56: 0 | I56: 0 | J56: 0 | K56: 0 | L56: -1 | M56: 0 | N56: 0 | O56: 0 | P56: 0
B57: Fisheries Management | C57: 529196 | D57: 553332 | E57: 578122 | F57: 0 | G57: 0 | H57: 0 | I57: 0.007715978855 | J57: 0.04560881035 | K57: 0.04480131277 | L57: 0.01859942896 | M57: 0.0325561939 | N57: 0 | O57: 0 | P57: 0
B58: Current payments | C58: 206351 | D58: 215988 | E58: 225665 | F58: 0 | G58: 0 | H58: 0 | I58: -0.01039713407 | J58: 0.04670197867 | K58: 0.044803415 | L58: -0.01961813507 | M58: 0.02669045466 | N58: 0 | O58: 0 | P58: 0
B59: Transfers and subsidies | C59: 322845 | D59: 337344 | E59: 352457 | F59: 0 | G59: 0 | H59: 0 | I59: 0.01964469009 | J59: 0.04491009618 | K59: 0.0447999668 | L59: 0.04737021572 | M59: 0.03638307626 | N59: 0 | O59: 0 | P59: 0
B60: Payments for capital assets | C60: 0 | D60: 0 | E60: 0 | F60: 0 | G60: 0 | H60: 0 | I60: 0 | J60: 0 | K60: 0 | L60: 0 | M60: 0 | N60: 0 | O60: 0 | P60: 0
B61: Payments for financial assets | C61: 0 | D61: 0 | E61: 0 | F61: 0 | G61: 0 | H61: 0 | I61: 0 | J61: 0 | K61: 0 | L61: -1 | M61: 0 | N61: 0 | O61: 0 | P61: 0
B62: Grand Total | C62: 8947150 | D62: 9348937 | E62: 9767746 | F62: 0 | G62: 0 | H62: 0 | I62: -8.538302894e-05 | J62: 0.04490670213 | K62: 0.04479749944 | L62: 0.009741768504 | M62: 0.02965291209 | N62: 0 | O62: 0 | P62: 0

Sheet Pivot_T
B11: Econ4 | C11: (All)
B12: Econ2 | C12: Current payments
B13: DOR | C13: (All)
B14: Econ3 | C14: (All)
B16: Value | C16: Column Labels
C17: 2021/22
B18: Row Labels | C18: Adjusted appropriation | D18: Main appropriation | E18: Revised estimate
B19: Administration | C19: 837399 | D19: 826285 | E19: 846680
B20: Regulatory Compliance and Sector Monitoring | C20: 209493 | D20: 209536 | E20: 195152
B21: Oceans and Coasts | C21: 488451 | D21: 476458 | E21: 463140
B22: Climate Change, Air Quality and Sustainable Development | C22: 253787 | D22: 216679 | E22: 216461
B23: Biodiversity and Conservation | C23: 215271 | D23: 165597 | E23: 204934
B24: Environmental Programmes | C24: 3218263 | D24: 3249669 | E24: 1599606
B25: Chemicals and Waste Management | C25: 513248 | D25: 550155 | E25: 463845
B26: Forestry Management | C26: 652249 | D26: 688285 | E26: 646267
B27: Fisheries Management | C27: 343349 | D27: 257543 | E27: 231348
B28: Grand Total | C28: 6731510 | D28: 6640207 | E28: 4867433

Sheet Service delivery impact
B15: Note: Data in the table below is sourced from the individual SRT sheets. Any adjustments should be made on the SRT sheets. Ajustments made directly on this table will be over-written when the data is refreshed!
B17: Impact area | C17: Unit no | D17: Unit name | E17: Comment

Sheet Performance impact
B15: Note: Data in the table below is sourced from the individual SRT sheets. Any adjustments should be made on the SRT sheets. Ajustments made directly on this table will be over-written when the data is refreshed!
B17: Impact area | C17: Unit no | D17: Unit name | E17: Performance indicator | F17: 2022/23 Current performance | G17: 2022/23 Performance @ benchmark level | H17: 2022/23 Change | I17: 2023/24 Original target | J17: 2023/24 Revised target | K17: 2023/24 Change | L17: 2024/25 Original target | M17: 2024/25 Revised target | N17: 2024/25 Change | O17: 2025/26 Original target | P17: 2025/26 Revised target | Q17: 2025/26 Change | R17: Comment | S17: Gov Priority

Sheet Pivot Infra impact
B14: Impact area | C14: (All)
B16: Value | C16: Column Labels
C17: 2022/23 | D17: 2023/24 | E17: 2024/25 | F17: 2025/26
B18: Row Labels | C18: Change | D18: Change | E18: Change | F18: Change
B19: (blank) | C19: 0 | D19: 0 | E19: 0 | F19: 0
B20: Grand Total | C20: 0 | D20: 0 | E20: 0 | F20: 0

Sheet Pivot Personnel impact
B16: Value | C16: Column Labels
C17: 2022/23 | D17: 2023/24 | E17: 2024/25 | F17: 2025/26
B18: Row Labels | C18: Change in number | D18: Change in number | E18: Change in number | F18: Change in number
B19: Levels 01 - 06 | C19: 0 | D19: 0 | E19: 0 | F19: 0
B20: Levels 07 - 12 | C20: 0 | D20: 0 | E20: 0 | F20: 0
B21: Levels 13 - 16 | C21: 0 | D21: 0 | E21: 0 | F21: 0
B22: Other | C22: 0 | D22: 0 | E22: 0 | F22: 0
B23: Grand Total | C23: 0 | D23: 0 | E23: 0 | F23: 0

Sheet Pivot HRBP
B12: Salary level | C12: (All)
B13: Programme No | C13: (All)
B15: Number | C15: Columns
C16: 2022/23
B17: Row Labels | C17: Once-off Payments per person | D17: Cost of vacant posts to be filled | E17: Headcount reductions to be made | F17: Initial Headcount | G17: Projected Annual Cost | H17: Revised Headcount | I17: Savings from headcount reductions | J17: Unit Costs | K17: Vacant funded posts to be filled
B18: Levels 01 - 06 | C18: 0 | D18: 0 | E18: 0 | F18: 0 | G18: 0 | H18: 0 | I18: 0 | J18: 0 | K18: 0
B19: Levels 07 - 12 | C19: 0 | D19: 0 | E19: 0 | F19: 0 | G19: 0 | H19: 0 | I19: 0 | J19: 0 | K19: 0
B20: Levels 13 - 16 | C20: 0 | D20: 0 | E20: 0 | F20: 0 | G20: 0 | H20: 0 | I20: 0 | J20: 0 | K20: 0
B21: Other | C21: 0 | D21: 0 | E21: 0 | F21: 0 | G21: 0 | H21: 0 | I21: 0 | J21: 0 | K21: 0
B22: Grand Total | C22: 0 | D22: 0 | E22: 0 | F22: 0 | G22: 0 | H22: 0 | I22: 0 | J22: 0 | K22: 0

Sheet Data
AQ2: Spending review topics…
AP3: 1 | AQ3: afas dfsfds | CD3: =COUNTIF(Dataset[2023/24 Revised baseline],"<0") -> 5 | CE3: =COUNTIF(Dataset[2024/25 Revised baseline],"<0") -> 2 | CF3: =COUNTIF(Dataset[2025/26 Revised baseline],"<0") -> 2
AP4: 2 | AQ4: Spending review topic 2
AP5: 3 | AQ5: Spending review topic 3
AP6: 4 | AQ6: Spending review topic 4 | CD6: =MyYear5 -> 2023/24 | CE6: =MyYear6 -> 2024/25 | CF6: =MyYear7 -> 2025/26
CC8: Baseline ceiling: | CD8: =INDEX(DeptCeiling,MATCH(MyVoteNo,VoteNoList,0),1) -> 8947150 | CE8: =INDEX(DeptCeiling,MATCH(MyVoteNo,VoteNoList,0),2) -> 9348937 | CF8: =INDEX(DeptCeiling,MATCH(MyVoteNo,VoteNoList,0),3) -> 9767746
CC9: (Over)/Under | CD9: =CD8-SUM(Dataset[2023/24 Revised baseline]) -> 0 | CE9: =CE8-SUM(Dataset[2024/25 Revised baseline]) -> 0 | CF9: =CF8-SUM(Dataset[2025/26 Revised baseline]) -> 0
CC11: CoE ceiling: | CD11: =INDEX(CoECeiling,MATCH(MyVoteNo,VoteNoList,0),1) -> 1889993 | CE11: =INDEX(CoECeiling,MATCH(MyVoteNo,VoteNoList,0),2) -> 1974872 | CF11: =INDEX(CoECeiling,MATCH(MyVoteNo,VoteNoList,0),3) -> 2063344
CC12: (Over)/Under | CD12: =CD11-SUMIF(Dataset[Econ3],"Compensation of employees",Dataset[2023/24 Revised baseline]) -> 0 | CE12: =CE11-SUMIF(Dataset[Econ3],"Compensation of employees",Dataset[2024/25 Revised baseline]) -> 0 | CF12: =CF11-SUMIF(Dataset[Econ3],"Compensation of employees",Dataset[2025/26 Revised baseline]) -> 0
AI15: 2018/19 | AJ15: 2019/20 | AK15: 2020/21 | AL15: 2021/22 Main appropriation | AM15: 2021/22 Adjusted appropriation | AN15: 2021/22 Revised estimate | AO15: 2021/22 Preliminary outcome | AP15: 2022/23 Baseline | AQ15: 2023/24 Baseline | AR15: 2024/25 Baseline | AS15: 2025/26 Baseline | AT15: 2023/24 From - Spending review Topic 1 | AU15: 2024/25 From - Spending review Topic 1 | AV15: 2025/26 From - Spending review Topic 1 | AW15: 2023/24 To - Spending review Topic 1 | AX15: 2024/25 To - Spending review Topic 1 | AY15: 2025/26 To - Spending review Topic 1 | AZ15: 2023/24 From - Spending review Topic 2 | BA15: 2024/25 From - Spending review Topic 2 | BB15: 2025/26 From - Spending review Topic 2 | BC15: 2023/24 To - Spending review Topic 2 | BD15: 2024/25 To - Spending review Topic 2 | BE15: 2025/26 To - Spending review Topic 2 | BF15: 2023/24 From - Spending review Topic 3 | BG15: 2024/25 From - Spending review Topic 3 | BH15: 2025/26 From - Spending review Topic 3 | BI15: 2023/24 To - Spending review Topic 3 | BJ15: 2024/25 To - Spending review Topic 3 | BK15: 2025/26 To - Spending review Topic 3 | BL15: 2023/24 From - Spending review Topic 4 | BM15: 2024/25 From - Spending review Topic 4 | BN15: 2025/26 From - Spending review Topic 4 | BO15: 2023/24 To - Spending review Topic 4 | BP15: 2024/25 To - Spending review Topic 4 | BQ15: 2025/26 To - Spending review Topic 4 | BR15: 2023/24 From - Other reallocations | BS15: 2024/25 From - Other reallocations | BT15: 2025/26 From - Other reallocations | BU15: 2023/24 To - Other reallocations | BV15: 2024/25 To - Other reallocations | BW15: 2025/26 To - Other reallocations | BX15: 2023/24 From - Total | BY15: 2024/25 From - Total | BZ15: 2025/26 From - Total | CA15: 2023/24 To - Total | CB15: 2024/25 To - Total | CC15: 2025/26 To - Total | CD15: 2023/24 Revised baseline | CE15: 2024/25 Revised baseline | CF15: 2025/26 Revised baseline
AH16: Subtotal: | AI16: =SUBTOTAL(9,Dataset[2018/19]) -> 7992010 | AJ16: =SUBTOTAL(9,Dataset[2019/20]) -> 8691422 | AK16: =SUBTOTAL(9,Dataset[2020/21]) -> 8300016 | AL16: =SUBTOTAL(9,Dataset[2021/22 Main appropriation]) -> 8716848 | AM16: =SUBTOTAL(9,Dataset[2021/22 Adjusted appropriation]) -> 9099737 | AN16: =SUBTOTAL(9,Dataset[2021/22 Revised estimate]) -> 7544871 | AO16: =SUBTOTAL(9,Dataset[2021/22 Preliminary outcome]) -> 0 | AP16: =SUBTOTAL(9,Dataset[2022/23 Baseline]) -> 8947914 | AQ16: =SUBTOTAL(9,Dataset[2023/24 Baseline]) -> 8947150 | AR16: =SUBTOTAL(9,Dataset[2024/25 Baseline]) -> 9348937 | AS16: =SUBTOTAL(9,Dataset[2025/26 Baseline]) -> 9767746 | AT16: =SUBTOTAL(9,Dataset[2023/24 From - Spending review Topic 1]) -> 0 | AU16: =SUBTOTAL(9,Dataset[2024/25 From - Spending review Topic 1]) -> 0 | AV16: =SUBTOTAL(9,Dataset[2025/26 From - Spending review Topic 1]) -> 0 | AW16: =SUBTOTAL(9,Dataset[2023/24 To - Spending review Topic 1]) -> 0 | AX16: =SUBTOTAL(9,Dataset[2024/25 To - Spending review Topic 1]) -> 0 | AY16: =SUBTOTAL(9,Dataset[2025/26 To - Spending review Topic 1]) -> 0 | AZ16: =SUBTOTAL(9,Dataset[2023/24 From - Spending review Topic 2]) -> 0 | BA16: =SUBTOTAL(9,Dataset[2024/25 From - Spending review Topic 2]) -> 0 | BB16: =SUBTOTAL(9,Dataset[2025/26 From - Spending review Topic 2]) -> 0 | BC16: =SUBTOTAL(9,Dataset[2023/24 To - Spending review Topic 2]) -> 0 | BD16: =SUBTOTAL(9,Dataset[2024/25 To - Spending review Topic 2]) -> 0 | BE16: =SUBTOTAL(9,Dataset[2025/26 To - Spending review Topic 2]) -> 0 | BF16: =SUBTOTAL(9,Dataset[2023/24 From - Spending review Topic 3]) -> 0 | BG16: =SUBTOTAL(9,Dataset[2024/25 From - Spending review Topic 3]) -> 0 | BH16: =SUBTOTAL(9,Dataset[2025/26 From - Spending review Topic 3]) -> 0 | BI16: =SUBTOTAL(9,Dataset[2023/24 To - Spending review Topic 3]) -> 0 | BJ16: =SUBTOTAL(9,Dataset[2024/25 To - Spending review Topic 3]) -> 0 | BK16: =SUBTOTAL(9,Dataset[2025/26 To - Spending review Topic 3]) -> 0 | BL16: =SUBTOTAL(9,Dataset[2023/24 From - Spending review Topic 4]) -> 0 | BM16: =SUBTOTAL(9,Dataset[2024/25 From - Spending review Topic 4]) -> 0 | BN16: =SUBTOTAL(9,Dataset[2025/26 From - Spending review Topic 4]) -> 0 | BO16: =SUBTOTAL(9,Dataset[2023/24 To - Spending review Topic 4]) -> 0 | BP16: =SUBTOTAL(9,Dataset[2024/25 To - Spending review Topic 4]) -> 0 | BQ16: =SUBTOTAL(9,Dataset[2025/26 To - Spending review Topic 4]) -> 0 | BR16: =SUBTOTAL(9,Dataset[2023/24 From - Other reallocations]) -> 0 | BS16: =SUBTOTAL(9,Dataset[2024/25 From - Other reallocations]) -> 0 | BT16: =SUBTOTAL(9,Dataset[2025/26 From - Other reallocations]) -> 0 | BU16: =SUBTOTAL(9,Dataset[2023/24 To - Other reallocations]) -> 0 | BV16: =SUBTOTAL(9,Dataset[2024/25 To - Other reallocations]) -> 0 | BW16: =SUBTOTAL(9,Dataset[2025/26 To - Other reallocations]) -> 0 | BX16: =SUBTOTAL(9,Dataset[2023/24 From - Total]) -> 0 | BY16: =SUBTOTAL(9,Dataset[2024/25 From - Total]) -> 0 | BZ16: =SUBTOTAL(9,Dataset[2025/26 From - Total]) -> 0 | CA16: =SUBTOTAL(9,Dataset[2023/24 To - Total]) -> 0 | CB16: =SUBTOTAL(9,Dataset[2024/25 To - Total]) -> 0 | CC16: =SUBTOTAL(9,Dataset[2025/26 To - Total]) -> 0 | CD16: =SUBTOTAL(9,Dataset[2023/24 Revised baseline]) -> 8947150 | CE16: =SUBTOTAL(9,Dataset[2024/25 Revised baseline]) -> 9348937 | CF16: =SUBTOTAL(9,Dataset[2025/26 Revised baseline]) -> 9767746
AT17: ="…"&SRTopic1 -> …afas dfsfds | AZ17: ="…"&SRTopic2 -> …Spending review topic 2 | BF17: ="…"&SRTopic3 -> …Spending review topic 3 | BL17: ="…"&SRTopic4 -> …Spending review topic 4 | BR17: …Adjustments other than spending reviews | CD17: …red shaded cells below indicate negative budgets.
A18: Combo_DoR | B18: Combo_Econ | C18: Budget Year | D18: Process | E18: Vote No. - N | F18: Programme No. - N | G18: Subprogramme No. - N | H18: Index - N | I18: Index - N2 | J18: Vote No. | K18: Programme No. | L18: Subprogramme No. | M18: Index | N18: Index2 | O18: UID | P18: Econ1_IDn | Q18: Econ2_IDn | R18: Econ3_IDn | S18: Econ4_IDn | T18: Econ5_IDn | U18: Econ_UID | V18: Province | W18: Department | X18: Programme | Y18: Subprogramme | Z18: Transfers and subsidies / Payments for financial assets detail | AA18: Econ1 | AB18: Econ2 | AC18: Econ3 | AD18: Econ4 | AE18: Econ5 | AF18: Function group | AG18: Technical group | AH18: DOR | AI18: 2018/19 | AJ18: 2019/20 | AK18: 2020/21 | AL18: 2021/22 Main appropriation | AM18: 2021/22 Adjusted appropriation | AN18: 2021/22 Revised estimate | AO18: 2021/22 Preliminary outcome | AP18: 2022/23 Baseline | AQ18: 2023/24 Baseline | AR18: 2024/25 Baseline | AS18: 2025/26 Baseline | AT18: 2023/24 From - Spending review Topic 1 | AU18: 2024/25 From - Spending review Topic 1 | AV18: 2025/26 From - Spending review Topic 1 | AW18: 2023/24 To - Spending review Topic 1 | AX18: 2024/25 To - Spending review Topic 1 | AY18: 2025/26 To - Spending review Topic 1 | AZ18: 2023/24 From - Spending review Topic 2 | BA18: 2024/25 From - Spending review Topic 2 | BB18: 2025/26 From - Spending review Topic 2 | BC18: 2023/24 To - Spending review Topic 2 | BD18: 2024/25 To - Spending review Topic 2 | BE18: 2025/26 To - Spending review Topic 2 | BF18: 2023/24 From - Spending review Topic 3 | BG18: 2024/25 From - Spending review Topic 3 | BH18: 2025/26 From - Spending review Topic 3 | BI18: 2023/24 To - Spending review Topic 3 | BJ18: 2024/25 To - Spending review Topic 3 | BK18: 2025/26 To - Spending review Topic 3 | BL18: 2023/24 From - Spending review Topic 4 | BM18: 2024/25 From - Spending review Topic 4 | BN18: 2025/26 From - Spending review Topic 4 | BO18: 2023/24 To - Spending review Topic 4 | BP18: 2024/25 To - Spending review Topic 4 | BQ18: 2025/26 To - Spending review Topic 4 | BR18: 2023/24 From - Other reallocations | BS18: 2024/25 From - Other reallocations | BT18: 2025/26 From - Other reallocations | BU18: 2023/24 To - Other reallocations | BV18: 2024/25 To - Other reallocations | BW18: 2025/26 To - Other reallocations | BX18: 2023/24 From - Total | BY18: 2024/25 From - Total | BZ18: 2025/26 From - Total | CA18: 2023/24 To - Total | CB18: 2024/25 To - Total | CC18: 2025/26 To - Total | CD18: 2023/24 Revised baseline | CE18: 2024/25 Revised baseline | CF18: 2025/26 Revised baseline
A19: NAT|Non-transfer item | B19: 32|Salaries and wages | C19: 2023_24 | D19: MTEF2023 | E19: 32 | F19: 1 | G19: 1 | H19: 57019 | I19: 1 | J19: 32 | K19: 01 | L19: 01 | M19: 057019 | N19: 000001 | O19: 32|01|01 | P19: 1 | Q19: 1 | R19: 1 | S19: 1 | T19: 1 | U19: 01|01|01|01|01 | V19: National | W19: Forestry, Fisheries and the Environment | X19: Administration | Y19: Management | Z19: Non-transfer item | AA19: Current | AB19: Current payments | AC19: Compensation of employees | AD19: Salaries and wages | AE19: Salaries and wages | AF19: Economic development | AG19: Economic regulation and infrastructure | AH19: NAT | AI19: 28662 | AJ19: 24789 | AK19: 47668 | AL19: 29395 | AM19: 36227 | AN19: 57770 | AO19: 0 | AP19: 40588 | AQ19: 43789 | AR19: 45756 | AS19: 47806 | BX19: =Dataset[[#This Row],[2023/24 From - Spending review Topic 1]]+Dataset[[#This Row],[2023/24 From - Spending review Topic 2]]+Dataset[[#This Row],[2023/24 From - Spending review Topic 3]]+Dataset[[#This Row],[2023/24 From - Spending review Topic 4]]+Dataset[[#This Row],[2023/24 From - Other reallocations]] -> 0 | BY19: =Dataset[[#This Row],[2024/25 From - Spending review Topic 1]]+Dataset[[#This Row],[2024/25 From - Spending review Topic 2]]+Dataset[[#This Row],[2024/25 From - Spending review Topic 3]]+Dataset[[#This Row],[2024/25 From - Spending review Topic 4]]+Dataset[[#This Row],[2024/25 From - Other reallocations]] -> 0 | BZ19: =Dataset[[#This Row],[2025/26 From - Spending review Topic 1]]+Dataset[[#This Row],[2025/26 From - Spending review Topic 2]]+Dataset[[#This Row],[2025/26 From - Spending review Topic 3]]+Dataset[[#This Row],[2025/26 From - Spending review Topic 4]]+Dataset[[#This Row],[2025/26 From - Other reallocations]] -> 0 | CA19: =Dataset[[#This Row],[2023/24 To - Spending review Topic 1]]+Dataset[[#This Row],[2023/24 To - Spending review Topic 2]]+Dataset[[#This Row],[2023/24 To - Spending review Topic 3]]+Dataset[[#This Row],[2023/24 To - Spending review Topic 4]]+Dataset[[#This Row],[2023/24 To - Other reallocations]] -> 0 | CB19: =Dataset[[#This Row],[2024/25 To - Spending review Topic 1]]+Dataset[[#This Row],[2024/25 To - Spending review Topic 2]]+Dataset[[#This Row],[2024/25 To - Spending review Topic 3]]+Dataset[[#This Row],[2024/25 To - Spending review Topic 4]]+Dataset[[#This Row],[2024/25 To - Other reallocations]] -> 0 | CC19: =Dataset[[#This Row],[2025/26 To - Spending review Topic 1]]+Dataset[[#This Row],[2025/26 To - Spending review Topic 2]]+Dataset[[#This Row],[2025/26 To - Spending review Topic 3]]+Dataset[[#This Row],[2025/26 To - Spending review Topic 4]]+Dataset[[#This Row],[2025/26 To - Other reallocations]] -> 0 | CD19: =Dataset[[#This Row],[2023/24 Baseline]]+Dataset[[#This Row],[2023/24 From - Total]]+Dataset[[#This Row],[2023/24 To - Total]] -> 43789 | CE19: =Dataset[[#This Row],[2024/25 Baseline]]+Dataset[[#This Row],[2024/25 From - Total]]+Dataset[[#This Row],[2024/25 To - Total]] -> 45756 | CF19: =Dataset[[#This Row],[2025/26 Baseline]]+Dataset[[#This Row],[2025/26 From - Total]]+Dataset[[#This Row],[2025/26 To - Total]] -> 47806
A20: NAT|Non-transfer item | B20: 32|Social contributions | C20: 2023_24 | D20: MTEF2023 | E20: 32 | F20: 1 | G20: 1 | H20: 57020 | I20: 2 | J20: 32 | K20: 01 | L20: 01 | M20: 057020 | N20: 000002 | O20: 32|01|01 | P20: 1 | Q20: 1 | R20: 1 | S20: 2 | T20: 2 | U20: 01|01|01|02|02 | V20: National | W20: Forestry, Fisheries and the Environment | X20: Administration | Y20: Management | Z20: Non-transfer item | AA20: Current | AB20: Current payments | AC20: Compensation of employees | AD20: Social contributions | AE20: Social contributions | AF20: Economic development | AG20: Economic regulation and infrastructure | AH20: NAT | AI20: 2415 | AJ20: 3746 | AK20: 7871 | AL20: 10282 | AM20: 12282 | AN20: 12000 | AO20: 0 | AP20: 14866 | AQ20: 15317 | AR20: 16005 | AS20: 16722 | BX20: =Dataset[[#This Row],[2023/24 From - Spending review Topic 1]]+Dataset[[#This Row],[2023/24 From - Spending review Topic 2]]+Dataset[[#This Row],[2023/24 From - Spending review Topic 3]]+Dataset[[#This Row],[2023/24 From - Spending review Topic 4]]+Dataset[[#This Row],[2023/24 From - Other reallocations]] -> 0 | BY20: =Dataset[[#This Row],[2024/25 From - Spending review Topic 1]]+Dataset[[#This Row],[2024/25 From - Spending review Topic 2]]+Dataset[[#This Row],[2024/25 From - Spending review Topic 3]]+Dataset[[#This Row],[2024/25 From - Spending review Topic 4]]+Dataset[[#This Row],[2024/25 From - Other reallocations]] -> 0 | BZ20: =Dataset[[#This Row],[2025/26 From - Spending review Topic 1]]+Dataset[[#This Row],[2025/26 From - Spending review Topic 2]]+Dataset[[#This Row],[2025/26 From - Spending review Topic 3]]+Dataset[[#This Row],[2025/26 From - Spending review Topic 4]]+Dataset[[#This Row],[2025/26 From - Other reallocations]] -> 0 | CA20: =Dataset[[#This Row],[2023/24 To - Spending review Topic 1]]+Dataset[[#This Row],[2023/24 To - Spending review Topic 2]]+Dataset[[#This Row],[2023/24 To - Spending review Topic 3]]+Dataset[[#This Row],[2023/24 To - Spending review Topic 4]]+Dataset[[#This Row],[2023/24 To - Other reallocations]] -> 0 | CB20: =Dataset[[#This Row],[2024/25 To - Spending review Topic 1]]+Dataset[[#This Row],[2024/25 To - Spending review Topic 2]]+Dataset[[#This Row],[2024/25 To - Spending review Topic 3]]+Dataset[[#This Row],[2024/25 To - Spending review Topic 4]]+Dataset[[#This Row],[2024/25 To - Other reallocations]] -> 0 | CC20: =Dataset[[#This Row],[2025/26 To - Spending review Topic 1]]+Dataset[[#This Row],[2025/26 To - Spending review Topic 2]]+Dataset[[#This Row],[2025/26 To - Spending review Topic 3]]+Dataset[[#This Row],[2025/26 To - Spending review Topic 4]]+Dataset[[#This Row],[2025/26 To - Other reallocations]] -> 0 | CD20: =Dataset[[#This Row],[2023/24 Baseline]]+Dataset[[#This Row],[2023/24 From - Total]]+Dataset[[#This Row],[2023/24 To - Total]] -> 15317 | CE20: =Dataset[[#This Row],[2024/25 Baseline]]+Dataset[[#This Row],[2024/25 From - Total]]+Dataset[[#This Row],[2024/25 To - Total]] -> 16005 | CF20: =Dataset[[#This Row],[2025/26 Baseline]]+Dataset[[#This Row],[2025/26 From - Total]]+Dataset[[#This Row],[2025/26 To - Total]] -> 16722
A21: NAT|Non-transfer item | B21: 32|Administrative fees | C21: 2023_24 | D21: MTEF2023 | E21: 32 | F21: 1 | G21: 1 | H21: 57021 | I21: 3 | J21: 32 | K21: 01 | L21: 01 | M21: 057021 | N21: 000003 | O21: 32|01|01 | P21: 1 | Q21: 1 | R21: 2 | S21: 3 | T21: 3 | U21: 01|01|02|03|03 | V21: National | W21: Forestry, Fisheries and the Environment | X21: Administration | Y21: Management | Z21: Non-transfer item | AA21: Current | AB21: Current payments | AC21: Goods and services | AD21: Administrative fees | AE21: Administrative fees | AF21: Economic development | AG21: Economic regulation and infrastructure | AH21: NAT | AI21: 105 | AJ21: 0 | AK21: 0 | AL21: 28 | AM21: 28 | AN21: 28 | AO21: 0 | AP21: 4 | AQ21: 5 | AR21: 24 | AS21: 25 | BX21: =Dataset[[#This Row],[2023/24 From - Spending review Topic 1]]+Dataset[[#This Row],[2023/24 From - Spending review Topic 2]]+Dataset[[#This Row],[2023/24 From - Spending review Topic 3]]+Dataset[[#This Row],[2023/24 From - Spending review Topic 4]]+Dataset[[#This Row],[2023/24 From - Other reallocations]] -> 0 | BY21: =Dataset[[#This Row],[2024/25 From - Spending review Topic 1]]+Dataset[[#This Row],[2024/25 From - Spending review Topic 2]]+Dataset[[#This Row],[2024/25 From - Spending review Topic 3]]+Dataset[[#This Row],[2024/25 From - Spending review Topic 4]]+Dataset[[#This Row],[2024/25 From - Other reallocations]] -> 0 | BZ21: =Dataset[[#This Row],[2025/26 From - Spending review Topic 1]]+Dataset[[#This Row],[2025/26 From - Spending review Topic 2]]+Dataset[[#This Row],[2025/26 From - Spending review Topic 3]]+Dataset[[#This Row],[2025/26 From - Spending review Topic 4]]+Dataset[[#This Row],[2025/26 From - Other reallocations]] -> 0 | CA21: =Dataset[[#This Row],[2023/24 To - Spending review Topic 1]]+Dataset[[#This Row],[2023/24 To - Spending review Topic 2]]+Dataset[[#This Row],[2023/24 To - Spending review Topic 3]]+Dataset[[#This Row],[2023/24 To - Spending review Topic 4]]+Dataset[[#This Row],[2023/24 To - Other reallocations]] -> 0 | CB21: =Dataset[[#This Row],[2024/25 To - Spending review Topic 1]]+Dataset[[#This Row],[2024/25 To - Spending review Topic 2]]+Dataset[[#This Row],[2024/25 To - Spending review Topic 3]]+Dataset[[#This Row],[2024/25 To - Spending review Topic 4]]+Dataset[[#This Row],[2024/25 To - Other reallocations]] -> 0 | CC21: =Dataset[[#This Row],[2025/26 To - Spending review Topic 1]]+Dataset[[#This Row],[2025/26 To - Spending review Topic 2]]+Dataset[[#This Row],[2025/26 To - Spending review Topic 3]]+Dataset[[#This Row],[2025/26 To - Spending review Topic 4]]+Dataset[[#This Row],[2025/26 To - Other reallocations]] -> 0 | CD21: =Dataset[[#This Row],[2023/24 Baseline]]+Dataset[[#This Row],[2023/24 From - Total]]+Dataset[[#This Row],[2023/24 To - Total]] -> 5 | CE21: =Dataset[[#This Row],[2024/25 Baseline]]+Dataset[[#This Row],[2024/25 From - Total]]+Dataset[[#This Row],[2024/25 To - Total]] -> 24 | CF21: =Dataset[[#This Row],[2025/26 Baseline]]+Dataset[[#This Row],[2025/26 From - Total]]+Dataset[[#This Row],[2025/26 To - Total]] -> 25
A22: NAT|Non-transfer item | B22: 32|Advertising | C22: 2023_24 | D22: MTEF2023 | E22: 32 | F22: 1 | G22: 1 | H22: 57022 | I22: 4 | J22: 32 | K22: 01 | L22: 01 | M22: 057022 | N22: 000004 | O22: 32|01|01 | P22: 1 | Q22: 1 | R22: 2 | S22: 4 | T22: 4 | U22: 01|01|02|04|04 | V22: National | W22: Forestry, Fisheries and the Environment | X22: Administration | Y22: Management | Z22: Non-transfer item | AA22: Current | AB22: Current payments | AC22: Goods and services | AD22: Advertising | AE22: Advertising | AF22: Economic development | AG22: Economic regulation and infrastructure | AH22: NAT | AI22: 345 | AJ22: 592 | AK22: 3 | AL22: 16444 | AM22: 16444 | AN22: 0 | AO22: 0 | AP22: 39 | AQ22: 46 | AR22: 1113 | AS22: 1163 | BX22: =Dataset[[#This Row],[2023/24 From - Spending review Topic 1]]+Dataset[[#This Row],[2023/24 From - Spending review Topic 2]]+Dataset[[#This Row],[2023/24 From - Spending review Topic 3]]+Dataset[[#This Row],[2023/24 From - Spending review Topic 4]]+Dataset[[#This Row],[2023/24 From - Other reallocations]] -> 0 | BY22: =Dataset[[#This Row],[2024/25 From - Spending review Topic 1]]+Dataset[[#This Row],[2024/25 From - Spending review Topic 2]]+Dataset[[#This Row],[2024/25 From - Spending review Topic 3]]+Dataset[[#This Row],[2024/25 From - Spending review Topic 4]]+Dataset[[#This Row],[2024/25 From - Other reallocations]] -> 0 | BZ22: =Dataset[[#This Row],[2025/26 From - Spending review Topic 1]]+Dataset[[#This Row],[2025/26 From - Spending review Topic 2]]+Dataset[[#This Row],[2025/26 From - Spending review Topic 3]]+Dataset[[#This Row],[2025/26 From - Spending review Topic 4]]+Dataset[[#This Row],[2025/26 From - Other reallocations]] -> 0 | CA22: =Dataset[[#This Row],[2023/24 To - Spending review Topic 1]]+Dataset[[#This Row],[2023/24 To - Spending review Topic 2]]+Dataset[[#This Row],[2023/24 To - Spending review Topic 3]]+Dataset[[#This Row],[2023/24 To - Spending review Topic 4]]+Dataset[[#This Row],[2023/24 To - Other reallocations]] -> 0 | CB22: =Dataset[[#This Row],[2024/25 To - Spending review Topic 1]]+Dataset[[#This Row],[2024/25 To - Spending review Topic 2]]+Dataset[[#This Row],[2024/25 To - Spending review Topic 3]]+Dataset[[#This Row],[2024/25 To - Spending review Topic 4]]+Dataset[[#This Row],[2024/25 To - Other reallocations]] -> 0 | CC22: =Dataset[[#This Row],[2025/26 To - Spending review Topic 1]]+Dataset[[#This Row],[2025/26 To - Spending review Topic 2]]+Dataset[[#This Row],[2025/26 To - Spending review Topic 3]]+Dataset[[#This Row],[2025/26 To - Spending review Topic 4]]+Dataset[[#This Row],[2025/26 To - Other reallocations]] -> 0 | CD22: =Dataset[[#This Row],[2023/24 Baseline]]+Dataset[[#This Row],[2023/24 From - Total]]+Dataset[[#This Row],[2023/24 To - Total]] -> 46 | CE22: =Dataset[[#This Row],[2024/25 Baseline]]+Dataset[[#This Row],[2024/25 From - Total]]+Dataset[[#This Row],[2024/25 To - Total]] -> 1113 | CF22: =Dataset[[#This Row],[2025/26 Baseline]]+Dataset[[#This Row],[2025/26 From - Total]]+Dataset[[#This Row],[2025/26 To - Total]] -> 1163
A23: NAT|Non-transfer item | B23: 32|Minor assets | C23: 2023_24 | D23: MTEF2023 | E23: 32 | F23: 1 | G23: 1 | H23: 57023 | I23: 5 | J23: 32 | K23: 01 | L23: 01 | M23: 057023 | N23: 000005 | O23: 32|01|01 | P23: 1 | Q23: 1 | R23: 2 | S23: 5 | T23: 5 | U23: 01|01|02|05|05 | V23: National | W23: Forestry, Fisheries and the Environment | X23: Administration | Y23: Management | Z23: Non-transfer item | AA23: Current | AB23: Current payments | AC23: Goods and services | AD23: Minor assets | AE23: Minor assets | AF23: Economic development | AG23: Economic regulation and infrastructure | AH23: NAT | AI23: 28 | AJ23: 36 | AK23: 28 | AL23: 325 | AM23: 325 | AN23: 0 | AO23: 0 | AP23: 160 | AQ23: 167 | AR23: 279 | AS23: 291 | BX23: =Dataset[[#This Row],[2023/24 From - Spending review Topic 1]]+Dataset[[#This Row],[2023/24 From - Spending review Topic 2]]+Dataset[[#This Row],[2023/24 From - Spending review Topic 3]]+Dataset[[#This Row],[2023/24 From - Spending review Topic 4]]+Dataset[[#This Row],[2023/24 From - Other reallocations]] -> 0 | BY23: =Dataset[[#This Row],[2024/25 From - Spending review Topic 1]]+Dataset[[#This Row],[2024/25 From - Spending review Topic 2]]+Dataset[[#This Row],[2024/25 From - Spending review Topic 3]]+Dataset[[#This Row],[2024/25 From - Spending review Topic 4]]+Dataset[[#This Row],[2024/25 From - Other reallocations]] -> 0 | BZ23: =Dataset[[#This Row],[2025/26 From - Spending review Topic 1]]+Dataset[[#This Row],[2025/26 From - Spending review Topic 2]]+Dataset[[#This Row],[2025/26 From - Spending review Topic 3]]+Dataset[[#This Row],[2025/26 From - Spending review Topic 4]]+Dataset[[#This Row],[2025/26 From - Other reallocations]] -> 0 | CA23: =Dataset[[#This Row],[2023/24 To - Spending review Topic 1]]+Dataset[[#This Row],[2023/24 To - Spending review Topic 2]]+Dataset[[#This Row],[2023/24 To - Spending review Topic 3]]+Dataset[[#This Row],[2023/24 To - Spending review Topic 4]]+Dataset[[#This Row],[2023/24 To - Other reallocations]] -> 0 | CB23: =Dataset[[#This Row],[2024/25 To - Spending review Topic 1]]+Dataset[[#This Row],[2024/25 To - Spending review Topic 2]]+Dataset[[#This Row],[2024/25 To - Spending review Topic 3]]+Dataset[[#This Row],[2024/25 To - Spending review Topic 4]]+Dataset[[#This Row],[2024/25 To - Other reallocations]] -> 0 | CC23: =Dataset[[#This Row],[2025/26 To - Spending review Topic 1]]+Dataset[[#This Row],[2025/26 To - Spending review Topic 2]]+Dataset[[#This Row],[2025/26 To - Spending review Topic 3]]+Dataset[[#This Row],[2025/26 To - Spending review Topic 4]]+Dataset[[#This Row],[2025/26 To - Other reallocations]] -> 0 | CD23: =Dataset[[#This Row],[2023/24 Baseline]]+Dataset[[#This Row],[2023/24 From - Total]]+Dataset[[#This Row],[2023/24 To - Total]] -> 167 | CE23: =Dataset[[#This Row],[2024/25 Baseline]]+Dataset[[#This Row],[2024/25 From - Total]]+Dataset[[#This Row],[2024/25 To - Total]] -> 279 | CF23: =Dataset[[#This Row],[2025/26 Baseline]]+Dataset[[#This Row],[2025/26 From - Total]]+Dataset[[#This Row],[2025/26 To - Total]] -> 291
A24: NAT|Non-transfer item | B24: 32|Audit costs: External | C24: 2023_24 | D24: MTEF2023 | E24: 32 | F24: 1 | G24: 1 | H24: 57024 | I24: 6 | J24: 32 | K24: 01 | L24: 01 | M24: 057024 | N24: 000006 | O24: 32|01|01 | P24: 1 | Q24: 1 | R24: 2 | S24: 6 | T24: 6 | U24: 01|01|02|06|06 | V24: National | W24: Forestry, Fisheries and the Environment | X24: Administration | Y24: Management | Z24: Non-transfer item | AA24: Current | AB24: Current payments | AC24: Goods and services | AD24: Audit costs: External | AE24: Audit costs: External | AF24: Economic development | AG24: Economic regulation and infrastructure | AH24: NAT | AI24: 0 | AJ24: 1551 | AK24: 3831 | AL24: 1712 | AM24: 1712 | AN24: 0 | AO24: 0 | AP24: 3600 | AQ24: 3606 | AR24: 3469 | AS24: 3624 | BX24: =Dataset[[#This Row],[2023/24 From - Spending review Topic 1]]+Dataset[[#This Row],[2023/24 From - Spending review Topic 2]]+Dataset[[#This Row],[2023/24 From - Spending review Topic 3]]+Dataset[[#This Row],[2023/24 From - Spending review Topic 4]]+Dataset[[#This Row],[2023/24 From - Other reallocations]] -> 0 | BY24: =Dataset[[#This Row],[2024/25 From - Spending review Topic 1]]+Dataset[[#This Row],[2024/25 From - Spending review Topic 2]]+Dataset[[#This Row],[2024/25 From - Spending review Topic 3]]+Dataset[[#This Row],[2024/25 From - Spending review Topic 4]]+Dataset[[#This Row],[2024/25 From - Other reallocations]] -> 0 | BZ24: =Dataset[[#This Row],[2025/26 From - Spending review Topic 1]]+Dataset[[#This Row],[2025/26 From - Spending review Topic 2]]+Dataset[[#This Row],[2025/26 From - Spending review Topic 3]]+Dataset[[#This Row],[2025/26 From - Spending review Topic 4]]+Dataset[[#This Row],[2025/26 From - Other reallocations]] -> 0 | CA24: =Dataset[[#This Row],[2023/24 To - Spending review Topic 1]]+Dataset[[#This Row],[2023/24 To - Spending review Topic 2]]+Dataset[[#This Row],[2023/24 To - Spending review Topic 3]]+Dataset[[#This Row],[2023/24 To - Spending review Topic 4]]+Dataset[[#This Row],[2023/24 To - Other reallocations]] -> 0 | CB24: =Dataset[[#This Row],[2024/25 To - Spending review Topic 1]]+Dataset[[#This Row],[2024/25 To - Spending review Topic 2]]+Dataset[[#This Row],[2024/25 To - Spending review Topic 3]]+Dataset[[#This Row],[2024/25 To - Spending review Topic 4]]+Dataset[[#This Row],[2024/25 To - Other reallocations]] -> 0 | CC24: =Dataset[[#This Row],[2025/26 To - Spending review Topic 1]]+Dataset[[#This Row],[2025/26 To - Spending review Topic 2]]+Dataset[[#This Row],[2025/26 To - Spending review Topic 3]]+Dataset[[#This Row],[2025/26 To - Spending review Topic 4]]+Dataset[[#This Row],[2025/26 To - Other reallocations]] -> 0 | CD24: =Dataset[[#This Row],[2023/24 Baseline]]+Dataset[[#This Row],[2023/24 From - Total]]+Dataset[[#This Row],[2023/24 To - Total]] -> 3606 | CE24: =Dataset[[#This Row],[2024/25 Baseline]]+Dataset[[#This Row],[2024/25 From - Total]]+Dataset[[#This Row],[2024/25 To - Total]] -> 3469 | CF24: =Dataset[[#This Row],[2025/26 Baseline]]+Dataset[[#This Row],[2025/26 From - Total]]+Dataset[[#This Row],[2025/26 To - Total]] -> 3624
A25: NAT|Non-transfer item | B25: 32|Bursaries: Employees | C25: 2023_24 | D25: MTEF2023 | E25: 32 | F25: 1 | G25: 1 | H25: 57025 | I25: 7 | J25: 32 | K25: 01 | L25: 01 | M25: 057025 | N25: 000007 | O25: 32|01|01 | P25: 1 | Q25: 1 | R25: 2 | S25: 7 | T25: 7 | U25: 01|01|02|07|07 | V25: National | W25: Forestry, Fisheries and the Environment | X25: Administration | Y25: Management | Z25: Non-transfer item | AA25: Current | AB25: Current payments | AC25: Goods and services | AD25: Bursaries: Employees | AE25: Bursaries: Employees | AF25: Economic development | AG25: Economic regulation and infrastructure | AH25: NAT | AI25: 0 | AJ25: 0 | AK25: 11 | AL25: 90 | AM25: 90 | AN25: 0 | AO25: 0 | AP25: 500 | AQ25: 524 | AR25: 77 | AS25: 80 | BX25: =Dataset[[#This Row],[2023/24 From - Spending review Topic 1]]+Dataset[[#This Row],[2023/24 From - Spending review Topic 2]]+Dataset[[#This Row],[2023/24 From - Spending review Topic 3]]+Dataset[[#This Row],[2023/24 From - Spending review Topic 4]]+Dataset[[#This Row],[2023/24 From - Other reallocations]] -> 0 | BY25: =Dataset[[#This Row],[2024/25 From - Spending review Topic 1]]+Dataset[[#This Row],[2024/25 From - Spending review Topic 2]]+Dataset[[#This Row],[2024/25 From - Spending review Topic 3]]+Dataset[[#This Row],[2024/25 From - Spending review Topic 4]]+Dataset[[#This Row],[2024/25 From - Other reallocations]] -> 0 | BZ25: =Dataset[[#This Row],[2025/26 From - Spending review Topic 1]]+Dataset[[#This Row],[2025/26 From - Spending review Topic 2]]+Dataset[[#This Row],[2025/26 From - Spending review Topic 3]]+Dataset[[#This Row],[2025/26 From - Spending review Topic 4]]+Dataset[[#This Row],[2025/26 From - Other reallocations]] -> 0 | CA25: =Dataset[[#This Row],[2023/24 To - Spending review Topic 1]]+Dataset[[#This Row],[2023/24 To - Spending review Topic 2]]+Dataset[[#This Row],[2023/24 To - Spending review Topic 3]]+Dataset[[#This Row],[2023/24 To - Spending review Topic 4]]+Dataset[[#This Row],[2023/24 To - Other reallocations]] -> 0 | CB25: =Dataset[[#This Row],[2024/25 To - Spending review Topic 1]]+Dataset[[#This Row],[2024/25 To - Spending review Topic 2]]+Dataset[[#This Row],[2024/25 To - Spending review Topic 3]]+Dataset[[#This Row],[2024/25 To - Spending review Topic 4]]+Dataset[[#This Row],[2024/25 To - Other reallocations]] -> 0 | CC25: =Dataset[[#This Row],[2025/26 To - Spending review Topic 1]]+Dataset[[#This Row],[2025/26 To - Spending review Topic 2]]+Dataset[[#This Row],[2025/26 To - Spending review Topic 3]]+Dataset[[#This Row],[2025/26 To - Spending review Topic 4]]+Dataset[[#This Row],[2025/26 To - Other reallocations]] -> 0 | CD25: =Dataset[[#This Row],[2023/24 Baseline]]+Dataset[[#This Row],[2023/24 From - Total]]+Dataset[[#This Row],[2023/24 To - Total]] -> 524 | CE25: =Dataset[[#This Row],[2024/25 Baseline]]+Dataset[[#This Row],[2024/25 From - Total]]+Dataset[[#This Row],[2024/25 To - Total]] -> 77 | CF25: =Dataset[[#This Row],[2025/26 Baseline]]+Dataset[[#This Row],[2025/26 From - Total]]+Dataset[[#This Row],[2025/26 To - Total]] -> 80
A26: NAT|Non-transfer item | B26: 32|Catering: Departmental activities | C26: 2023_24 | D26: MTEF2023 | E26: 32 | F26: 1 | G26: 1 | H26: 57026 | I26: 8 | J26: 32 | K26: 01 | L26: 01 | M26: 057026 | N26: 000008 | O26: 32|01|01 | P26: 1 | Q26: 1 | R26: 2 | S26: 8 | T26: 8 | U26: 01|01|02|08|08 | V26: National | W26: Forestry, Fisheries and the Environment | X26: Administration | Y26: Management | Z26: Non-transfer item | AA26: Current | AB26: Current payments | AC26: Goods and services | AD26: Catering: Departmental activities | AE26: Catering: Departmental activities | AF26: Economic development | AG26: Economic regulation and infrastructure | AH26: NAT | AI26: 79 | AJ26: 402 | AK26: 1376 | AL26: 1703 | AM26: 1703 | AN26: 1000 | AO26: 0 | AP26: 888 | AQ26: 999 | AR26: 1462 | AS26: 1527 | BX26: =Dataset[[#This Row],[2023/24 From - Spending review Topic 1]]+Dataset[[#This Row],[2023/24 From - Spending review Topic 2]]+Dataset[[#This Row],[2023/24 From - Spending review Topic 3]]+Dataset[[#This Row],[2023/24 From - Spending review Topic 4]]+Dataset[[#This Row],[2023/24 From - Other reallocations]] -> 0 | BY26: =Dataset[[#This Row],[2024/25 From - Spending review Topic 1]]+Dataset[[#This Row],[2024/25 From - Spending review Topic 2]]+Dataset[[#This Row],[2024/25 From - Spending review Topic 3]]+Dataset[[#This Row],[2024/25 From - Spending review Topic 4]]+Dataset[[#This Row],[2024/25 From - Other reallocations]] -> 0 | BZ26: =Dataset[[#This Row],[2025/26 From - Spending review Topic 1]]+Dataset[[#This Row],[2025/26 From - Spending review Topic 2]]+Dataset[[#This Row],[2025/26 From - Spending review Topic 3]]+Dataset[[#This Row],[2025/26 From - Spending review Topic 4]]+Dataset[[#This Row],[2025/26 From - Other reallocations]] -> 0 | CA26: =Dataset[[#This Row],[2023/24 To - Spending review Topic 1]]+Dataset[[#This Row],[2023/24 To - Spending review Topic 2]]+Dataset[[#This Row],[2023/24 To - Spending review Topic 3]]+Dataset[[#This Row],[2023/24 To - Spending review Topic 4]]+Dataset[[#This Row],[2023/24 To - Other reallocations]] -> 0 | CB26: =Dataset[[#This Row],[2024/25 To - Spending review Topic 1]]+Dataset[[#This Row],[2024/25 To - Spending review Topic 2]]+Dataset[[#This Row],[2024/25 To - Spending review Topic 3]]+Dataset[[#This Row],[2024/25 To - Spending review Topic 4]]+Dataset[[#This Row],[2024/25 To - Other reallocations]] -> 0 | CC26: =Dataset[[#This Row],[2025/26 To - Spending review Topic 1]]+Dataset[[#This Row],[2025/26 To - Spending review Topic 2]]+Dataset[[#This Row],[2025/26 To - Spending review Topic 3]]+Dataset[[#This Row],[2025/26 To - Spending review Topic 4]]+Dataset[[#This Row],[2025/26 To - Other reallocations]] -> 0 | CD26: =Dataset[[#This Row],[2023/24 Baseline]]+Dataset[[#This Row],[2023/24 From - Total]]+Dataset[[#This Row],[2023/24 To - Total]] -> 999 | CE26: =Dataset[[#This Row],[2024/25 Baseline]]+Dataset[[#This Row],[2024/25 From - Total]]+Dataset[[#This Row],[2024/25 To - Total]] -> 1462 | CF26: =Dataset[[#This Row],[2025/26 Baseline]]+Dataset[[#This Row],[2025/26 From - Total]]+Dataset[[#This Row],[2025/26 To - Total]] -> 1527
A27: NAT|Non-transfer item | B27: 32|Communication (G&S) | C27: 2023_24 | D27: MTEF2023 | E27: 32 | F27: 1 | G27: 1 | H27: 57027 | I27: 9 | J27: 32 | K27: 01 | L27: 01 | M27: 057027 | N27: 000009 | O27: 32|01|01 | P27: 1 | Q27: 1 | R27: 2 | S27: 9 | T27: 9 | U27: 01|01|02|09|09 | V27: National | W27: Forestry, Fisheries and the Environment | X27: Administration | Y27: Management | Z27: Non-transfer item | AA27: Current | AB27: Current payments | AC27: Goods and services | AD27: Communication (G&S) | AE27: Communication (G&S) | AF27: Economic development | AG27: Economic regulation and infrastructure | AH27: NAT | AI27: 89 | AJ27: 70 | AK27: 72 | AL27: 12123 | AM27: 12123 | AN27: 0 | AO27: 0 | AP27: 582 | AQ27: 657 | AR27: 1404 | AS27: 1467 | BX27: =Dataset[[#This Row],[2023/24 From - Spending review Topic 1]]+Dataset[[#This Row],[2023/24 From - Spending review Topic 2]]+Dataset[[#This Row],[2023/24 From - Spending review Topic 3]]+Dataset[[#This Row],[2023/24 From - Spending review Topic 4]]+Dataset[[#This Row],[2023/24 From - Other reallocations]] -> 0 | BY27: =Dataset[[#This Row],[2024/25 From - Spending review Topic 1]]+Dataset[[#This Row],[2024/25 From - Spending review Topic 2]]+Dataset[[#This Row],[2024/25 From - Spending review Topic 3]]+Dataset[[#This Row],[2024/25 From - Spending review Topic 4]]+Dataset[[#This Row],[2024/25 From - Other reallocations]] -> 0 | BZ27: =Dataset[[#This Row],[2025/26 From - Spending review Topic 1]]+Dataset[[#This Row],[2025/26 From - Spending review Topic 2]]+Dataset[[#This Row],[2025/26 From - Spending review Topic 3]]+Dataset[[#This Row],[2025/26 From - Spending review Topic 4]]+Dataset[[#This Row],[2025/26 From - Other reallocations]] -> 0 | CA27: =Dataset[[#This Row],[2023/24 To - Spending review Topic 1]]+Dataset[[#This Row],[2023/24 To - Spending review Topic 2]]+Dataset[[#This Row],[2023/24 To - Spending review Topic 3]]+Dataset[[#This Row],[2023/24 To - Spending review Topic 4]]+Dataset[[#This Row],[2023/24 To - Other reallocations]] -> 0 | CB27: =Dataset[[#This Row],[2024/25 To - Spending review Topic 1]]+Dataset[[#This Row],[2024/25 To - Spending review Topic 2]]+Dataset[[#This Row],[2024/25 To - Spending review Topic 3]]+Dataset[[#This Row],[2024/25 To - Spending review Topic 4]]+Dataset[[#This Row],[2024/25 To - Other reallocations]] -> 0 | CC27: =Dataset[[#This Row],[2025/26 To - Spending review Topic 1]]+Dataset[[#This Row],[2025/26 To - Spending review Topic 2]]+Dataset[[#This Row],[2025/26 To - Spending review Topic 3]]+Dataset[[#This Row],[2025/26 To - Spending review Topic 4]]+Dataset[[#This Row],[2025/26 To - Other reallocations]] -> 0 | CD27: =Dataset[[#This Row],[2023/24 Baseline]]+Dataset[[#This Row],[2023/24 From - Total]]+Dataset[[#This Row],[2023/24 To - Total]] -> 657 | CE27: =Dataset[[#This Row],[2024/25 Baseline]]+Dataset[[#This Row],[2024/25 From - Total]]+Dataset[[#This Row],[2024/25 To - Total]] -> 1404 | CF27: =Dataset[[#This Row],[2025/26 Baseline]]+Dataset[[#This Row],[2025/26 From - Total]]+Dataset[[#This Row],[2025/26 To - Total]] -> 1467
A28: NAT|Non-transfer item | B28: 32|Computer services | C28: 2023_24 | D28: MTEF2023 | E28: 32 | F28: 1 | G28: 1 | H28: 57028 | I28: 10 | J28: 32 | K28: 01 | L28: 01 | M28: 057028 | N28: 000010 | O28: 32|01|01 | P28: 1 | Q28: 1 | R28: 2 | S28: 10 | T28: 10 | U28: 01|01|02|10|10 | V28: National | W28: Forestry, Fisheries and the Environment | X28: Administration | Y28: Management | Z28: Non-transfer item | AA28: Current | AB28: Current payments | AC28: Goods and services | AD28: Computer services | AE28: Computer services | AF28: Economic development | AG28: Economic regulation and infrastructure | AH28: NAT | AI28: 0 | AJ28: 0 | AK28: 0 | AL28: 136 | AM28: 136 | AN28: 136 | AO28: 0 | AP28: 10 | AQ28: 12 | AR28: 117 | AS28: 122 | BX28: =Dataset[[#This Row],[2023/24 From - Spending review Topic 1]]+Dataset[[#This Row],[2023/24 From - Spending review Topic 2]]+Dataset[[#This Row],[2023/24 From - Spending review Topic 3]]+Dataset[[#This Row],[2023/24 From - Spending review Topic 4]]+Dataset[[#This Row],[2023/24 From - Other reallocations]] -> 0 | BY28: =Dataset[[#This Row],[2024/25 From - Spending review Topic 1]]+Dataset[[#This Row],[2024/25 From - Spending review Topic 2]]+Dataset[[#This Row],[2024/25 From - Spending review Topic 3]]+Dataset[[#This Row],[2024/25 From - Spending review Topic 4]]+Dataset[[#This Row],[2024/25 From - Other reallocations]] -> 0 | BZ28: =Dataset[[#This Row],[2025/26 From - Spending review Topic 1]]+Dataset[[#This Row],[2025/26 From - Spending review Topic 2]]+Dataset[[#This Row],[2025/26 From - Spending review Topic 3]]+Dataset[[#This Row],[2025/26 From - Spending review Topic 4]]+Dataset[[#This Row],[2025/26 From - Other reallocations]] -> 0 | CA28: =Dataset[[#This Row],[2023/24 To - Spending review Topic 1]]+Dataset[[#This Row],[2023/24 To - Spending review Topic 2]]+Dataset[[#This Row],[2023/24 To - Spending review Topic 3]]+Dataset[[#This Row],[2023/24 To - Spending review Topic 4]]+Dataset[[#This Row],[2023/24 To - Other reallocations]] -> 0 | CB28: =Dataset[[#This Row],[2024/25 To - Spending review Topic 1]]+Dataset[[#This Row],[2024/25 To - Spending review Topic 2]]+Dataset[[#This Row],[2024/25 To - Spending review Topic 3]]+Dataset[[#This Row],[2024/25 To - Spending review Topic 4]]+Dataset[[#This Row],[2024/25 To - Other reallocations]] -> 0 | CC28: =Dataset[[#This Row],[2025/26 To - Spending review Topic 1]]+Dataset[[#This Row],[2025/26 To - Spending review Topic 2]]+Dataset[[#This Row],[2025/26 To - Spending review Topic 3]]+Dataset[[#This Row],[2025/26 To - Spending review Topic 4]]+Dataset[[#This Row],[2025/26 To - Other reallocations]] -> 0 | CD28: =Dataset[[#This Row],[2023/24 Baseline]]+Dataset[[#This Row],[2023/24 From - Total]]+Dataset[[#This Row],[2023/24 To - Total]] -> 12 | CE28: =Dataset[[#This Row],[2024/25 Baseline]]+Dataset[[#This Row],[2024/25 From - Total]]+Dataset[[#This Row],[2024/25 To - Total]] -> 117 | CF28: =Dataset[[#This Row],[2025/26 Baseline]]+Dataset[[#This Row],[2025/26 From - Total]]+Dataset[[#This Row],[2025/26 To - Total]] -> 122
A29: NAT|Non-transfer item | B29: 32|Consultants: Business and advisory services | C29: 2023_24 | D29: MTEF2023 | E29: 32 | F29: 1 | G29: 1 | H29: 57029 | I29: 11 | J29: 32 | K29: 01 | L29: 01 | M29: 057029 | N29: 000011 | O29: 32|01|01 | P29: 1 | Q29: 1 | R29: 2 | S29: 11 | T29: 11 | U29: 01|01|02|11|11 | V29: National | W29: Forestry, Fisheries and the Environment | X29: Administration | Y29: Management | Z29: Non-transfer item | AA29: Current | AB29: Current payments | AC29: Goods and services | AD29: Consultants: Business and advisory services | AE29: Consultants: Business and advisory services | AF29: Economic development | AG29: Economic regulation and infrastructure | AH29: NAT | AI29: 0 | AJ29: 7014 | AK29: 3841 | AL29: 13472 | AM29: 13472 | AN29: 0 | AO29: 0 | AP29: 7509 | AQ29: 6835 | AR29: 7562 | AS29: 7901 | BX29: =Dataset[[#This Row],[2023/24 From - Spending review Topic 1]]+Dataset[[#This Row],[2023/24 From - Spending review Topic 2]]+Dataset[[#This Row],[2023/24 From - Spending review Topic 3]]+Dataset[[#This Row],[2023/24 From - Spending review Topic 4]]+Dataset[[#This Row],[2023/24 From - Other reallocations]] -> 0 | BY29: =Dataset[[#This Row],[2024/25 From - Spending review Topic 1]]+Dataset[[#This Row],[2024/25 From - Spending review Topic 2]]+Dataset[[#This Row],[2024/25 From - Spending review Topic 3]]+Dataset[[#This Row],[2024/25 From - Spending review Topic 4]]+Dataset[[#This Row],[2024/25 From - Other reallocations]] -> 0 | BZ29: =Dataset[[#This Row],[2025/26 From - Spending review Topic 1]]+Dataset[[#This Row],[2025/26 From - Spending review Topic 2]]+Dataset[[#This Row],[2025/26 From - Spending review Topic 3]]+Dataset[[#This Row],[2025/26 From - Spending review Topic 4]]+Dataset[[#This Row],[2025/26 From - Other reallocations]] -> 0 | CA29: =Dataset[[#This Row],[2023/24 To - Spending review Topic 1]]+Dataset[[#This Row],[2023/24 To - Spending review Topic 2]]+Dataset[[#This Row],[2023/24 To - Spending review Topic 3]]+Dataset[[#This Row],[2023/24 To - Spending review Topic 4]]+Dataset[[#This Row],[2023/24 To - Other reallocations]] -> 0 | CB29: =Dataset[[#This Row],[2024/25 To - Spending review Topic 1]]+Dataset[[#This Row],[2024/25 To - Spending review Topic 2]]+Dataset[[#This Row],[2024/25 To - Spending review Topic 3]]+Dataset[[#This Row],[2024/25 To - Spending review Topic 4]]+Dataset[[#This Row],[2024/25 To - Other reallocations]] -> 0 | CC29: =Dataset[[#This Row],[2025/26 To - Spending review Topic 1]]+Dataset[[#This Row],[2025/26 To - Spending review Topic 2]]+Dataset[[#This Row],[2025/26 To - Spending review Topic 3]]+Dataset[[#This Row],[2025/26 To - Spending review Topic 4]]+Dataset[[#This Row],[2025/26 To - Other reallocations]] -> 0 | CD29: =Dataset[[#This Row],[2023/24 Baseline]]+Dataset[[#This Row],[2023/24 From - Total]]+Dataset[[#This Row],[2023/24 To - Total]] -> 6835 | CE29: =Dataset[[#This Row],[2024/25 Baseline]]+Dataset[[#This Row],[2024/25 From - Total]]+Dataset[[#This Row],[2024/25 To - Total]] -> 7562 | CF29: =Dataset[[#This Row],[2025/26 Baseline]]+Dataset[[#This Row],[2025/26 From - Total]]+Dataset[[#This Row],[2025/26 To - Total]] -> 7901
A30: NAT|Non-transfer item | B30: 32|Infrastructure and planning services | C30: 2023_24 | D30: MTEF2023 | E30: 32 | F30: 1 | G30: 1 | H30: 57030 | I30: 12 | J30: 32 | K30: 01 | L30: 01 | M30: 057030 | N30: 000012 | O30: 32|01|01 | P30: 1 | Q30: 1 | R30: 2 | S30: 12 | T30: 12 | U30: 01|01|02|12|12 | V30: National | W30: Forestry, Fisheries and the Environment | X30: Administration | Y30: Management | Z30: Non-transfer item | AA30: Current | AB30: Current payments | AC30: Goods and services | AD30: Infrastructure and planning services | AE30: Infrastructure and planning services | AF30: Economic development | AG30: Economic regulation and infrastructure | AH30: NAT | AI30: 0 | AJ30: 0 | AK30: 0 | AL30: 0 | AM30: 0 | AN30: 0 | AO30: 0 | AP30: 0 | AQ30: 0 | AR30: 0 | AS30: 0 | BX30: =Dataset[[#This Row],[2023/24 From - Spending review Topic 1]]+Dataset[[#This Row],[2023/24 From - Spending review Topic 2]]+Dataset[[#This Row],[2023/24 From - Spending review Topic 3]]+Dataset[[#This Row],[2023/24 From - Spending review Topic 4]]+Dataset[[#This Row],[2023/24 From - Other reallocations]] -> 0 | BY30: =Dataset[[#This Row],[2024/25 From - Spending review Topic 1]]+Dataset[[#This Row],[2024/25 From - Spending review Topic 2]]+Dataset[[#This Row],[2024/25 From - Spending review Topic 3]]+Dataset[[#This Row],[2024/25 From - Spending review Topic 4]]+Dataset[[#This Row],[2024/25 From - Other reallocations]] -> 0 | BZ30: =Dataset[[#This Row],[2025/26 From - Spending review Topic 1]]+Dataset[[#This Row],[2025/26 From - Spending review Topic 2]]+Dataset[[#This Row],[2025/26 From - Spending review Topic 3]]+Dataset[[#This Row],[2025/26 From - Spending review Topic 4]]+Dataset[[#This Row],[2025/26 From - Other reallocations]] -> 0 | CA30: =Dataset[[#This Row],[2023/24 To - Spending review Topic 1]]+Dataset[[#This Row],[2023/24 To - Spending review Topic 2]]+Dataset[[#This Row],[2023/24 To - Spending review Topic 3]]+Dataset[[#This Row],[2023/24 To - Spending review Topic 4]]+Dataset[[#This Row],[2023/24 To - Other reallocations]] -> 0 | CB30: =Dataset[[#This Row],[2024/25 To - Spending review Topic 1]]+Dataset[[#This Row],[2024/25 To - Spending review Topic 2]]+Dataset[[#This Row],[2024/25 To - Spending review Topic 3]]+Dataset[[#This Row],[2024/25 To - Spending review Topic 4]]+Dataset[[#This Row],[2024/25 To - Other reallocations]] -> 0 | CC30: =Dataset[[#This Row],[2025/26 To - Spending review Topic 1]]+Dataset[[#This Row],[2025/26 To - Spending review Topic 2]]+Dataset[[#This Row],[2025/26 To - Spending review Topic 3]]+Dataset[[#This Row],[2025/26 To - Spending review Topic 4]]+Dataset[[#This Row],[2025/26 To - Other reallocations]] -> 0 | CD30: =Dataset[[#This Row],[2023/24 Baseline]]+Dataset[[#This Row],[2023/24 From - Total]]+Dataset[[#This Row],[2023/24 To - Total]] -> 0 | CE30: =Dataset[[#This Row],[2024/25 Baseline]]+Dataset[[#This Row],[2024/25 From - Total]]+Dataset[[#This Row],[2024/25 To - Total]] -> 0 | CF30: =Dataset[[#This Row],[2025/26 Baseline]]+Dataset[[#This Row],[2025/26 From - Total]]+Dataset[[#This Row],[2025/26 To - Total]] -> 0
A31: NAT|Non-transfer item | B31: 32|Laboratory services | C31: 2023_24 | D31: MTEF2023 | E31: 32 | F31: 1 | G31: 1 | H31: 57031 | I31: 13 | J31: 32 | K31: 01 | L31: 01 | M31: 057031 | N31: 000013 | O31: 32|01|01 | P31: 1 | Q31: 1 | R31: 2 | S31: 13 | T31: 13 | U31: 01|01|02|13|13 | V31: National | W31: Forestry, Fisheries and the Environment | X31: Administration | Y31: Management | Z31: Non-transfer item | AA31: Current | AB31: Current payments | AC31: Goods and services | AD31: Laboratory services | AE31: Laboratory services | AF31: Economic development | AG31: Economic regulation and infrastructure | AH31: NAT | AI31: 0 | AJ31: 0 | AK31: 0 | AL31: 0 | AM31: 0 | AN31: 0 | AO31: 0 | AP31: 0 | AQ31: 0 | AR31: 0 | AS31: 0 | BX31: =Dataset[[#This Row],[2023/24 From - Spending review Topic 1]]+Dataset[[#This Row],[2023/24 From - Spending review Topic 2]]+Dataset[[#This Row],[2023/24 From - Spending review Topic 3]]+Dataset[[#This Row],[2023/24 From - Spending review Topic 4]]+Dataset[[#This Row],[2023/24 From - Other reallocations]] -> 0 | BY31: =Dataset[[#This Row],[2024/25 From - Spending review Topic 1]]+Dataset[[#This Row],[2024/25 From - Spending review Topic 2]]+Dataset[[#This Row],[2024/25 From - Spending review Topic 3]]+Dataset[[#This Row],[2024/25 From - Spending review Topic 4]]+Dataset[[#This Row],[2024/25 From - Other reallocations]] -> 0 | BZ31: =Dataset[[#This Row],[2025/26 From - Spending review Topic 1]]+Dataset[[#This Row],[2025/26 From - Spending review Topic 2]]+Dataset[[#This Row],[2025/26 From - Spending review Topic 3]]+Dataset[[#This Row],[2025/26 From - Spending review Topic 4]]+Dataset[[#This Row],[2025/26 From - Other reallocations]] -> 0 | CA31: =Dataset[[#This Row],[2023/24 To - Spending review Topic 1]]+Dataset[[#This Row],[2023/24 To - Spending review Topic 2]]+Dataset[[#This Row],[2023/24 To - Spending review Topic 3]]+Dataset[[#This Row],[2023/24 To - Spending review Topic 4]]+Dataset[[#This Row],[2023/24 To - Other reallocations]] -> 0 | CB31: =Dataset[[#This Row],[2024/25 To - Spending review Topic 1]]+Dataset[[#This Row],[2024/25 To - Spending review Topic 2]]+Dataset[[#This Row],[2024/25 To - Spending review Topic 3]]+Dataset[[#This Row],[2024/25 To - Spending review Topic 4]]+Dataset[[#This Row],[2024/25 To - Other reallocations]] -> 0 | CC31: =Dataset[[#This Row],[2025/26 To - Spending review Topic 1]]+Dataset[[#This Row],[2025/26 To - Spending review Topic 2]]+Dataset[[#This Row],[2025/26 To - Spending review Topic 3]]+Dataset[[#This Row],[2025/26 To - Spending review Topic 4]]+Dataset[[#This Row],[2025/26 To - Other reallocations]] -> 0 | CD31: =Dataset[[#This Row],[2023/24 Baseline]]+Dataset[[#This Row],[2023/24 From - Total]]+Dataset[[#This Row],[2023/24 To - Total]] -> 0 | CE31: =Dataset[[#This Row],[2024/25 Baseline]]+Dataset[[#This Row],[2024/25 From - Total]]+Dataset[[#This Row],[2024/25 To - Total]] -> 0 | CF31: =Dataset[[#This Row],[2025/26 Baseline]]+Dataset[[#This Row],[2025/26 From - Total]]+Dataset[[#This Row],[2025/26 To - Total]] -> 0
A32: NAT|Non-transfer item | B32: 32|Legal services (G&S) | C32: 2023_24 | D32: MTEF2023 | E32: 32 | F32: 1 | G32: 1 | H32: 57032 | I32: 14 | J32: 32 | K32: 01 | L32: 01 | M32: 057032 | N32: 000014 | O32: 32|01|01 | P32: 1 | Q32: 1 | R32: 2 | S32: 14 | T32: 14 | U32: 01|01|02|14|14 | V32: National | W32: Forestry, Fisheries and the Environment | X32: Administration | Y32: Management | Z32: Non-transfer item | AA32: Current | AB32: Current payments | AC32: Goods and services | AD32: Legal services (G&S) | AE32: Legal services (G&S) | AF32: Economic development | AG32: Economic regulation and infrastructure | AH32: NAT | AI32: 0 | AJ32: 0 | AK32: 19192 | AL32: 60 | AM32: 60 | AN32: 60 | AO32: 0 | AP32: 2600 | AQ32: 2399 | AR32: 3051 | AS32: 3188 | BX32: =Dataset[[#This Row],[2023/24 From - Spending review Topic 1]]+Dataset[[#This Row],[2023/24 From - Spending review Topic 2]]+Dataset[[#This Row],[2023/24 From - Spending review Topic 3]]+Dataset[[#This Row],[2023/24 From - Spending review Topic 4]]+Dataset[[#This Row],[2023/24 From - Other reallocations]] -> 0 | BY32: =Dataset[[#This Row],[2024/25 From - Spending review Topic 1]]+Dataset[[#This Row],[2024/25 From - Spending review Topic 2]]+Dataset[[#This Row],[2024/25 From - Spending review Topic 3]]+Dataset[[#This Row],[2024/25 From - Spending review Topic 4]]+Dataset[[#This Row],[2024/25 From - Other reallocations]] -> 0 | BZ32: =Dataset[[#This Row],[2025/26 From - Spending review Topic 1]]+Dataset[[#This Row],[2025/26 From - Spending review Topic 2]]+Dataset[[#This Row],[2025/26 From - Spending review Topic 3]]+Dataset[[#This Row],[2025/26 From - Spending review Topic 4]]+Dataset[[#This Row],[2025/26 From - Other reallocations]] -> 0 | CA32: =Dataset[[#This Row],[2023/24 To - Spending review Topic 1]]+Dataset[[#This Row],[2023/24 To - Spending review Topic 2]]+Dataset[[#This Row],[2023/24 To - Spending review Topic 3]]+Dataset[[#This Row],[2023/24 To - Spending review Topic 4]]+Dataset[[#This Row],[2023/24 To - Other reallocations]] -> 0 | CB32: =Dataset[[#This Row],[2024/25 To - Spending review Topic 1]]+Dataset[[#This Row],[2024/25 To - Spending review Topic 2]]+Dataset[[#This Row],[2024/25 To - Spending review Topic 3]]+Dataset[[#This Row],[2024/25 To - Spending review Topic 4]]+Dataset[[#This Row],[2024/25 To - Other reallocations]] -> 0 | CC32: =Dataset[[#This Row],[2025/26 To - Spending review Topic 1]]+Dataset[[#This Row],[2025/26 To - Spending review Topic 2]]+Dataset[[#This Row],[2025/26 To - Spending review Topic 3]]+Dataset[[#This Row],[2025/26 To - Spending review Topic 4]]+Dataset[[#This Row],[2025/26 To - Other reallocations]] -> 0 | CD32: =Dataset[[#This Row],[2023/24 Baseline]]+Dataset[[#This Row],[2023/24 From - Total]]+Dataset[[#This Row],[2023/24 To - Total]] -> 2399 | CE32: =Dataset[[#This Row],[2024/25 Baseline]]+Dataset[[#This Row],[2024/25 From - Total]]+Dataset[[#This Row],[2024/25 To - Total]] -> 3051 | CF32: =Dataset[[#This Row],[2025/26 Baseline]]+Dataset[[#This Row],[2025/26 From - Total]]+Dataset[[#This Row],[2025/26 To - Total]] -> 3188
A33: NAT|Non-transfer item | B33: 32|Science and technological services | C33: 2023_24 | D33: MTEF2023 | E33: 32 | F33: 1 | G33: 1 | H33: 57033 | I33: 15 | J33: 32 | K33: 01 | L33: 01 | M33: 057033 | N33: 000015 | O33: 32|01|01 | P33: 1 | Q33: 1 | R33: 2 | S33: 15 | T33: 15 | U33: 01|01|02|15|15 | V33: National | W33: Forestry, Fisheries and the Environment | X33: Administration | Y33: Management | Z33: Non-transfer item | AA33: Current | AB33: Current payments | AC33: Goods and services | AD33: Science and technological services | AE33: Science and technological services | AF33: Economic development | AG33: Economic regulation and infrastructure | AH33: NAT | AI33: 0 | AJ33: 0 | AK33: 0 | AL33: 0 | AM33: 0 | AN33: 0 | AO33: 0 | AP33: 0 | AQ33: 0 | AR33: 0 | AS33: 0 | BX33: =Dataset[[#This Row],[2023/24 From - Spending review Topic 1]]+Dataset[[#This Row],[2023/24 From - Spending review Topic 2]]+Dataset[[#This Row],[2023/24 From - Spending review Topic 3]]+Dataset[[#This Row],[2023/24 From - Spending review Topic 4]]+Dataset[[#This Row],[2023/24 From - Other reallocations]] -> 0 | BY33: =Dataset[[#This Row],[2024/25 From - Spending review Topic 1]]+Dataset[[#This Row],[2024/25 From - Spending review Topic 2]]+Dataset[[#This Row],[2024/25 From - Spending review Topic 3]]+Dataset[[#This Row],[2024/25 From - Spending review Topic 4]]+Dataset[[#This Row],[2024/25 From - Other reallocations]] -> 0 | BZ33: =Dataset[[#This Row],[2025/26 From - Spending review Topic 1]]+Dataset[[#This Row],[2025/26 From - Spending review Topic 2]]+Dataset[[#This Row],[2025/26 From - Spending review Topic 3]]+Dataset[[#This Row],[2025/26 From - Spending review Topic 4]]+Dataset[[#This Row],[2025/26 From - Other reallocations]] -> 0 | CA33: =Dataset[[#This Row],[2023/24 To - Spending review Topic 1]]+Dataset[[#This Row],[2023/24 To - Spending review Topic 2]]+Dataset[[#This Row],[2023/24 To - Spending review Topic 3]]+Dataset[[#This Row],[2023/24 To - Spending review Topic 4]]+Dataset[[#This Row],[2023/24 To - Other reallocations]] -> 0 | CB33: =Dataset[[#This Row],[2024/25 To - Spending review Topic 1]]+Dataset[[#This Row],[2024/25 To - Spending review Topic 2]]+Dataset[[#This Row],[2024/25 To - Spending review Topic 3]]+Dataset[[#This Row],[2024/25 To - Spending review Topic 4]]+Dataset[[#This Row],[2024/25 To - Other reallocations]] -> 0 | CC33: =Dataset[[#This Row],[2025/26 To - Spending review Topic 1]]+Dataset[[#This Row],[2025/26 To - Spending review Topic 2]]+Dataset[[#This Row],[2025/26 To - Spending review Topic 3]]+Dataset[[#This Row],[2025/26 To - Spending review Topic 4]]+Dataset[[#This Row],[2025/26 To - Other reallocations]] -> 0 | CD33: =Dataset[[#This Row],[2023/24 Baseline]]+Dataset[[#This Row],[2023/24 From - Total]]+Dataset[[#This Row],[2023/24 To - Total]] -> 0 | CE33: =Dataset[[#This Row],[2024/25 Baseline]]+Dataset[[#This Row],[2024/25 From - Total]]+Dataset[[#This Row],[2024/25 To - Total]] -> 0 | CF33: =Dataset[[#This Row],[2025/26 Baseline]]+Dataset[[#This Row],[2025/26 From - Total]]+Dataset[[#This Row],[2025/26 To - Total]] -> 0
A34: NAT|Non-transfer item | B34: 32|Contractors | C34: 2023_24 | D34: MTEF2023 | E34: 32 | F34: 1 | G34: 1 | H34: 57034 | I34: 16 | J34: 32 | K34: 01 | L34: 01 | M34: 057034 | N34: 000016 | O34: 32|01|01 | P34: 1 | Q34: 1 | R34: 2 | S34: 16 | T34: 16 | U34: 01|01|02|16|16 | V34: National | W34: Forestry, Fisheries and the Environment | X34: Administration | Y34: Management | Z34: Non-transfer item | AA34: Current | AB34: Current payments | AC34: Goods and services | AD34: Contractors | AE34: Contractors | AF34: Economic development | AG34: Economic regulation and infrastructure | AH34: NAT | AI34: 4 | AJ34: 968 | AK34: 62 | AL34: 446 | AM34: 446 | AN34: 0 | AO34: 0 | AP34: 17 | AQ34: 16 | AR34: 383 | AS34: 400 | BX34: =Dataset[[#This Row],[2023/24 From - Spending review Topic 1]]+Dataset[[#This Row],[2023/24 From - Spending review Topic 2]]+Dataset[[#This Row],[2023/24 From - Spending review Topic 3]]+Dataset[[#This Row],[2023/24 From - Spending review Topic 4]]+Dataset[[#This Row],[2023/24 From - Other reallocations]] -> 0 | BY34: =Dataset[[#This Row],[2024/25 From - Spending review Topic 1]]+Dataset[[#This Row],[2024/25 From - Spending review Topic 2]]+Dataset[[#This Row],[2024/25 From - Spending review Topic 3]]+Dataset[[#This Row],[2024/25 From - Spending review Topic 4]]+Dataset[[#This Row],[2024/25 From - Other reallocations]] -> 0 | BZ34: =Dataset[[#This Row],[2025/26 From - Spending review Topic 1]]+Dataset[[#This Row],[2025/26 From - Spending review Topic 2]]+Dataset[[#This Row],[2025/26 From - Spending review Topic 3]]+Dataset[[#This Row],[2025/26 From - Spending review Topic 4]]+Dataset[[#This Row],[2025/26 From - Other reallocations]] -> 0 | CA34: =Dataset[[#This Row],[2023/24 To - Spending review Topic 1]]+Dataset[[#This Row],[2023/24 To - Spending review Topic 2]]+Dataset[[#This Row],[2023/24 To - Spending review Topic 3]]+Dataset[[#This Row],[2023/24 To - Spending review Topic 4]]+Dataset[[#This Row],[2023/24 To - Other reallocations]] -> 0 | CB34: =Dataset[[#This Row],[2024/25 To - Spending review Topic 1]]+Dataset[[#This Row],[2024/25 To - Spending review Topic 2]]+Dataset[[#This Row],[2024/25 To - Spending review Topic 3]]+Dataset[[#This Row],[2024/25 To - Spending review Topic 4]]+Dataset[[#This Row],[2024/25 To - Other reallocations]] -> 0 | CC34: =Dataset[[#This Row],[2025/26 To - Spending review Topic 1]]+Dataset[[#This Row],[2025/26 To - Spending review Topic 2]]+Dataset[[#This Row],[2025/26 To - Spending review Topic 3]]+Dataset[[#This Row],[2025/26 To - Spending review Topic 4]]+Dataset[[#This Row],[2025/26 To - Other reallocations]] -> 0 | CD34: =Dataset[[#This Row],[2023/24 Baseline]]+Dataset[[#This Row],[2023/24 From - Total]]+Dataset[[#This Row],[2023/24 To - Total]] -> 16 | CE34: =Dataset[[#This Row],[2024/25 Baseline]]+Dataset[[#This Row],[2024/25 From - Total]]+Dataset[[#This Row],[2024/25 To - Total]] -> 383 | CF34: =Dataset[[#This Row],[2025/26 Baseline]]+Dataset[[#This Row],[2025/26 From - Total]]+Dataset[[#This Row],[2025/26 To - Total]] -> 400
A35: NAT|Non-transfer item | B35: 32|Agency and support/outsourced services | C35: 2023_24 | D35: MTEF2023 | E35: 32 | F35: 1 | G35: 1 | H35: 57035 | I35: 17 | J35: 32 | K35: 01 | L35: 01 | M35: 057035 | N35: 000017 | O35: 32|01|01 | P35: 1 | Q35: 1 | R35: 2 | S35: 17 | T35: 17 | U35: 01|01|02|17|17 | V35: National | W35: Forestry, Fisheries and the Environment | X35: Administration | Y35: Management | Z35: Non-transfer item | AA35: Current | AB35: Current payments | AC35: Goods and services | AD35: Agency and support/outsourced services | AE35: Agency and support/outsourced services | AF35: Economic development | AG35: Economic regulation and infrastructure | AH35: NAT | AI35: 0 | AJ35: 0 | AK35: 6281 | AL35: 130 | AM35: 130 | AN35: 0 | AO35: 0 | AP35: 0 | AQ35: 0 | AR35: 112 | AS35: 117 | BX35: =Dataset[[#This Row],[2023/24 From - Spending review Topic 1]]+Dataset[[#This Row],[2023/24 From - Spending review Topic 2]]+Dataset[[#This Row],[2023/24 From - Spending review Topic 3]]+Dataset[[#This Row],[2023/24 From - Spending review Topic 4]]+Dataset[[#This Row],[2023/24 From - Other reallocations]] -> 0 | BY35: =Dataset[[#This Row],[2024/25 From - Spending review Topic 1]]+Dataset[[#This Row],[2024/25 From - Spending review Topic 2]]+Dataset[[#This Row],[2024/25 From - Spending review Topic 3]]+Dataset[[#This Row],[2024/25 From - Spending review Topic 4]]+Dataset[[#This Row],[2024/25 From - Other reallocations]] -> 0 | BZ35: =Dataset[[#This Row],[2025/26 From - Spending review Topic 1]]+Dataset[[#This Row],[2025/26 From - Spending review Topic 2]]+Dataset[[#This Row],[2025/26 From - Spending review Topic 3]]+Dataset[[#This Row],[2025/26 From - Spending review Topic 4]]+Dataset[[#This Row],[2025/26 From - Other reallocations]] -> 0 | CA35: =Dataset[[#This Row],[2023/24 To - Spending review Topic 1]]+Dataset[[#This Row],[2023/24 To - Spending review Topic 2]]+Dataset[[#This Row],[2023/24 To - Spending review Topic 3]]+Dataset[[#This Row],[2023/24 To - Spending review Topic 4]]+Dataset[[#This Row],[2023/24 To - Other reallocations]] -> 0 | CB35: =Dataset[[#This Row],[2024/25 To - Spending review Topic 1]]+Dataset[[#This Row],[2024/25 To - Spending review Topic 2]]+Dataset[[#This Row],[2024/25 To - Spending review Topic 3]]+Dataset[[#This Row],[2024/25 To - Spending review Topic 4]]+Dataset[[#This Row],[2024/25 To - Other reallocations]] -> 0 | CC35: =Dataset[[#This Row],[2025/26 To - Spending review Topic 1]]+Dataset[[#This Row],[2025/26 To - Spending review Topic 2]]+Dataset[[#This Row],[2025/26 To - Spending review Topic 3]]+Dataset[[#This Row],[2025/26 To - Spending review Topic 4]]+Dataset[[#This Row],[2025/26 To - Other reallocations]] -> 0 | CD35: =Dataset[[#This Row],[2023/24 Baseline]]+Dataset[[#This Row],[2023/24 From - Total]]+Dataset[[#This Row],[2023/24 To - Total]] -> 0 | CE35: =Dataset[[#This Row],[2024/25 Baseline]]+Dataset[[#This Row],[2024/25 From - Total]]+Dataset[[#This Row],[2024/25 To - Total]] -> 112 | CF35: =Dataset[[#This Row],[2025/26 Baseline]]+Dataset[[#This Row],[2025/26 From - Total]]+Dataset[[#This Row],[2025/26 To - Total]] -> 117
A36: NAT|Non-transfer item | B36: 32|Entertainment | C36: 2023_24 | D36: MTEF2023 | E36: 32 | F36: 1 | G36: 1 | H36: 57036 | I36: 18 | J36: 32 | K36: 01 | L36: 01 | M36: 057036 | N36: 000018 | O36: 32|01|01 | P36: 1 | Q36: 1 | R36: 2 | S36: 18 | T36: 18 | U36: 01|01|02|18|18 | V36: National | W36: Forestry, Fisheries and the Environment | X36: Administration | Y36: Management | Z36: Non-transfer item | AA36: Current | AB36: Current payments | AC36: Goods and services | AD36: Entertainment | AE36: Entertainment | AF36: Economic development | AG36: Economic regulation and infrastructure | AH36: NAT | AI36: 7 | AJ36: 0 | AK36: 1 | AL36: 4 | AM36: 4 | AN36: 0 | AO36: 0 | AP36: 20 | AQ36: 20 | AR36: 3 | AS36: 3 | BX36: =Dataset[[#This Row],[2023/24 From - Spending review Topic 1]]+Dataset[[#This Row],[2023/24 From - Spending review Topic 2]]+Dataset[[#This Row],[2023/24 From - Spending review Topic 3]]+Dataset[[#This Row],[2023/24 From - Spending review Topic 4]]+Dataset[[#This Row],[2023/24 From - Other reallocations]] -> 0 | BY36: =Dataset[[#This Row],[2024/25 From - Spending review Topic 1]]+Dataset[[#This Row],[2024/25 From - Spending review Topic 2]]+Dataset[[#This Row],[2024/25 From - Spending review Topic 3]]+Dataset[[#This Row],[2024/25 From - Spending review Topic 4]]+Dataset[[#This Row],[2024/25 From - Other reallocations]] -> 0 | BZ36: =Dataset[[#This Row],[2025/26 From - Spending review Topic 1]]+Dataset[[#This Row],[2025/26 From - Spending review Topic 2]]+Dataset[[#This Row],[2025/26 From - Spending review Topic 3]]+Dataset[[#This Row],[2025/26 From - Spending review Topic 4]]+Dataset[[#This Row],[2025/26 From - Other reallocations]] -> 0 | CA36: =Dataset[[#This Row],[2023/24 To - Spending review Topic 1]]+Dataset[[#This Row],[2023/24 To - Spending review Topic 2]]+Dataset[[#This Row],[2023/24 To - Spending review Topic 3]]+Dataset[[#This Row],[2023/24 To - Spending review Topic 4]]+Dataset[[#This Row],[2023/24 To - Other reallocations]] -> 0 | CB36: =Dataset[[#This Row],[2024/25 To - Spending review Topic 1]]+Dataset[[#This Row],[2024/25 To - Spending review Topic 2]]+Dataset[[#This Row],[2024/25 To - Spending review Topic 3]]+Dataset[[#This Row],[2024/25 To - Spending review Topic 4]]+Dataset[[#This Row],[2024/25 To - Other reallocations]] -> 0 | CC36: =Dataset[[#This Row],[2025/26 To - Spending review Topic 1]]+Dataset[[#This Row],[2025/26 To - Spending review Topic 2]]+Dataset[[#This Row],[2025/26 To - Spending review Topic 3]]+Dataset[[#This Row],[2025/26 To - Spending review Topic 4]]+Dataset[[#This Row],[2025/26 To - Other reallocations]] -> 0 | CD36: =Dataset[[#This Row],[2023/24 Baseline]]+Dataset[[#This Row],[2023/24 From - Total]]+Dataset[[#This Row],[2023/24 To - Total]] -> 20 | CE36: =Dataset[[#This Row],[2024/25 Baseline]]+Dataset[[#This Row],[2024/25 From - Total]]+Dataset[[#This Row],[2024/25 To - Total]] -> 3 | CF36: =Dataset[[#This Row],[2025/26 Baseline]]+Dataset[[#This Row],[2025/26 From - Total]]+Dataset[[#This Row],[2025/26 To - Total]] -> 3
A37: NAT|Non-transfer item | B37: 32|Fleet services (including government motor transport) | C37: 2023_24 | D37: MTEF2023 | E37: 32 | F37: 1 | G37: 1 | H37: 57037 | I37: 19 | J37: 32 | K37: 01 | L37: 01 | M37: 057037 | N37: 000019 | O37: 32|01|01 | P37: 1 | Q37: 1 | R37: 2 | S37: 19 | T37: 19 | U37: 01|01|02|19|19 | V37: National | W37: Forestry, Fisheries and the Environment | X37: Administration | Y37: Management | Z37: Non-transfer item | AA37: Current | AB37: Current payments | AC37: Goods and services | AD37: Fleet services (including government motor transport) | AE37: Fleet services (including government motor transport) | AF37: Economic development | AG37: Economic regulation and infrastructure | AH37: NAT | AI37: 150 | AJ37: 145 | AK37: 412 | AL37: 183 | AM37: 183 | AN37: 0 | AO37: 0 | AP37: 215 | AQ37: 220 | AR37: 157 | AS37: 164 | BX37: =Dataset[[#This Row],[2023/24 From - Spending review Topic 1]]+Dataset[[#This Row],[2023/24 From - Spending review Topic 2]]+Dataset[[#This Row],[2023/24 From - Spending review Topic 3]]+Dataset[[#This Row],[2023/24 From - Spending review Topic 4]]+Dataset[[#This Row],[2023/24 From - Other reallocations]] -> 0 | BY37: =Dataset[[#This Row],[2024/25 From - Spending review Topic 1]]+Dataset[[#This Row],[2024/25 From - Spending review Topic 2]]+Dataset[[#This Row],[2024/25 From - Spending review Topic 3]]+Dataset[[#This Row],[2024/25 From - Spending review Topic 4]]+Dataset[[#This Row],[2024/25 From - Other reallocations]] -> 0 | BZ37: =Dataset[[#This Row],[2025/26 From - Spending review Topic 1]]+Dataset[[#This Row],[2025/26 From - Spending review Topic 2]]+Dataset[[#This Row],[2025/26 From - Spending review Topic 3]]+Dataset[[#This Row],[2025/26 From - Spending review Topic 4]]+Dataset[[#This Row],[2025/26 From - Other reallocations]] -> 0 | CA37: =Dataset[[#This Row],[2023/24 To - Spending review Topic 1]]+Dataset[[#This Row],[2023/24 To - Spending review Topic 2]]+Dataset[[#This Row],[2023/24 To - Spending review Topic 3]]+Dataset[[#This Row],[2023/24 To - Spending review Topic 4]]+Dataset[[#This Row],[2023/24 To - Other reallocations]] -> 0 | CB37: =Dataset[[#This Row],[2024/25 To - Spending review Topic 1]]+Dataset[[#This Row],[2024/25 To - Spending review Topic 2]]+Dataset[[#This Row],[2024/25 To - Spending review Topic 3]]+Dataset[[#This Row],[2024/25 To - Spending review Topic 4]]+Dataset[[#This Row],[2024/25 To - Other reallocations]] -> 0 | CC37: =Dataset[[#This Row],[2025/26 To - Spending review Topic 1]]+Dataset[[#This Row],[2025/26 To - Spending review Topic 2]]+Dataset[[#This Row],[2025/26 To - Spending review Topic 3]]+Dataset[[#This Row],[2025/26 To - Spending review Topic 4]]+Dataset[[#This Row],[2025/26 To - Other reallocations]] -> 0 | CD37: =Dataset[[#This Row],[2023/24 Baseline]]+Dataset[[#This Row],[2023/24 From - Total]]+Dataset[[#This Row],[2023/24 To - Total]] -> 220 | CE37: =Dataset[[#This Row],[2024/25 Baseline]]+Dataset[[#This Row],[2024/25 From - Total]]+Dataset[[#This Row],[2024/25 To - Total]] -> 157 | CF37: =Dataset[[#This Row],[2025/26 Baseline]]+Dataset[[#This Row],[2025/26 From - Total]]+Dataset[[#This Row],[2025/26 To - Total]] -> 164
A38: NAT|Non-transfer item | B38: 32|Housing | C38: 2023_24 | D38: MTEF2023 | E38: 32 | F38: 1 | G38: 1 | H38: 57038 | I38: 20 | J38: 32 | K38: 01 | L38: 01 | M38: 057038 | N38: 000020 | O38: 32|01|01 | P38: 1 | Q38: 1 | R38: 2 | S38: 20 | T38: 20 | U38: 01|01|02|20|20 | V38: National | W38: Forestry, Fisheries and the Environment | X38: Administration | Y38: Management | Z38: Non-transfer item | AA38: Current | AB38: Current payments | AC38: Goods and services | AD38: Housing | AE38: Housing | AF38: Economic development | AG38: Economic regulation and infrastructure | AH38: NAT | AI38: 0 | AJ38: 0 | AK38: 0 | AL38: 0 | AM38: 0 | AN38: 0 | AO38: 0 | AP38: 0 | AQ38: 0 | AR38: 0 | AS38: 0 | BX38: =Dataset[[#This Row],[2023/24 From - Spending review Topic 1]]+Dataset[[#This Row],[2023/24 From - Spending review Topic 2]]+Dataset[[#This Row],[2023/24 From - Spending review Topic 3]]+Dataset[[#This Row],[2023/24 From - Spending review Topic 4]]+Dataset[[#This Row],[2023/24 From - Other reallocations]] -> 0 | BY38: =Dataset[[#This Row],[2024/25 From - Spending review Topic 1]]+Dataset[[#This Row],[2024/25 From - Spending review Topic 2]]+Dataset[[#This Row],[2024/25 From - Spending review Topic 3]]+Dataset[[#This Row],[2024/25 From - Spending review Topic 4]]+Dataset[[#This Row],[2024/25 From - Other reallocations]] -> 0 | BZ38: =Dataset[[#This Row],[2025/26 From - Spending review Topic 1]]+Dataset[[#This Row],[2025/26 From - Spending review Topic 2]]+Dataset[[#This Row],[2025/26 From - Spending review Topic 3]]+Dataset[[#This Row],[2025/26 From - Spending review Topic 4]]+Dataset[[#This Row],[2025/26 From - Other reallocations]] -> 0 | CA38: =Dataset[[#This Row],[2023/24 To - Spending review Topic 1]]+Dataset[[#This Row],[2023/24 To - Spending review Topic 2]]+Dataset[[#This Row],[2023/24 To - Spending review Topic 3]]+Dataset[[#This Row],[2023/24 To - Spending review Topic 4]]+Dataset[[#This Row],[2023/24 To - Other reallocations]] -> 0 | CB38: =Dataset[[#This Row],[2024/25 To - Spending review Topic 1]]+Dataset[[#This Row],[2024/25 To - Spending review Topic 2]]+Dataset[[#This Row],[2024/25 To - Spending review Topic 3]]+Dataset[[#This Row],[2024/25 To - Spending review Topic 4]]+Dataset[[#This Row],[2024/25 To - Other reallocations]] -> 0 | CC38: =Dataset[[#This Row],[2025/26 To - Spending review Topic 1]]+Dataset[[#This Row],[2025/26 To - Spending review Topic 2]]+Dataset[[#This Row],[2025/26 To - Spending review Topic 3]]+Dataset[[#This Row],[2025/26 To - Spending review Topic 4]]+Dataset[[#This Row],[2025/26 To - Other reallocations]] -> 0 | CD38: =Dataset[[#This Row],[2023/24 Baseline]]+Dataset[[#This Row],[2023/24 From - Total]]+Dataset[[#This Row],[2023/24 To - Total]] -> 0 | CE38: =Dataset[[#This Row],[2024/25 Baseline]]+Dataset[[#This Row],[2024/25 From - Total]]+Dataset[[#This Row],[2024/25 To - Total]] -> 0 | CF38: =Dataset[[#This Row],[2025/26 Baseline]]+Dataset[[#This Row],[2025/26 From - Total]]+Dataset[[#This Row],[2025/26 To - Total]] -> 0
A39: NAT|Non-transfer item | B39: 32|Inventory: Clothing material and accessories | C39: 2023_24 | D39: MTEF2023 | E39: 32 | F39: 1 | G39: 1 | H39: 57039 | I39: 21 | J39: 32 | K39: 01 | L39: 01 | M39: 057039 | N39: 000021 | O39: 32|01|01 | P39: 1 | Q39: 1 | R39: 2 | S39: 21 | T39: 21 | U39: 01|01|02|21|21 | V39: National | W39: Forestry, Fisheries and the Environment | X39: Administration | Y39: Management | Z39: Non-transfer item | AA39: Current | AB39: Current payments | AC39: Goods and services | AD39: Inventory: Clothing material and accessories | AE39: Inventory: Clothing material and accessories | AF39: Economic development | AG39: Economic regulation and infrastructure | AH39: NAT | AI39: 0 | AJ39: 0 | AK39: 0 | AL39: 0 | AM39: 0 | AN39: 0 | AO39: 0 | AP39: 0 | AQ39: 0 | AR39: 0 | AS39: 0 | BX39: =Dataset[[#This Row],[2023/24 From - Spending review Topic 1]]+Dataset[[#This Row],[2023/24 From - Spending review Topic 2]]+Dataset[[#This Row],[2023/24 From - Spending review Topic 3]]+Dataset[[#This Row],[2023/24 From - Spending review Topic 4]]+Dataset[[#This Row],[2023/24 From - Other reallocations]] -> 0 | BY39: =Dataset[[#This Row],[2024/25 From - Spending review Topic 1]]+Dataset[[#This Row],[2024/25 From - Spending review Topic 2]]+Dataset[[#This Row],[2024/25 From - Spending review Topic 3]]+Dataset[[#This Row],[2024/25 From - Spending review Topic 4]]+Dataset[[#This Row],[2024/25 From - Other reallocations]] -> 0 | BZ39: =Dataset[[#This Row],[2025/26 From - Spending review Topic 1]]+Dataset[[#This Row],[2025/26 From - Spending review Topic 2]]+Dataset[[#This Row],[2025/26 From - Spending review Topic 3]]+Dataset[[#This Row],[2025/26 From - Spending review Topic 4]]+Dataset[[#This Row],[2025/26 From - Other reallocations]] -> 0 | CA39: =Dataset[[#This Row],[2023/24 To - Spending review Topic 1]]+Dataset[[#This Row],[2023/24 To - Spending review Topic 2]]+Dataset[[#This Row],[2023/24 To - Spending review Topic 3]]+Dataset[[#This Row],[2023/24 To - Spending review Topic 4]]+Dataset[[#This Row],[2023/24 To - Other reallocations]] -> 0 | CB39: =Dataset[[#This Row],[2024/25 To - Spending review Topic 1]]+Dataset[[#This Row],[2024/25 To - Spending review Topic 2]]+Dataset[[#This Row],[2024/25 To - Spending review Topic 3]]+Dataset[[#This Row],[2024/25 To - Spending review Topic 4]]+Dataset[[#This Row],[2024/25 To - Other reallocations]] -> 0 | CC39: =Dataset[[#This Row],[2025/26 To - Spending review Topic 1]]+Dataset[[#This Row],[2025/26 To - Spending review Topic 2]]+Dataset[[#This Row],[2025/26 To - Spending review Topic 3]]+Dataset[[#This Row],[2025/26 To - Spending review Topic 4]]+Dataset[[#This Row],[2025/26 To - Other reallocations]] -> 0 | CD39: =Dataset[[#This Row],[2023/24 Baseline]]+Dataset[[#This Row],[2023/24 From - Total]]+Dataset[[#This Row],[2023/24 To - Total]] -> 0 | CE39: =Dataset[[#This Row],[2024/25 Baseline]]+Dataset[[#This Row],[2024/25 From - Total]]+Dataset[[#This Row],[2024/25 To - Total]] -> 0 | CF39: =Dataset[[#This Row],[2025/26 Baseline]]+Dataset[[#This Row],[2025/26 From - Total]]+Dataset[[#This Row],[2025/26 To - Total]] -> 0
A40: NAT|Non-transfer item | B40: 32|Inventory: Farming supplies | C40: 2023_24 | D40: MTEF2023 | E40: 32 | F40: 1 | G40: 1 | H40: 57040 | I40: 22 | J40: 32 | K40: 01 | L40: 01 | M40: 057040 | N40: 000022 | O40: 32|01|01 | P40: 1 | Q40: 1 | R40: 2 | S40: 22 | T40: 22 | U40: 01|01|02|22|22 | V40: National | W40: Forestry, Fisheries and the Environment | X40: Administration | Y40: Management | Z40: Non-transfer item | AA40: Current | AB40: Current payments | AC40: Goods and services | AD40: Inventory: Farming supplies | AE40: Inventory: Farming supplies | AF40: Economic development | AG40: Economic regulation and infrastructure | AH40: NAT | AI40: 0 | AJ40: 0 | AK40: 0 | AL40: 0 | AM40: 0 | AN40: 0 | AO40: 0 | AP40: 0 | AQ40: 0 | AR40: 0 | AS40: 0 | BX40: =Dataset[[#This Row],[2023/24 From - Spending review Topic 1]]+Dataset[[#This Row],[2023/24 From - Spending review Topic 2]]+Dataset[[#This Row],[2023/24 From - Spending review Topic 3]]+Dataset[[#This Row],[2023/24 From - Spending review Topic 4]]+Dataset[[#This Row],[2023/24 From - Other reallocations]] -> 0 | BY40: =Dataset[[#This Row],[2024/25 From - Spending review Topic 1]]+Dataset[[#This Row],[2024/25 From - Spending review Topic 2]]+Dataset[[#This Row],[2024/25 From - Spending review Topic 3]]+Dataset[[#This Row],[2024/25 From - Spending review Topic 4]]+Dataset[[#This Row],[2024/25 From - Other reallocations]] -> 0 | BZ40: =Dataset[[#This Row],[2025/26 From - Spending review Topic 1]]+Dataset[[#This Row],[2025/26 From - Spending review Topic 2]]+Dataset[[#This Row],[2025/26 From - Spending review Topic 3]]+Dataset[[#This Row],[2025/26 From - Spending review Topic 4]]+Dataset[[#This Row],[2025/26 From - Other reallocations]] -> 0 | CA40: =Dataset[[#This Row],[2023/24 To - Spending review Topic 1]]+Dataset[[#This Row],[2023/24 To - Spending review Topic 2]]+Dataset[[#This Row],[2023/24 To - Spending review Topic 3]]+Dataset[[#This Row],[2023/24 To - Spending review Topic 4]]+Dataset[[#This Row],[2023/24 To - Other reallocations]] -> 0 | CB40: =Dataset[[#This Row],[2024/25 To - Spending review Topic 1]]+Dataset[[#This Row],[2024/25 To - Spending review Topic 2]]+Dataset[[#This Row],[2024/25 To - Spending review Topic 3]]+Dataset[[#This Row],[2024/25 To - Spending review Topic 4]]+Dataset[[#This Row],[2024/25 To - Other reallocations]] -> 0 | CC40: =Dataset[[#This Row],[2025/26 To - Spending review Topic 1]]+Dataset[[#This Row],[2025/26 To - Spending review Topic 2]]+Dataset[[#This Row],[2025/26 To - Spending review Topic 3]]+Dataset[[#This Row],[2025/26 To - Spending review Topic 4]]+Dataset[[#This Row],[2025/26 To - Other reallocations]] -> 0 | CD40: =Dataset[[#This Row],[2023/24 Baseline]]+Dataset[[#This Row],[2023/24 From - Total]]+Dataset[[#This Row],[2023/24 To - Total]] -> 0 | CE40: =Dataset[[#This Row],[2024/25 Baseline]]+Dataset[[#This Row],[2024/25 From - Total]]+Dataset[[#This Row],[2024/25 To - Total]] -> 0 | CF40: =Dataset[[#This Row],[2025/26 Baseline]]+Dataset[[#This Row],[2025/26 From - Total]]+Dataset[[#This Row],[2025/26 To - Total]] -> 0
A41: NAT|Non-transfer item | B41: 32|Inventory: Food and food supplies | C41: 2023_24 | D41: MTEF2023 | E41: 32 | F41: 1 | G41: 1 | H41: 57041 | I41: 23 | J41: 32 | K41: 01 | L41: 01 | M41: 057041 | N41: 000023 | O41: 32|01|01 | P41: 1 | Q41: 1 | R41: 2 | S41: 23 | T41: 23 | U41: 01|01|02|23|23 | V41: National | W41: Forestry, Fisheries and the Environment | X41: Administration | Y41: Management | Z41: Non-transfer item | AA41: Current | AB41: Current payments | AC41: Goods and services | AD41: Inventory: Food and food supplies | AE41: Inventory: Food and food supplies | AF41: Economic development | AG41: Economic regulation and infrastructure | AH41: NAT | AI41: 0 | AJ41: 0 | AK41: 0 | AL41: 0 | AM41: 0 | AN41: 0 | AO41: 0 | AP41: 0 | AQ41: 0 | AR41: 0 | AS41: 0 | BX41: =Dataset[[#This Row],[2023/24 From - Spending review Topic 1]]+Dataset[[#This Row],[2023/24 From - Spending review Topic 2]]+Dataset[[#This Row],[2023/24 From - Spending review Topic 3]]+Dataset[[#This Row],[2023/24 From - Spending review Topic 4]]+Dataset[[#This Row],[2023/24 From - Other reallocations]] -> 0 | BY41: =Dataset[[#This Row],[2024/25 From - Spending review Topic 1]]+Dataset[[#This Row],[2024/25 From - Spending review Topic 2]]+Dataset[[#This Row],[2024/25 From - Spending review Topic 3]]+Dataset[[#This Row],[2024/25 From - Spending review Topic 4]]+Dataset[[#This Row],[2024/25 From - Other reallocations]] -> 0 | BZ41: =Dataset[[#This Row],[2025/26 From - Spending review Topic 1]]+Dataset[[#This Row],[2025/26 From - Spending review Topic 2]]+Dataset[[#This Row],[2025/26 From - Spending review Topic 3]]+Dataset[[#This Row],[2025/26 From - Spending review Topic 4]]+Dataset[[#This Row],[2025/26 From - Other reallocations]] -> 0 | CA41: =Dataset[[#This Row],[2023/24 To - Spending review Topic 1]]+Dataset[[#This Row],[2023/24 To - Spending review Topic 2]]+Dataset[[#This Row],[2023/24 To - Spending review Topic 3]]+Dataset[[#This Row],[2023/24 To - Spending review Topic 4]]+Dataset[[#This Row],[2023/24 To - Other reallocations]] -> 0 | CB41: =Dataset[[#This Row],[2024/25 To - Spending review Topic 1]]+Dataset[[#This Row],[2024/25 To - Spending review Topic 2]]+Dataset[[#This Row],[2024/25 To - Spending review Topic 3]]+Dataset[[#This Row],[2024/25 To - Spending review Topic 4]]+Dataset[[#This Row],[2024/25 To - Other reallocations]] -> 0 | CC41: =Dataset[[#This Row],[2025/26 To - Spending review Topic 1]]+Dataset[[#This Row],[2025/26 To - Spending review Topic 2]]+Dataset[[#This Row],[2025/26 To - Spending review Topic 3]]+Dataset[[#This Row],[2025/26 To - Spending review Topic 4]]+Dataset[[#This Row],[2025/26 To - Other reallocations]] -> 0 | CD41: =Dataset[[#This Row],[2023/24 Baseline]]+Dataset[[#This Row],[2023/24 From - Total]]+Dataset[[#This Row],[2023/24 To - Total]] -> 0 | CE41: =Dataset[[#This Row],[2024/25 Baseline]]+Dataset[[#This Row],[2024/25 From - Total]]+Dataset[[#This Row],[2024/25 To - Total]] -> 0 | CF41: =Dataset[[#This Row],[2025/26 Baseline]]+Dataset[[#This Row],[2025/26 From - Total]]+Dataset[[#This Row],[2025/26 To - Total]] -> 0
A42: NAT|Non-transfer item | B42: 32|Inventory: Fuel, oil and gas | C42: 2023_24 | D42: MTEF2023 | E42: 32 | F42: 1 | G42: 1 | H42: 57042 | I42: 24 | J42: 32 | K42: 01 | L42: 01 | M42: 057042 | N42: 000024 | O42: 32|01|01 | P42: 1 | Q42: 1 | R42: 2 | S42: 24 | T42: 24 | U42: 01|01|02|24|24 | V42: National | W42: Forestry, Fisheries and the Environment | X42: Administration | Y42: Management | Z42: Non-transfer item | AA42: Current | AB42: Current payments | AC42: Goods and services | AD42: Inventory: Fuel, oil and gas | AE42: Inventory: Fuel, oil and gas | AF42: Economic development | AG42: Economic regulation and infrastructure | AH42: NAT | AI42: 0 | AJ42: 0 | AK42: 0 | AL42: 0 | AM42: 0 | AN42: 0 | AO42: 0 | AP42: 0 | AQ42: 0 | AR42: 0 | AS42: 0 | BX42: =Dataset[[#This Row],[2023/24 From - Spending review Topic 1]]+Dataset[[#This Row],[2023/24 From - Spending review Topic 2]]+Dataset[[#This Row],[2023/24 From - Spending review Topic 3]]+Dataset[[#This Row],[2023/24 From - Spending review Topic 4]]+Dataset[[#This Row],[2023/24 From - Other reallocations]] -> 0 | BY42: =Dataset[[#This Row],[2024/25 From - Spending review Topic 1]]+Dataset[[#This Row],[2024/25 From - Spending review Topic 2]]+Dataset[[#This Row],[2024/25 From - Spending review Topic 3]]+Dataset[[#This Row],[2024/25 From - Spending review Topic 4]]+Dataset[[#This Row],[2024/25 From - Other reallocations]] -> 0 | BZ42: =Dataset[[#This Row],[2025/26 From - Spending review Topic 1]]+Dataset[[#This Row],[2025/26 From - Spending review Topic 2]]+Dataset[[#This Row],[2025/26 From - Spending review Topic 3]]+Dataset[[#This Row],[2025/26 From - Spending review Topic 4]]+Dataset[[#This Row],[2025/26 From - Other reallocations]] -> 0 | CA42: =Dataset[[#This Row],[2023/24 To - Spending review Topic 1]]+Dataset[[#This Row],[2023/24 To - Spending review Topic 2]]+Dataset[[#This Row],[2023/24 To - Spending review Topic 3]]+Dataset[[#This Row],[2023/24 To - Spending review Topic 4]]+Dataset[[#This Row],[2023/24 To - Other reallocations]] -> 0 | CB42: =Dataset[[#This Row],[2024/25 To - Spending review Topic 1]]+Dataset[[#This Row],[2024/25 To - Spending review Topic 2]]+Dataset[[#This Row],[2024/25 To - Spending review Topic 3]]+Dataset[[#This Row],[2024/25 To - Spending review Topic 4]]+Dataset[[#This Row],[2024/25 To - Other reallocations]] -> 0 | CC42: =Dataset[[#This Row],[2025/26 To - Spending review Topic 1]]+Dataset[[#This Row],[2025/26 To - Spending review Topic 2]]+Dataset[[#This Row],[2025/26 To - Spending review Topic 3]]+Dataset[[#This Row],[2025/26 To - Spending review Topic 4]]+Dataset[[#This Row],[2025/26 To - Other reallocations]] -> 0 | CD42: =Dataset[[#This Row],[2023/24 Baseline]]+Dataset[[#This Row],[2023/24 From - Total]]+Dataset[[#This Row],[2023/24 To - Total]] -> 0 | CE42: =Dataset[[#This Row],[2024/25 Baseline]]+Dataset[[#This Row],[2024/25 From - Total]]+Dataset[[#This Row],[2024/25 To - Total]] -> 0 | CF42: =Dataset[[#This Row],[2025/26 Baseline]]+Dataset[[#This Row],[2025/26 From - Total]]+Dataset[[#This Row],[2025/26 To - Total]] -> 0
A43: NAT|Non-transfer item | B43: 32|Inventory: Learner and teacher support material | C43: 2023_24 | D43: MTEF2023 | E43: 32 | F43: 1 | G43: 1 | H43: 57043 | I43: 25 | J43: 32 | K43: 01 | L43: 01 | M43: 057043 | N43: 000025 | O43: 32|01|01 | P43: 1 | Q43: 1 | R43: 2 | S43: 25 | T43: 25 | U43: 01|01|02|25|25 | V43: National | W43: Forestry, Fisheries and the Environment | X43: Administration | Y43: Management | Z43: Non-transfer item | AA43: Current | AB43: Current payments | AC43: Goods and services | AD43: Inventory: Learner and teacher support material | AE43: Inventory: Learner and teacher support material | AF43: Economic development | AG43: Economic regulation and infrastructure | AH43: NAT | AI43: 0 | AJ43: 0 | AK43: 0 | AL43: 0 | AM43: 0 | AN43: 0 | AO43: 0 | AP43: 0 | AQ43: 0 | AR43: 0 | AS43: 0 | BX43: =Dataset[[#This Row],[2023/24 From - Spending review Topic 1]]+Dataset[[#This Row],[2023/24 From - Spending review Topic 2]]+Dataset[[#This Row],[2023/24 From - Spending review Topic 3]]+Dataset[[#This Row],[2023/24 From - Spending review Topic 4]]+Dataset[[#This Row],[2023/24 From - Other reallocations]] -> 0 | BY43: =Dataset[[#This Row],[2024/25 From - Spending review Topic 1]]+Dataset[[#This Row],[2024/25 From - Spending review Topic 2]]+Dataset[[#This Row],[2024/25 From - Spending review Topic 3]]+Dataset[[#This Row],[2024/25 From - Spending review Topic 4]]+Dataset[[#This Row],[2024/25 From - Other reallocations]] -> 0 | BZ43: =Dataset[[#This Row],[2025/26 From - Spending review Topic 1]]+Dataset[[#This Row],[2025/26 From - Spending review Topic 2]]+Dataset[[#This Row],[2025/26 From - Spending review Topic 3]]+Dataset[[#This Row],[2025/26 From - Spending review Topic 4]]+Dataset[[#This Row],[2025/26 From - Other reallocations]] -> 0 | CA43: =Dataset[[#This Row],[2023/24 To - Spending review Topic 1]]+Dataset[[#This Row],[2023/24 To - Spending review Topic 2]]+Dataset[[#This Row],[2023/24 To - Spending review Topic 3]]+Dataset[[#This Row],[2023/24 To - Spending review Topic 4]]+Dataset[[#This Row],[2023/24 To - Other reallocations]] -> 0 | CB43: =Dataset[[#This Row],[2024/25 To - Spending review Topic 1]]+Dataset[[#This Row],[2024/25 To - Spending review Topic 2]]+Dataset[[#This Row],[2024/25 To - Spending review Topic 3]]+Dataset[[#This Row],[2024/25 To - Spending review Topic 4]]+Dataset[[#This Row],[2024/25 To - Other reallocations]] -> 0 | CC43: =Dataset[[#This Row],[2025/26 To - Spending review Topic 1]]+Dataset[[#This Row],[2025/26 To - Spending review Topic 2]]+Dataset[[#This Row],[2025/26 To - Spending review Topic 3]]+Dataset[[#This Row],[2025/26 To - Spending review Topic 4]]+Dataset[[#This Row],[2025/26 To - Other reallocations]] -> 0 | CD43: =Dataset[[#This Row],[2023/24 Baseline]]+Dataset[[#This Row],[2023/24 From - Total]]+Dataset[[#This Row],[2023/24 To - Total]] -> 0 | CE43: =Dataset[[#This Row],[2024/25 Baseline]]+Dataset[[#This Row],[2024/25 From - Total]]+Dataset[[#This Row],[2024/25 To - Total]] -> 0 | CF43: =Dataset[[#This Row],[2025/26 Baseline]]+Dataset[[#This Row],[2025/26 From - Total]]+Dataset[[#This Row],[2025/26 To - Total]] -> 0
A44: NAT|Non-transfer item | B44: 32|Inventory: Materials and supplies | C44: 2023_24 | D44: MTEF2023 | E44: 32 | F44: 1 | G44: 1 | H44: 57044 | I44: 26 | J44: 32 | K44: 01 | L44: 01 | M44: 057044 | N44: 000026 | O44: 32|01|01 | P44: 1 | Q44: 1 | R44: 2 | S44: 26 | T44: 26 | U44: 01|01|02|26|26 | V44: National | W44: Forestry, Fisheries and the Environment | X44: Administration | Y44: Management | Z44: Non-transfer item | AA44: Current | AB44: Current payments | AC44: Goods and services | AD44: Inventory: Materials and supplies | AE44: Inventory: Materials and supplies | AF44: Economic development | AG44: Economic regulation and infrastructure | AH44: NAT | AI44: 0 | AJ44: 0 | AK44: 0 | AL44: 0 | AM44: 0 | AN44: 0 | AO44: 0 | AP44: 0 | AQ44: 0 | AR44: 0 | AS44: 0 | BX44: =Dataset[[#This Row],[2023/24 From - Spending review Topic 1]]+Dataset[[#This Row],[2023/24 From - Spending review Topic 2]]+Dataset[[#This Row],[2023/24 From - Spending review Topic 3]]+Dataset[[#This Row],[2023/24 From - Spending review Topic 4]]+Dataset[[#This Row],[2023/24 From - Other reallocations]] -> 0 | BY44: =Dataset[[#This Row],[2024/25 From - Spending review Topic 1]]+Dataset[[#This Row],[2024/25 From - Spending review Topic 2]]+Dataset[[#This Row],[2024/25 From - Spending review Topic 3]]+Dataset[[#This Row],[2024/25 From - Spending review Topic 4]]+Dataset[[#This Row],[2024/25 From - Other reallocations]] -> 0 | BZ44: =Dataset[[#This Row],[2025/26 From - Spending review Topic 1]]+Dataset[[#This Row],[2025/26 From - Spending review Topic 2]]+Dataset[[#This Row],[2025/26 From - Spending review Topic 3]]+Dataset[[#This Row],[2025/26 From - Spending review Topic 4]]+Dataset[[#This Row],[2025/26 From - Other reallocations]] -> 0 | CA44: =Dataset[[#This Row],[2023/24 To - Spending review Topic 1]]+Dataset[[#This Row],[2023/24 To - Spending review Topic 2]]+Dataset[[#This Row],[2023/24 To - Spending review Topic 3]]+Dataset[[#This Row],[2023/24 To - Spending review Topic 4]]+Dataset[[#This Row],[2023/24 To - Other reallocations]] -> 0 | CB44: =Dataset[[#This Row],[2024/25 To - Spending review Topic 1]]+Dataset[[#This Row],[2024/25 To - Spending review Topic 2]]+Dataset[[#This Row],[2024/25 To - Spending review Topic 3]]+Dataset[[#This Row],[2024/25 To - Spending review Topic 4]]+Dataset[[#This Row],[2024/25 To - Other reallocations]] -> 0 | CC44: =Dataset[[#This Row],[2025/26 To - Spending review Topic 1]]+Dataset[[#This Row],[2025/26 To - Spending review Topic 2]]+Dataset[[#This Row],[2025/26 To - Spending review Topic 3]]+Dataset[[#This Row],[2025/26 To - Spending review Topic 4]]+Dataset[[#This Row],[2025/26 To - Other reallocations]] -> 0 | CD44: =Dataset[[#This Row],[2023/24 Baseline]]+Dataset[[#This Row],[2023/24 From - Total]]+Dataset[[#This Row],[2023/24 To - Total]] -> 0 | CE44: =Dataset[[#This Row],[2024/25 Baseline]]+Dataset[[#This Row],[2024/25 From - Total]]+Dataset[[#This Row],[2024/25 To - Total]] -> 0 | CF44: =Dataset[[#This Row],[2025/26 Baseline]]+Dataset[[#This Row],[2025/26 From - Total]]+Dataset[[#This Row],[2025/26 To - Total]] -> 0
A45: NAT|Non-transfer item | B45: 32|Inventory: Medical supplies | C45: 2023_24 | D45: MTEF2023 | E45: 32 | F45: 1 | G45: 1 | H45: 57045 | I45: 27 | J45: 32 | K45: 01 | L45: 01 | M45: 057045 | N45: 000027 | O45: 32|01|01 | P45: 1 | Q45: 1 | R45: 2 | S45: 27 | T45: 27 | U45: 01|01|02|27|27 | V45: National | W45: Forestry, Fisheries and the Environment | X45: Administration | Y45: Management | Z45: Non-transfer item | AA45: Current | AB45: Current payments | AC45: Goods and services | AD45: Inventory: Medical supplies | AE45: Inventory: Medical supplies | AF45: Economic development | AG45: Economic regulation and infrastructure | AH45: NAT | AI45: 0 | AJ45: 0 | AK45: 0 | AL45: 0 | AM45: 0 | AN45: 0 | AO45: 0 | AP45: 0 | AQ45: 0 | AR45: 0 | AS45: 0 | BX45: =Dataset[[#This Row],[2023/24 From - Spending review Topic 1]]+Dataset[[#This Row],[2023/24 From - Spending review Topic 2]]+Dataset[[#This Row],[2023/24 From - Spending review Topic 3]]+Dataset[[#This Row],[2023/24 From - Spending review Topic 4]]+Dataset[[#This Row],[2023/24 From - Other reallocations]] -> 0 | BY45: =Dataset[[#This Row],[2024/25 From - Spending review Topic 1]]+Dataset[[#This Row],[2024/25 From - Spending review Topic 2]]+Dataset[[#This Row],[2024/25 From - Spending review Topic 3]]+Dataset[[#This Row],[2024/25 From - Spending review Topic 4]]+Dataset[[#This Row],[2024/25 From - Other reallocations]] -> 0 | BZ45: =Dataset[[#This Row],[2025/26 From - Spending review Topic 1]]+Dataset[[#This Row],[2025/26 From - Spending review Topic 2]]+Dataset[[#This Row],[2025/26 From - Spending review Topic 3]]+Dataset[[#This Row],[2025/26 From - Spending review Topic 4]]+Dataset[[#This Row],[2025/26 From - Other reallocations]] -> 0 | CA45: =Dataset[[#This Row],[2023/24 To - Spending review Topic 1]]+Dataset[[#This Row],[2023/24 To - Spending review Topic 2]]+Dataset[[#This Row],[2023/24 To - Spending review Topic 3]]+Dataset[[#This Row],[2023/24 To - Spending review Topic 4]]+Dataset[[#This Row],[2023/24 To - Other reallocations]] -> 0 | CB45: =Dataset[[#This Row],[2024/25 To - Spending review Topic 1]]+Dataset[[#This Row],[2024/25 To - Spending review Topic 2]]+Dataset[[#This Row],[2024/25 To - Spending review Topic 3]]+Dataset[[#This Row],[2024/25 To - Spending review Topic 4]]+Dataset[[#This Row],[2024/25 To - Other reallocations]] -> 0 | CC45: =Dataset[[#This Row],[2025/26 To - Spending review Topic 1]]+Dataset[[#This Row],[2025/26 To - Spending review Topic 2]]+Dataset[[#This Row],[2025/26 To - Spending review Topic 3]]+Dataset[[#This Row],[2025/26 To - Spending review Topic 4]]+Dataset[[#This Row],[2025/26 To - Other reallocations]] -> 0 | CD45: =Dataset[[#This Row],[2023/24 Baseline]]+Dataset[[#This Row],[2023/24 From - Total]]+Dataset[[#This Row],[2023/24 To - Total]] -> 0 | CE45: =Dataset[[#This Row],[2024/25 Baseline]]+Dataset[[#This Row],[2024/25 From - Total]]+Dataset[[#This Row],[2024/25 To - Total]] -> 0 | CF45: =Dataset[[#This Row],[2025/26 Baseline]]+Dataset[[#This Row],[2025/26 From - Total]]+Dataset[[#This Row],[2025/26 To - Total]] -> 0
A46: NAT|Non-transfer item | B46: 32|Inventory: Medicine | C46: 2023_24 | D46: MTEF2023 | E46: 32 | F46: 1 | G46: 1 | H46: 57046 | I46: 28 | J46: 32 | K46: 01 | L46: 01 | M46: 057046 | N46: 000028 | O46: 32|01|01 | P46: 1 | Q46: 1 | R46: 2 | S46: 28 | T46: 28 | U46: 01|01|02|28|28 | V46: National | W46: Forestry, Fisheries and the Environment | X46: Administration | Y46: Management | Z46: Non-transfer item | AA46: Current | AB46: Current payments | AC46: Goods and services | AD46: Inventory: Medicine | AE46: Inventory: Medicine | AF46: Economic development | AG46: Economic regulation and infrastructure | AH46: NAT | AI46: 0 | AJ46: 0 | AK46: 0 | AL46: 0 | AM46: 0 | AN46: 0 | AO46: 0 | AP46: 0 | AQ46: 0 | AR46: 0 | AS46: 0 | BX46: =Dataset[[#This Row],[2023/24 From - Spending review Topic 1]]+Dataset[[#This Row],[2023/24 From - Spending review Topic 2]]+Dataset[[#This Row],[2023/24 From - Spending review Topic 3]]+Dataset[[#This Row],[2023/24 From - Spending review Topic 4]]+Dataset[[#This Row],[2023/24 From - Other reallocations]] -> 0 | BY46: =Dataset[[#This Row],[2024/25 From - Spending review Topic 1]]+Dataset[[#This Row],[2024/25 From - Spending review Topic 2]]+Dataset[[#This Row],[2024/25 From - Spending review Topic 3]]+Dataset[[#This Row],[2024/25 From - Spending review Topic 4]]+Dataset[[#This Row],[2024/25 From - Other reallocations]] -> 0 | BZ46: =Dataset[[#This Row],[2025/26 From - Spending review Topic 1]]+Dataset[[#This Row],[2025/26 From - Spending review Topic 2]]+Dataset[[#This Row],[2025/26 From - Spending review Topic 3]]+Dataset[[#This Row],[2025/26 From - Spending review Topic 4]]+Dataset[[#This Row],[2025/26 From - Other reallocations]] -> 0 | CA46: =Dataset[[#This Row],[2023/24 To - Spending review Topic 1]]+Dataset[[#This Row],[2023/24 To - Spending review Topic 2]]+Dataset[[#This Row],[2023/24 To - Spending review Topic 3]]+Dataset[[#This Row],[2023/24 To - Spending review Topic 4]]+Dataset[[#This Row],[2023/24 To - Other reallocations]] -> 0 | CB46: =Dataset[[#This Row],[2024/25 To - Spending review Topic 1]]+Dataset[[#This Row],[2024/25 To - Spending review Topic 2]]+Dataset[[#This Row],[2024/25 To - Spending review Topic 3]]+Dataset[[#This Row],[2024/25 To - Spending review Topic 4]]+Dataset[[#This Row],[2024/25 To - Other reallocations]] -> 0 | CC46: =Dataset[[#This Row],[2025/26 To - Spending review Topic 1]]+Dataset[[#This Row],[2025/26 To - Spending review Topic 2]]+Dataset[[#This Row],[2025/26 To - Spending review Topic 3]]+Dataset[[#This Row],[2025/26 To - Spending review Topic 4]]+Dataset[[#This Row],[2025/26 To - Other reallocations]] -> 0 | CD46: =Dataset[[#This Row],[2023/24 Baseline]]+Dataset[[#This Row],[2023/24 From - Total]]+Dataset[[#This Row],[2023/24 To - Total]] -> 0 | CE46: =Dataset[[#This Row],[2024/25 Baseline]]+Dataset[[#This Row],[2024/25 From - Total]]+Dataset[[#This Row],[2024/25 To - Total]] -> 0 | CF46: =Dataset[[#This Row],[2025/26 Baseline]]+Dataset[[#This Row],[2025/26 From - Total]]+Dataset[[#This Row],[2025/26 To - Total]] -> 0
A47: NAT|Non-transfer item | B47: 32|Medsas inventory interface | C47: 2023_24 | D47: MTEF2023 | E47: 32 | F47: 1 | G47: 1 | H47: 57047 | I47: 29 | J47: 32 | K47: 01 | L47: 01 | M47: 057047 | N47: 000029 | O47: 32|01|01 | P47: 1 | Q47: 1 | R47: 2 | S47: 29 | T47: 29 | U47: 01|01|02|29|29 | V47: National | W47: Forestry, Fisheries and the Environment | X47: Administration | Y47: Management | Z47: Non-transfer item | AA47: Current | AB47: Current payments | AC47: Goods and services | AD47: Medsas inventory interface | AE47: Medsas inventory interface | AF47: Economic development | AG47: Economic regulation and infrastructure | AH47: NAT | AI47: 0 | AJ47: 0 | AK47: 0 | AL47: 0 | AM47: 0 | AN47: 0 | AO47: 0 | AP47: 0 | AQ47: 0 | AR47: 0 | AS47: 0 | BX47: =Dataset[[#This Row],[2023/24 From - Spending review Topic 1]]+Dataset[[#This Row],[2023/24 From - Spending review Topic 2]]+Dataset[[#This Row],[2023/24 From - Spending review Topic 3]]+Dataset[[#This Row],[2023/24 From - Spending review Topic 4]]+Dataset[[#This Row],[2023/24 From - Other reallocations]] -> 0 | BY47: =Dataset[[#This Row],[2024/25 From - Spending review Topic 1]]+Dataset[[#This Row],[2024/25 From - Spending review Topic 2]]+Dataset[[#This Row],[2024/25 From - Spending review Topic 3]]+Dataset[[#This Row],[2024/25 From - Spending review Topic 4]]+Dataset[[#This Row],[2024/25 From - Other reallocations]] -> 0 | BZ47: =Dataset[[#This Row],[2025/26 From - Spending review Topic 1]]+Dataset[[#This Row],[2025/26 From - Spending review Topic 2]]+Dataset[[#This Row],[2025/26 From - Spending review Topic 3]]+Dataset[[#This Row],[2025/26 From - Spending review Topic 4]]+Dataset[[#This Row],[2025/26 From - Other reallocations]] -> 0 | CA47: =Dataset[[#This Row],[2023/24 To - Spending review Topic 1]]+Dataset[[#This Row],[2023/24 To - Spending review Topic 2]]+Dataset[[#This Row],[2023/24 To - Spending review Topic 3]]+Dataset[[#This Row],[2023/24 To - Spending review Topic 4]]+Dataset[[#This Row],[2023/24 To - Other reallocations]] -> 0 | CB47: =Dataset[[#This Row],[2024/25 To - Spending review Topic 1]]+Dataset[[#This Row],[2024/25 To - Spending review Topic 2]]+Dataset[[#This Row],[2024/25 To - Spending review Topic 3]]+Dataset[[#This Row],[2024/25 To - Spending review Topic 4]]+Dataset[[#This Row],[2024/25 To - Other reallocations]] -> 0 | CC47: =Dataset[[#This Row],[2025/26 To - Spending review Topic 1]]+Dataset[[#This Row],[2025/26 To - Spending review Topic 2]]+Dataset[[#This Row],[2025/26 To - Spending review Topic 3]]+Dataset[[#This Row],[2025/26 To - Spending review Topic 4]]+Dataset[[#This Row],[2025/26 To - Other reallocations]] -> 0 | CD47: =Dataset[[#This Row],[2023/24 Baseline]]+Dataset[[#This Row],[2023/24 From - Total]]+Dataset[[#This Row],[2023/24 To - Total]] -> 0 | CE47: =Dataset[[#This Row],[2024/25 Baseline]]+Dataset[[#This Row],[2024/25 From - Total]]+Dataset[[#This Row],[2024/25 To - Total]] -> 0 | CF47: =Dataset[[#This Row],[2025/26 Baseline]]+Dataset[[#This Row],[2025/26 From - Total]]+Dataset[[#This Row],[2025/26 To - Total]] -> 0
A48: NAT|Non-transfer item | B48: 32|Inventory: Other supplies | C48: 2023_24 | D48: MTEF2023 | E48: 32 | F48: 1 | G48: 1 | H48: 57048 | I48: 30 | J48: 32 | K48: 01 | L48: 01 | M48: 057048 | N48: 000030 | O48: 32|01|01 | P48: 1 | Q48: 1 | R48: 2 | S48: 30 | T48: 30 | U48: 01|01|02|30|30 | V48: National | W48: Forestry, Fisheries and the Environment | X48: Administration | Y48: Management | Z48: Non-transfer item | AA48: Current | AB48: Current payments | AC48: Goods and services | AD48: Inventory: Other supplies | AE48: Inventory: Other supplies | AF48: Economic development | AG48: Economic regulation and infrastructure | AH48: NAT | AI48: 0 | AJ48: 0 | AK48: 0 | AL48: 0 | AM48: 0 | AN48: 0 | AO48: 0 | AP48: 0 | AQ48: 0 | AR48: 0 | AS48: 0 | BX48: =Dataset[[#This Row],[2023/24 From - Spending review Topic 1]]+Dataset[[#This Row],[2023/24 From - Spending review Topic 2]]+Dataset[[#This Row],[2023/24 From - Spending review Topic 3]]+Dataset[[#This Row],[2023/24 From - Spending review Topic 4]]+Dataset[[#This Row],[2023/24 From - Other reallocations]] -> 0 | BY48: =Dataset[[#This Row],[2024/25 From - Spending review Topic 1]]+Dataset[[#This Row],[2024/25 From - Spending review Topic 2]]+Dataset[[#This Row],[2024/25 From - Spending review Topic 3]]+Dataset[[#This Row],[2024/25 From - Spending review Topic 4]]+Dataset[[#This Row],[2024/25 From - Other reallocations]] -> 0 | BZ48: =Dataset[[#This Row],[2025/26 From - Spending review Topic 1]]+Dataset[[#This Row],[2025/26 From - Spending review Topic 2]]+Dataset[[#This Row],[2025/26 From - Spending review Topic 3]]+Dataset[[#This Row],[2025/26 From - Spending review Topic 4]]+Dataset[[#This Row],[2025/26 From - Other reallocations]] -> 0 | CA48: =Dataset[[#This Row],[2023/24 To - Spending review Topic 1]]+Dataset[[#This Row],[2023/24 To - Spending review Topic 2]]+Dataset[[#This Row],[2023/24 To - Spending review Topic 3]]+Dataset[[#This Row],[2023/24 To - Spending review Topic 4]]+Dataset[[#This Row],[2023/24 To - Other reallocations]] -> 0 | CB48: =Dataset[[#This Row],[2024/25 To - Spending review Topic 1]]+Dataset[[#This Row],[2024/25 To - Spending review Topic 2]]+Dataset[[#This Row],[2024/25 To - Spending review Topic 3]]+Dataset[[#This Row],[2024/25 To - Spending review Topic 4]]+Dataset[[#This Row],[2024/25 To - Other reallocations]] -> 0 | CC48: =Dataset[[#This Row],[2025/26 To - Spending review Topic 1]]+Dataset[[#This Row],[2025/26 To - Spending review Topic 2]]+Dataset[[#This Row],[2025/26 To - Spending review Topic 3]]+Dataset[[#This Row],[2025/26 To - Spending review Topic 4]]+Dataset[[#This Row],[2025/26 To - Other reallocations]] -> 0 | CD48: =Dataset[[#This Row],[2023/24 Baseline]]+Dataset[[#This Row],[2023/24 From - Total]]+Dataset[[#This Row],[2023/24 To - Total]] -> 0 | CE48: =Dataset[[#This Row],[2024/25 Baseline]]+Dataset[[#This Row],[2024/25 From - Total]]+Dataset[[#This Row],[2024/25 To - Total]] -> 0 | CF48: =Dataset[[#This Row],[2025/26 Baseline]]+Dataset[[#This Row],[2025/26 From - Total]]+Dataset[[#This Row],[2025/26 To - Total]] -> 0
A49: NAT|Non-transfer item | B49: 32|Consumable supplies | C49: 2023_24 | D49: MTEF2023 | E49: 32 | F49: 1 | G49: 1 | H49: 57049 | I49: 31 | J49: 32 | K49: 01 | L49: 01 | M49: 057049 | N49: 000031 | O49: 32|01|01 | P49: 1 | Q49: 1 | R49: 2 | S49: 31 | T49: 31 | U49: 01|01|02|31|31 | V49: National | W49: Forestry, Fisheries and the Environment | X49: Administration | Y49: Management | Z49: Non-transfer item | AA49: Current | AB49: Current payments | AC49: Goods and services | AD49: Consumable supplies | AE49: Consumable supplies | AF49: Economic development | AG49: Economic regulation and infrastructure | AH49: NAT | AI49: 316 | AJ49: 57 | AK49: 27 | AL49: 12297 | AM49: 12297 | AN49: 0 | AO49: 0 | AP49: 508 | AQ49: 500 | AR49: 1554 | AS49: 1624 | BX49: =Dataset[[#This Row],[2023/24 From - Spending review Topic 1]]+Dataset[[#This Row],[2023/24 From - Spending review Topic 2]]+Dataset[[#This Row],[2023/24 From - Spending review Topic 3]]+Dataset[[#This Row],[2023/24 From - Spending review Topic 4]]+Dataset[[#This Row],[2023/24 From - Other reallocations]] -> 0 | BY49: =Dataset[[#This Row],[2024/25 From - Spending review Topic 1]]+Dataset[[#This Row],[2024/25 From - Spending review Topic 2]]+Dataset[[#This Row],[2024/25 From - Spending review Topic 3]]+Dataset[[#This Row],[2024/25 From - Spending review Topic 4]]+Dataset[[#This Row],[2024/25 From - Other reallocations]] -> 0 | BZ49: =Dataset[[#This Row],[2025/26 From - Spending review Topic 1]]+Dataset[[#This Row],[2025/26 From - Spending review Topic 2]]+Dataset[[#This Row],[2025/26 From - Spending review Topic 3]]+Dataset[[#This Row],[2025/26 From - Spending review Topic 4]]+Dataset[[#This Row],[2025/26 From - Other reallocations]] -> 0 | CA49: =Dataset[[#This Row],[2023/24 To - Spending review Topic 1]]+Dataset[[#This Row],[2023/24 To - Spending review Topic 2]]+Dataset[[#This Row],[2023/24 To - Spending review Topic 3]]+Dataset[[#This Row],[2023/24 To - Spending review Topic 4]]+Dataset[[#This Row],[2023/24 To - Other reallocations]] -> 0 | CB49: =Dataset[[#This Row],[2024/25 To - Spending review Topic 1]]+Dataset[[#This Row],[2024/25 To - Spending review Topic 2]]+Dataset[[#This Row],[2024/25 To - Spending review Topic 3]]+Dataset[[#This Row],[2024/25 To - Spending review Topic 4]]+Dataset[[#This Row],[2024/25 To - Other reallocations]] -> 0 | CC49: =Dataset[[#This Row],[2025/26 To - Spending review Topic 1]]+Dataset[[#This Row],[2025/26 To - Spending review Topic 2]]+Dataset[[#This Row],[2025/26 To - Spending review Topic 3]]+Dataset[[#This Row],[2025/26 To - Spending review Topic 4]]+Dataset[[#This Row],[2025/26 To - Other reallocations]] -> 0 | CD49: =Dataset[[#This Row],[2023/24 Baseline]]+Dataset[[#This Row],[2023/24 From - Total]]+Dataset[[#This Row],[2023/24 To - Total]] -> 500 | CE49: =Dataset[[#This Row],[2024/25 Baseline]]+Dataset[[#This Row],[2024/25 From - Total]]+Dataset[[#This Row],[2024/25 To - Total]] -> 1554 | CF49: =Dataset[[#This Row],[2025/26 Baseline]]+Dataset[[#This Row],[2025/26 From - Total]]+Dataset[[#This Row],[2025/26 To - Total]] -> 1624
A50: NAT|Non-transfer item | B50: 32|Consumables: Stationery, printing and office supplies | C50: 2023_24 | D50: MTEF2023 | E50: 32 | F50: 1 | G50: 1 | H50: 57050 | I50: 32 | J50: 32 | K50: 01 | L50: 01 | M50: 057050 | N50: 000032 | O50: 32|01|01 | P50: 1 | Q50: 1 | R50: 2 | S50: 32 | T50: 32 | U50: 01|01|02|32|32 | V50: National | W50: Forestry, Fisheries and the Environment | X50: Administration | Y50: Management | Z50: Non-transfer item | AA50: Current | AB50: Current payments | AC50: Goods and services | AD50: Consumables: Stationery, printing and office supplies | AE50: Consumables: Stationery, printing and office supplies | AF50: Economic development | AG50: Economic regulation and infrastructure | AH50: NAT | AI50: 369 | AJ50: 118 | AK50: 224 | AL50: 12119 | AM50: 12119 | AN50: 0 | AO50: 0 | AP50: 1113 | AQ50: 1454 | AR50: 2401 | AS50: 2509 | BX50: =Dataset[[#This Row],[2023/24 From - Spending review Topic 1]]+Dataset[[#This Row],[2023/24 From - Spending review Topic 2]]+Dataset[[#This Row],[2023/24 From - Spending review Topic 3]]+Dataset[[#This Row],[2023/24 From - Spending review Topic 4]]+Dataset[[#This Row],[2023/24 From - Other reallocations]] -> 0 | BY50: =Dataset[[#This Row],[2024/25 From - Spending review Topic 1]]+Dataset[[#This Row],[2024/25 From - Spending review Topic 2]]+Dataset[[#This Row],[2024/25 From - Spending review Topic 3]]+Dataset[[#This Row],[2024/25 From - Spending review Topic 4]]+Dataset[[#This Row],[2024/25 From - Other reallocations]] -> 0 | BZ50: =Dataset[[#This Row],[2025/26 From - Spending review Topic 1]]+Dataset[[#This Row],[2025/26 From - Spending review Topic 2]]+Dataset[[#This Row],[2025/26 From - Spending review Topic 3]]+Dataset[[#This Row],[2025/26 From - Spending review Topic 4]]+Dataset[[#This Row],[2025/26 From - Other reallocations]] -> 0 | CA50: =Dataset[[#This Row],[2023/24 To - Spending review Topic 1]]+Dataset[[#This Row],[2023/24 To - Spending review Topic 2]]+Dataset[[#This Row],[2023/24 To - Spending review Topic 3]]+Dataset[[#This Row],[2023/24 To - Spending review Topic 4]]+Dataset[[#This Row],[2023/24 To - Other reallocations]] -> 0 | CB50: =Dataset[[#This Row],[2024/25 To - Spending review Topic 1]]+Dataset[[#This Row],[2024/25 To - Spending review Topic 2]]+Dataset[[#This Row],[2024/25 To - Spending review Topic 3]]+Dataset[[#This Row],[2024/25 To - Spending review Topic 4]]+Dataset[[#This Row],[2024/25 To - Other reallocations]] -> 0 | CC50: =Dataset[[#This Row],[2025/26 To - Spending review Topic 1]]+Dataset[[#This Row],[2025/26 To - Spending review Topic 2]]+Dataset[[#This Row],[2025/26 To - Spending review Topic 3]]+Dataset[[#This Row],[2025/26 To - Spending review Topic 4]]+Dataset[[#This Row],[2025/26 To - Other reallocations]] -> 0 | CD50: =Dataset[[#This Row],[2023/24 Baseline]]+Dataset[[#This Row],[2023/24 From - Total]]+Dataset[[#This Row],[2023/24 To - Total]] -> 1454 | CE50: =Dataset[[#This Row],[2024/25 Baseline]]+Dataset[[#This Row],[2024/25 From - Total]]+Dataset[[#This Row],[2024/25 To - Total]] -> 2401 | CF50: =Dataset[[#This Row],[2025/26 Baseline]]+Dataset[[#This Row],[2025/26 From - Total]]+Dataset[[#This Row],[2025/26 To - Total]] -> 2509
A51: NAT|Non-transfer item | B51: 32|Operating leases | C51: 2023_24 | D51: MTEF2023 | E51: 32 | F51: 1 | G51: 1 | H51: 57051 | I51: 33 | J51: 32 | K51: 01 | L51: 01 | M51: 057051 | N51: 000033 | O51: 32|01|01 | P51: 1 | Q51: 1 | R51: 2 | S51: 33 | T51: 33 | U51: 01|01|02|33|33 | V51: National | W51: Forestry, Fisheries and the Environment | X51: Administration | Y51: Management | Z51: Non-transfer item | AA51: Current | AB51: Current payments | AC51: Goods and services | AD51: Operating leases | AE51: Operating leases | AF51: Economic development | AG51: Economic regulation and infrastructure | AH51: NAT | AI51: 108 | AJ51: 190 | AK51: 409 | AL51: 646 | AM51: 646 | AN51: 0 | AO51: 0 | AP51: 480 | AQ51: 531 | AR51: 554 | AS51: 579 | BX51: =Dataset[[#This Row],[2023/24 From - Spending review Topic 1]]+Dataset[[#This Row],[2023/24 From - Spending review Topic 2]]+Dataset[[#This Row],[2023/24 From - Spending review Topic 3]]+Dataset[[#This Row],[2023/24 From - Spending review Topic 4]]+Dataset[[#This Row],[2023/24 From - Other reallocations]] -> 0 | BY51: =Dataset[[#This Row],[2024/25 From - Spending review Topic 1]]+Dataset[[#This Row],[2024/25 From - Spending review Topic 2]]+Dataset[[#This Row],[2024/25 From - Spending review Topic 3]]+Dataset[[#This Row],[2024/25 From - Spending review Topic 4]]+Dataset[[#This Row],[2024/25 From - Other reallocations]] -> 0 | BZ51: =Dataset[[#This Row],[2025/26 From - Spending review Topic 1]]+Dataset[[#This Row],[2025/26 From - Spending review Topic 2]]+Dataset[[#This Row],[2025/26 From - Spending review Topic 3]]+Dataset[[#This Row],[2025/26 From - Spending review Topic 4]]+Dataset[[#This Row],[2025/26 From - Other reallocations]] -> 0 | CA51: =Dataset[[#This Row],[2023/24 To - Spending review Topic 1]]+Dataset[[#This Row],[2023/24 To - Spending review Topic 2]]+Dataset[[#This Row],[2023/24 To - Spending review Topic 3]]+Dataset[[#This Row],[2023/24 To - Spending review Topic 4]]+Dataset[[#This Row],[2023/24 To - Other reallocations]] -> 0 | CB51: =Dataset[[#This Row],[2024/25 To - Spending review Topic 1]]+Dataset[[#This Row],[2024/25 To - Spending review Topic 2]]+Dataset[[#This Row],[2024/25 To - Spending review Topic 3]]+Dataset[[#This Row],[2024/25 To - Spending review Topic 4]]+Dataset[[#This Row],[2024/25 To - Other reallocations]] -> 0 | CC51: =Dataset[[#This Row],[2025/26 To - Spending review Topic 1]]+Dataset[[#This Row],[2025/26 To - Spending review Topic 2]]+Dataset[[#This Row],[2025/26 To - Spending review Topic 3]]+Dataset[[#This Row],[2025/26 To - Spending review Topic 4]]+Dataset[[#This Row],[2025/26 To - Other reallocations]] -> 0 | CD51: =Dataset[[#This Row],[2023/24 Baseline]]+Dataset[[#This Row],[2023/24 From - Total]]+Dataset[[#This Row],[2023/24 To - Total]] -> 531 | CE51: =Dataset[[#This Row],[2024/25 Baseline]]+Dataset[[#This Row],[2024/25 From - Total]]+Dataset[[#This Row],[2024/25 To - Total]] -> 554 | CF51: =Dataset[[#This Row],[2025/26 Baseline]]+Dataset[[#This Row],[2025/26 From - Total]]+Dataset[[#This Row],[2025/26 To - Total]] -> 579
A52: NAT|Non-transfer item | B52: 32|Rental and hiring | C52: 2023_24 | D52: MTEF2023 | E52: 32 | F52: 1 | G52: 1 | H52: 57052 | I52: 34 | J52: 32 | K52: 01 | L52: 01 | M52: 057052 | N52: 000034 | O52: 32|01|01 | P52: 1 | Q52: 1 | R52: 2 | S52: 34 | T52: 34 | U52: 01|01|02|34|34 | V52: National | W52: Forestry, Fisheries and the Environment | X52: Administration | Y52: Management | Z52: Non-transfer item | AA52: Current | AB52: Current payments | AC52: Goods and services | AD52: Rental and hiring | AE52: Rental and hiring | AF52: Economic development | AG52: Economic regulation and infrastructure | AH52: NAT | AI52: 0 | AJ52: 3 | AK52: 0 | AL52: 3307 | AM52: 3307 | AN52: 0 | AO52: 0 | AP52: 250 | AQ52: 316 | AR52: 838 | AS52: 876 | BX52: =Dataset[[#This Row],[2023/24 From - Spending review Topic 1]]+Dataset[[#This Row],[2023/24 From - Spending review Topic 2]]+Dataset[[#This Row],[2023/24 From - Spending review Topic 3]]+Dataset[[#This Row],[2023/24 From - Spending review Topic 4]]+Dataset[[#This Row],[2023/24 From - Other reallocations]] -> 0 | BY52: =Dataset[[#This Row],[2024/25 From - Spending review Topic 1]]+Dataset[[#This Row],[2024/25 From - Spending review Topic 2]]+Dataset[[#This Row],[2024/25 From - Spending review Topic 3]]+Dataset[[#This Row],[2024/25 From - Spending review Topic 4]]+Dataset[[#This Row],[2024/25 From - Other reallocations]] -> 0 | BZ52: =Dataset[[#This Row],[2025/26 From - Spending review Topic 1]]+Dataset[[#This Row],[2025/26 From - Spending review Topic 2]]+Dataset[[#This Row],[2025/26 From - Spending review Topic 3]]+Dataset[[#This Row],[2025/26 From - Spending review Topic 4]]+Dataset[[#This Row],[2025/26 From - Other reallocations]] -> 0 | CA52: =Dataset[[#This Row],[2023/24 To - Spending review Topic 1]]+Dataset[[#This Row],[2023/24 To - Spending review Topic 2]]+Dataset[[#This Row],[2023/24 To - Spending review Topic 3]]+Dataset[[#This Row],[2023/24 To - Spending review Topic 4]]+Dataset[[#This Row],[2023/24 To - Other reallocations]] -> 0 | CB52: =Dataset[[#This Row],[2024/25 To - Spending review Topic 1]]+Dataset[[#This Row],[2024/25 To - Spending review Topic 2]]+Dataset[[#This Row],[2024/25 To - Spending review Topic 3]]+Dataset[[#This Row],[2024/25 To - Spending review Topic 4]]+Dataset[[#This Row],[2024/25 To - Other reallocations]] -> 0 | CC52: =Dataset[[#This Row],[2025/26 To - Spending review Topic 1]]+Dataset[[#This Row],[2025/26 To - Spending review Topic 2]]+Dataset[[#This Row],[2025/26 To - Spending review Topic 3]]+Dataset[[#This Row],[2025/26 To - Spending review Topic 4]]+Dataset[[#This Row],[2025/26 To - Other reallocations]] -> 0 | CD52: =Dataset[[#This Row],[2023/24 Baseline]]+Dataset[[#This Row],[2023/24 From - Total]]+Dataset[[#This Row],[2023/24 To - Total]] -> 316 | CE52: =Dataset[[#This Row],[2024/25 Baseline]]+Dataset[[#This Row],[2024/25 From - Total]]+Dataset[[#This Row],[2024/25 To - Total]] -> 838 | CF52: =Dataset[[#This Row],[2025/26 Baseline]]+Dataset[[#This Row],[2025/26 From - Total]]+Dataset[[#This Row],[2025/26 To - Total]] -> 876
A53: NAT|Non-transfer item | B53: 32|Property payments | C53: 2023_24 | D53: MTEF2023 | E53: 32 | F53: 1 | G53: 1 | H53: 57053 | I53: 35 | J53: 32 | K53: 01 | L53: 01 | M53: 057053 | N53: 000035 | O53: 32|01|01 | P53: 1 | Q53: 1 | R53: 2 | S53: 35 | T53: 35 | U53: 01|01|02|35|35 | V53: National | W53: Forestry, Fisheries and the Environment | X53: Administration | Y53: Management | Z53: Non-transfer item | AA53: Current | AB53: Current payments | AC53: Goods and services | AD53: Property payments | AE53: Property payments | AF53: Economic development | AG53: Economic regulation and infrastructure | AH53: NAT | AI53: 281 | AJ53: 0 | AK53: 3 | AL53: 0 | AM53: 0 | AN53: 0 | AO53: 0 | AP53: 28 | AQ53: 30 | AR53: 0 | AS53: 0 | BX53: =Dataset[[#This Row],[2023/24 From - Spending review Topic 1]]+Dataset[[#This Row],[2023/24 From - Spending review Topic 2]]+Dataset[[#This Row],[2023/24 From - Spending review Topic 3]]+Dataset[[#This Row],[2023/24 From - Spending review Topic 4]]+Dataset[[#This Row],[2023/24 From - Other reallocations]] -> 0 | BY53: =Dataset[[#This Row],[2024/25 From - Spending review Topic 1]]+Dataset[[#This Row],[2024/25 From - Spending review Topic 2]]+Dataset[[#This Row],[2024/25 From - Spending review Topic 3]]+Dataset[[#This Row],[2024/25 From - Spending review Topic 4]]+Dataset[[#This Row],[2024/25 From - Other reallocations]] -> 0 | BZ53: =Dataset[[#This Row],[2025/26 From - Spending review Topic 1]]+Dataset[[#This Row],[2025/26 From - Spending review Topic 2]]+Dataset[[#This Row],[2025/26 From - Spending review Topic 3]]+Dataset[[#This Row],[2025/26 From - Spending review Topic 4]]+Dataset[[#This Row],[2025/26 From - Other reallocations]] -> 0 | CA53: =Dataset[[#This Row],[2023/24 To - Spending review Topic 1]]+Dataset[[#This Row],[2023/24 To - Spending review Topic 2]]+Dataset[[#This Row],[2023/24 To - Spending review Topic 3]]+Dataset[[#This Row],[2023/24 To - Spending review Topic 4]]+Dataset[[#This Row],[2023/24 To - Other reallocations]] -> 0 | CB53: =Dataset[[#This Row],[2024/25 To - Spending review Topic 1]]+Dataset[[#This Row],[2024/25 To - Spending review Topic 2]]+Dataset[[#This Row],[2024/25 To - Spending review Topic 3]]+Dataset[[#This Row],[2024/25 To - Spending review Topic 4]]+Dataset[[#This Row],[2024/25 To - Other reallocations]] -> 0 | CC53: =Dataset[[#This Row],[2025/26 To - Spending review Topic 1]]+Dataset[[#This Row],[2025/26 To - Spending review Topic 2]]+Dataset[[#This Row],[2025/26 To - Spending review Topic 3]]+Dataset[[#This Row],[2025/26 To - Spending review Topic 4]]+Dataset[[#This Row],[2025/26 To - Other reallocations]] -> 0 | CD53: =Dataset[[#This Row],[2023/24 Baseline]]+Dataset[[#This Row],[2023/24 From - Total]]+Dataset[[#This Row],[2023/24 To - Total]] -> 30 | CE53: =Dataset[[#This Row],[2024/25 Baseline]]+Dataset[[#This Row],[2024/25 From - Total]]+Dataset[[#This Row],[2024/25 To - Total]] -> 0 | CF53: =Dataset[[#This Row],[2025/26 Baseline]]+Dataset[[#This Row],[2025/26 From - Total]]+Dataset[[#This Row],[2025/26 To - Total]] -> 0
A54: NAT|Non-transfer item | B54: 32|Transport provided: Departmental activity | C54: 2023_24 | D54: MTEF2023 | E54: 32 | F54: 1 | G54: 1 | H54: 57054 | I54: 36 | J54: 32 | K54: 01 | L54: 01 | M54: 057054 | N54: 000036 | O54: 32|01|01 | P54: 1 | Q54: 1 | R54: 2 | S54: 36 | T54: 36 | U54: 01|01|02|36|36 | V54: National | W54: Forestry, Fisheries and the Environment | X54: Administration | Y54: Management | Z54: Non-transfer item | AA54: Current | AB54: Current payments | AC54: Goods and services | AD54: Transport provided: Departmental activity | AE54: Transport provided: Departmental activity | AF54: Economic development | AG54: Economic regulation and infrastructure | AH54: NAT | AI54: 0 | AJ54: 10429 | AK54: 0 | AL54: 10166 | AM54: 10166 | AN54: 0 | AO54: 0 | AP54: 0 | AQ54: 0 | AR54: 725 | AS54: 757 | BX54: =Dataset[[#This Row],[2023/24 From - Spending review Topic 1]]+Dataset[[#This Row],[2023/24 From - Spending review Topic 2]]+Dataset[[#This Row],[2023/24 From - Spending review Topic 3]]+Dataset[[#This Row],[2023/24 From - Spending review Topic 4]]+Dataset[[#This Row],[2023/24 From - Other reallocations]] -> 0 | BY54: =Dataset[[#This Row],[2024/25 From - Spending review Topic 1]]+Dataset[[#This Row],[2024/25 From - Spending review Topic 2]]+Dataset[[#This Row],[2024/25 From - Spending review Topic 3]]+Dataset[[#This Row],[2024/25 From - Spending review Topic 4]]+Dataset[[#This Row],[2024/25 From - Other reallocations]] -> 0 | BZ54: =Dataset[[#This Row],[2025/26 From - Spending review Topic 1]]+Dataset[[#This Row],[2025/26 From - Spending review Topic 2]]+Dataset[[#This Row],[2025/26 From - Spending review Topic 3]]+Dataset[[#This Row],[2025/26 From - Spending review Topic 4]]+Dataset[[#This Row],[2025/26 From - Other reallocations]] -> 0 | CA54: =Dataset[[#This Row],[2023/24 To - Spending review Topic 1]]+Dataset[[#This Row],[2023/24 To - Spending review Topic 2]]+Dataset[[#This Row],[2023/24 To - Spending review Topic 3]]+Dataset[[#This Row],[2023/24 To - Spending review Topic 4]]+Dataset[[#This Row],[2023/24 To - Other reallocations]] -> 0 | CB54: =Dataset[[#This Row],[2024/25 To - Spending review Topic 1]]+Dataset[[#This Row],[2024/25 To - Spending review Topic 2]]+Dataset[[#This Row],[2024/25 To - Spending review Topic 3]]+Dataset[[#This Row],[2024/25 To - Spending review Topic 4]]+Dataset[[#This Row],[2024/25 To - Other reallocations]] -> 0 | CC54: =Dataset[[#This Row],[2025/26 To - Spending review Topic 1]]+Dataset[[#This Row],[2025/26 To - Spending review Topic 2]]+Dataset[[#This Row],[2025/26 To - Spending review Topic 3]]+Dataset[[#This Row],[2025/26 To - Spending review Topic 4]]+Dataset[[#This Row],[2025/26 To - Other reallocations]] -> 0 | CD54: =Dataset[[#This Row],[2023/24 Baseline]]+Dataset[[#This Row],[2023/24 From - Total]]+Dataset[[#This Row],[2023/24 To - Total]] -> 0 | CE54: =Dataset[[#This Row],[2024/25 Baseline]]+Dataset[[#This Row],[2024/25 From - Total]]+Dataset[[#This Row],[2024/25 To - Total]] -> 725 | CF54: =Dataset[[#This Row],[2025/26 Baseline]]+Dataset[[#This Row],[2025/26 From - Total]]+Dataset[[#This Row],[2025/26 To - Total]] -> 757
A55: NAT|Non-transfer item | B55: 32|Travel and subsistence | C55: 2023_24 | D55: MTEF2023 | E55: 32 | F55: 1 | G55: 1 | H55: 57055 | I55: 37 | J55: 32 | K55: 01 | L55: 01 | M55: 057055 | N55: 000037 | O55: 32|01|01 | P55: 1 | Q55: 1 | R55: 2 | S55: 37 | T55: 37 | U55: 01|01|02|37|37 | V55: National | W55: Forestry, Fisheries and the Environment | X55: Administration | Y55: Management | Z55: Non-transfer item | AA55: Current | AB55: Current payments | AC55: Goods and services | AD55: Travel and subsistence | AE55: Travel and subsistence | AF55: Economic development | AG55: Economic regulation and infrastructure | AH55: NAT | AI55: 21575 | AJ55: 6 | AK55: 3028 | AL55: 28455 | AM55: 28447 | AN55: 0 | AO55: 0 | AP55: 11767 | AQ55: 10371 | AR55: 11421 | AS55: 11933 | BX55: =Dataset[[#This Row],[2023/24 From - Spending review Topic 1]]+Dataset[[#This Row],[2023/24 From - Spending review Topic 2]]+Dataset[[#This Row],[2023/24 From - Spending review Topic 3]]+Dataset[[#This Row],[2023/24 From - Spending review Topic 4]]+Dataset[[#This Row],[2023/24 From - Other reallocations]] -> 0 | BY55: =Dataset[[#This Row],[2024/25 From - Spending review Topic 1]]+Dataset[[#This Row],[2024/25 From - Spending review Topic 2]]+Dataset[[#This Row],[2024/25 From - Spending review Topic 3]]+Dataset[[#This Row],[2024/25 From - Spending review Topic 4]]+Dataset[[#This Row],[2024/25 From - Other reallocations]] -> 0 | BZ55: =Dataset[[#This Row],[2025/26 From - Spending review Topic 1]]+Dataset[[#This Row],[2025/26 From - Spending review Topic 2]]+Dataset[[#This Row],[2025/26 From - Spending review Topic 3]]+Dataset[[#This Row],[2025/26 From - Spending review Topic 4]]+Dataset[[#This Row],[2025/26 From - Other reallocations]] -> 0 | CA55: =Dataset[[#This Row],[2023/24 To - Spending review Topic 1]]+Dataset[[#This Row],[2023/24 To - Spending review Topic 2]]+Dataset[[#This Row],[2023/24 To - Spending review Topic 3]]+Dataset[[#This Row],[2023/24 To - Spending review Topic 4]]+Dataset[[#This Row],[2023/24 To - Other reallocations]] -> 0 | CB55: =Dataset[[#This Row],[2024/25 To - Spending review Topic 1]]+Dataset[[#This Row],[2024/25 To - Spending review Topic 2]]+Dataset[[#This Row],[2024/25 To - Spending review Topic 3]]+Dataset[[#This Row],[2024/25 To - Spending review Topic 4]]+Dataset[[#This Row],[2024/25 To - Other reallocations]] -> 0 | CC55: =Dataset[[#This Row],[2025/26 To - Spending review Topic 1]]+Dataset[[#This Row],[2025/26 To - Spending review Topic 2]]+Dataset[[#This Row],[2025/26 To - Spending review Topic 3]]+Dataset[[#This Row],[2025/26 To - Spending review Topic 4]]+Dataset[[#This Row],[2025/26 To - Other reallocations]] -> 0 | CD55: =Dataset[[#This Row],[2023/24 Baseline]]+Dataset[[#This Row],[2023/24 From - Total]]+Dataset[[#This Row],[2023/24 To - Total]] -> 10371 | CE55: =Dataset[[#This Row],[2024/25 Baseline]]+Dataset[[#This Row],[2024/25 From - Total]]+Dataset[[#This Row],[2024/25 To - Total]] -> 11421 | CF55: =Dataset[[#This Row],[2025/26 Baseline]]+Dataset[[#This Row],[2025/26 From - Total]]+Dataset[[#This Row],[2025/26 To - Total]] -> 11933
A56: NAT|Non-transfer item | B56: 32|Training and development | C56: 2023_24 | D56: MTEF2023 | E56: 32 | F56: 1 | G56: 1 | H56: 57056 | I56: 38 | J56: 32 | K56: 01 | L56: 01 | M56: 057056 | N56: 000038 | O56: 32|01|01 | P56: 1 | Q56: 1 | R56: 2 | S56: 38 | T56: 38 | U56: 01|01|02|38|38 | V56: National | W56: Forestry, Fisheries and the Environment | X56: Administration | Y56: Management | Z56: Non-transfer item | AA56: Current | AB56: Current payments | AC56: Goods and services | AD56: Training and development | AE56: Training and development | AF56: Economic development | AG56: Economic regulation and infrastructure | AH56: NAT | AI56: 0 | AJ56: 409 | AK56: 0 | AL56: 5798 | AM56: 5798 | AN56: 0 | AO56: 0 | AP56: 1812 | AQ56: 1762 | AR56: 1976 | AS56: 2065 | BX56: =Dataset[[#This Row],[2023/24 From - Spending review Topic 1]]+Dataset[[#This Row],[2023/24 From - Spending review Topic 2]]+Dataset[[#This Row],[2023/24 From - Spending review Topic 3]]+Dataset[[#This Row],[2023/24 From - Spending review Topic 4]]+Dataset[[#This Row],[2023/24 From - Other reallocations]] -> 0 | BY56: =Dataset[[#This Row],[2024/25 From - Spending review Topic 1]]+Dataset[[#This Row],[2024/25 From - Spending review Topic 2]]+Dataset[[#This Row],[2024/25 From - Spending review Topic 3]]+Dataset[[#This Row],[2024/25 From - Spending review Topic 4]]+Dataset[[#This Row],[2024/25 From - Other reallocations]] -> 0 | BZ56: =Dataset[[#This Row],[2025/26 From - Spending review Topic 1]]+Dataset[[#This Row],[2025/26 From - Spending review Topic 2]]+Dataset[[#This Row],[2025/26 From - Spending review Topic 3]]+Dataset[[#This Row],[2025/26 From - Spending review Topic 4]]+Dataset[[#This Row],[2025/26 From - Other reallocations]] -> 0 | CA56: =Dataset[[#This Row],[2023/24 To - Spending review Topic 1]]+Dataset[[#This Row],[2023/24 To - Spending review Topic 2]]+Dataset[[#This Row],[2023/24 To - Spending review Topic 3]]+Dataset[[#This Row],[2023/24 To - Spending review Topic 4]]+Dataset[[#This Row],[2023/24 To - Other reallocations]] -> 0 | CB56: =Dataset[[#This Row],[2024/25 To - Spending review Topic 1]]+Dataset[[#This Row],[2024/25 To - Spending review Topic 2]]+Dataset[[#This Row],[2024/25 To - Spending review Topic 3]]+Dataset[[#This Row],[2024/25 To - Spending review Topic 4]]+Dataset[[#This Row],[2024/25 To - Other reallocations]] -> 0 | CC56: =Dataset[[#This Row],[2025/26 To - Spending review Topic 1]]+Dataset[[#This Row],[2025/26 To - Spending review Topic 2]]+Dataset[[#This Row],[2025/26 To - Spending review Topic 3]]+Dataset[[#This Row],[2025/26 To - Spending review Topic 4]]+Dataset[[#This Row],[2025/26 To - Other reallocations]] -> 0 | CD56: =Dataset[[#This Row],[2023/24 Baseline]]+Dataset[[#This Row],[2023/24 From - Total]]+Dataset[[#This Row],[2023/24 To - Total]] -> 1762 | CE56: =Dataset[[#This Row],[2024/25 Baseline]]+Dataset[[#This Row],[2024/25 From - Total]]+Dataset[[#This Row],[2024/25 To - Total]] -> 1976 | CF56: =Dataset[[#This Row],[2025/26 Baseline]]+Dataset[[#This Row],[2025/26 From - Total]]+Dataset[[#This Row],[2025/26 To - Total]] -> 2065
A57: NAT|Non-transfer item | B57: 32|Operating payments | C57: 2023_24 | D57: MTEF2023 | E57: 32 | F57: 1 | G57: 1 | H57: 57057 | I57: 39 | J57: 32 | K57: 01 | L57: 01 | M57: 057057 | N57: 000039 | O57: 32|01|01 | P57: 1 | Q57: 1 | R57: 2 | S57: 39 | T57: 39 | U57: 01|01|02|39|39 | V57: National | W57: Forestry, Fisheries and the Environment | X57: Administration | Y57: Management | Z57: Non-transfer item | AA57: Current | AB57: Current payments | AC57: Goods and services | AD57: Operating payments | AE57: Operating payments | AF57: Economic development | AG57: Economic regulation and infrastructure | AH57: NAT | AI57: 0 | AJ57: 217 | AK57: 396 | AL57: 3435 | AM57: 3435 | AN57: 0 | AO57: 0 | AP57: 968 | AQ57: 821 | AR57: 948 | AS57: 990 | BX57: =Dataset[[#This Row],[2023/24 From - Spending review Topic 1]]+Dataset[[#This Row],[2023/24 From - Spending review Topic 2]]+Dataset[[#This Row],[2023/24 From - Spending review Topic 3]]+Dataset[[#This Row],[2023/24 From - Spending review Topic 4]]+Dataset[[#This Row],[2023/24 From - Other reallocations]] -> 0 | BY57: =Dataset[[#This Row],[2024/25 From - Spending review Topic 1]]+Dataset[[#This Row],[2024/25 From - Spending review Topic 2]]+Dataset[[#This Row],[2024/25 From - Spending review Topic 3]]+Dataset[[#This Row],[2024/25 From - Spending review Topic 4]]+Dataset[[#This Row],[2024/25 From - Other reallocations]] -> 0 | BZ57: =Dataset[[#This Row],[2025/26 From - Spending review Topic 1]]+Dataset[[#This Row],[2025/26 From - Spending review Topic 2]]+Dataset[[#This Row],[2025/26 From - Spending review Topic 3]]+Dataset[[#This Row],[2025/26 From - Spending review Topic 4]]+Dataset[[#This Row],[2025/26 From - Other reallocations]] -> 0 | CA57: =Dataset[[#This Row],[2023/24 To - Spending review Topic 1]]+Dataset[[#This Row],[2023/24 To - Spending review Topic 2]]+Dataset[[#This Row],[2023/24 To - Spending review Topic 3]]+Dataset[[#This Row],[2023/24 To - Spending review Topic 4]]+Dataset[[#This Row],[2023/24 To - Other reallocations]] -> 0 | CB57: =Dataset[[#This Row],[2024/25 To - Spending review Topic 1]]+Dataset[[#This Row],[2024/25 To - Spending review Topic 2]]+Dataset[[#This Row],[2024/25 To - Spending review Topic 3]]+Dataset[[#This Row],[2024/25 To - Spending review Topic 4]]+Dataset[[#This Row],[2024/25 To - Other reallocations]] -> 0 | CC57: =Dataset[[#This Row],[2025/26 To - Spending review Topic 1]]+Dataset[[#This Row],[2025/26 To - Spending review Topic 2]]+Dataset[[#This Row],[2025/26 To - Spending review Topic 3]]+Dataset[[#This Row],[2025/26 To - Spending review Topic 4]]+Dataset[[#This Row],[2025/26 To - Other reallocations]] -> 0 | CD57: =Dataset[[#This Row],[2023/24 Baseline]]+Dataset[[#This Row],[2023/24 From - Total]]+Dataset[[#This Row],[2023/24 To - Total]] -> 821 | CE57: =Dataset[[#This Row],[2024/25 Baseline]]+Dataset[[#This Row],[2024/25 From - Total]]+Dataset[[#This Row],[2024/25 To - Total]] -> 948 | CF57: =Dataset[[#This Row],[2025/26 Baseline]]+Dataset[[#This Row],[2025/26 From - Total]]+Dataset[[#This Row],[2025/26 To - Total]] -> 990
A58: NAT|Non-transfer item | B58: 32|Venues and facilities | C58: 2023_24 | D58: MTEF2023 | E58: 32 | F58: 1 | G58: 1 | H58: 57058 | I58: 40 | J58: 32 | K58: 01 | L58: 01 | M58: 057058 | N58: 000040 | O58: 32|01|01 | P58: 1 | Q58: 1 | R58: 2 | S58: 40 | T58: 40 | U58: 01|01|02|40|40 | V58: National | W58: Forestry, Fisheries and the Environment | X58: Administration | Y58: Management | Z58: Non-transfer item | AA58: Current | AB58: Current payments | AC58: Goods and services | AD58: Venues and facilities | AE58: Venues and facilities | AF58: Economic development | AG58: Economic regulation and infrastructure | AH58: NAT | AI58: 2224 | AJ58: 331 | AK58: 90 | AL58: 12676 | AM58: 12676 | AN58: 0 | AO58: 0 | AP58: 1301 | AQ58: 1411 | AR58: 1879 | AS58: 1963 | BX58: =Dataset[[#This Row],[2023/24 From - Spending review Topic 1]]+Dataset[[#This Row],[2023/24 From - Spending review Topic 2]]+Dataset[[#This Row],[2023/24 From - Spending review Topic 3]]+Dataset[[#This Row],[2023/24 From - Spending review Topic 4]]+Dataset[[#This Row],[2023/24 From - Other reallocations]] -> 0 | BY58: =Dataset[[#This Row],[2024/25 From - Spending review Topic 1]]+Dataset[[#This Row],[2024/25 From - Spending review Topic 2]]+Dataset[[#This Row],[2024/25 From - Spending review Topic 3]]+Dataset[[#This Row],[2024/25 From - Spending review Topic 4]]+Dataset[[#This Row],[2024/25 From - Other reallocations]] -> 0 | BZ58: =Dataset[[#This Row],[2025/26 From - Spending review Topic 1]]+Dataset[[#This Row],[2025/26 From - Spending review Topic 2]]+Dataset[[#This Row],[2025/26 From - Spending review Topic 3]]+Dataset[[#This Row],[2025/26 From - Spending review Topic 4]]+Dataset[[#This Row],[2025/26 From - Other reallocations]] -> 0 | CA58: =Dataset[[#This Row],[2023/24 To - Spending review Topic 1]]+Dataset[[#This Row],[2023/24 To - Spending review Topic 2]]+Dataset[[#This Row],[2023/24 To - Spending review Topic 3]]+Dataset[[#This Row],[2023/24 To - Spending review Topic 4]]+Dataset[[#This Row],[2023/24 To - Other reallocations]] -> 0 | CB58: =Dataset[[#This Row],[2024/25 To - Spending review Topic 1]]+Dataset[[#This Row],[2024/25 To - Spending review Topic 2]]+Dataset[[#This Row],[2024/25 To - Spending review Topic 3]]+Dataset[[#This Row],[2024/25 To - Spending review Topic 4]]+Dataset[[#This Row],[2024/25 To - Other reallocations]] -> 0 | CC58: =Dataset[[#This Row],[2025/26 To - Spending review Topic 1]]+Dataset[[#This Row],[2025/26 To - Spending review Topic 2]]+Dataset[[#This Row],[2025/26 To - Spending review Topic 3]]+Dataset[[#This Row],[2025/26 To - Spending review Topic 4]]+Dataset[[#This Row],[2025/26 To - Other reallocations]] -> 0 | CD58: =Dataset[[#This Row],[2023/24 Baseline]]+Dataset[[#This Row],[2023/24 From - Total]]+Dataset[[#This Row],[2023/24 To - Total]] -> 1411 | CE58: =Dataset[[#This Row],[2024/25 Baseline]]+Dataset[[#This Row],[2024/25 From - Total]]+Dataset[[#This Row],[2024/25 To - Total]] -> 1879 | CF58: =Dataset[[#This Row],[2025/26 Baseline]]+Dataset[[#This Row],[2025/26 From - Total]]+Dataset[[#This Row],[2025/26 To - Total]] -> 1963
A59: NAT|Non-transfer item | B59: 32|Interest (Incl. interest on unitary payments (PPP)) | C59: 2023_24 | D59: MTEF2023 | E59: 32 | F59: 1 | G59: 1 | H59: 57059 | I59: 41 | J59: 32 | K59: 01 | L59: 01 | M59: 057059 | N59: 000041 | O59: 32|01|01 | P59: 1 | Q59: 1 | R59: 3 | S59: 41 | T59: 41 | U59: 01|01|03|41|41 | V59: National | W59: Forestry, Fisheries and the Environment | X59: Administration | Y59: Management | Z59: Non-transfer item | AA59: Current | AB59: Current payments | AC59: Interest and rent on land | AD59: Interest (Incl. interest on unitary payments (PPP)) | AE59: Interest (Incl. interest on unitary payments (PPP)) | AF59: Economic development | AG59: Economic regulation and infrastructure | AH59: NAT | AI59: 0 | AJ59: 0 | AK59: 0 | AL59: 0 | AM59: 0 | AN59: 0 | AO59: 0 | AP59: 0 | AQ59: 0 | AR59: 0 | AS59: 0 | BX59: =Dataset[[#This Row],[2023/24 From - Spending review Topic 1]]+Dataset[[#This Row],[2023/24 From - Spending review Topic 2]]+Dataset[[#This Row],[2023/24 From - Spending review Topic 3]]+Dataset[[#This Row],[2023/24 From - Spending review Topic 4]]+Dataset[[#This Row],[2023/24 From - Other reallocations]] -> 0 | BY59: =Dataset[[#This Row],[2024/25 From - Spending review Topic 1]]+Dataset[[#This Row],[2024/25 From - Spending review Topic 2]]+Dataset[[#This Row],[2024/25 From - Spending review Topic 3]]+Dataset[[#This Row],[2024/25 From - Spending review Topic 4]]+Dataset[[#This Row],[2024/25 From - Other reallocations]] -> 0 | BZ59: =Dataset[[#This Row],[2025/26 From - Spending review Topic 1]]+Dataset[[#This Row],[2025/26 From - Spending review Topic 2]]+Dataset[[#This Row],[2025/26 From - Spending review Topic 3]]+Dataset[[#This Row],[2025/26 From - Spending review Topic 4]]+Dataset[[#This Row],[2025/26 From - Other reallocations]] -> 0 | CA59: =Dataset[[#This Row],[2023/24 To - Spending review Topic 1]]+Dataset[[#This Row],[2023/24 To - Spending review Topic 2]]+Dataset[[#This Row],[2023/24 To - Spending review Topic 3]]+Dataset[[#This Row],[2023/24 To - Spending review Topic 4]]+Dataset[[#This Row],[2023/24 To - Other reallocations]] -> 0 | CB59: =Dataset[[#This Row],[2024/25 To - Spending review Topic 1]]+Dataset[[#This Row],[2024/25 To - Spending review Topic 2]]+Dataset[[#This Row],[2024/25 To - Spending review Topic 3]]+Dataset[[#This Row],[2024/25 To - Spending review Topic 4]]+Dataset[[#This Row],[2024/25 To - Other reallocations]] -> 0 | CC59: =Dataset[[#This Row],[2025/26 To - Spending review Topic 1]]+Dataset[[#This Row],[2025/26 To - Spending review Topic 2]]+Dataset[[#This Row],[2025/26 To - Spending review Topic 3]]+Dataset[[#This Row],[2025/26 To - Spending review Topic 4]]+Dataset[[#This Row],[2025/26 To - Other reallocations]] -> 0 | CD59: =Dataset[[#This Row],[2023/24 Baseline]]+Dataset[[#This Row],[2023/24 From - Total]]+Dataset[[#This Row],[2023/24 To - Total]] -> 0 | CE59: =Dataset[[#This Row],[2024/25 Baseline]]+Dataset[[#This Row],[2024/25 From - Total]]+Dataset[[#This Row],[2024/25 To - Total]] -> 0 | CF59: =Dataset[[#This Row],[2025/26 Baseline]]+Dataset[[#This Row],[2025/26 From - Total]]+Dataset[[#This Row],[2025/26 To - Total]] -> 0
A60: NAT|Non-transfer item | B60: 32|Rent on land | C60: 2023_24 | D60: MTEF2023 | E60: 32 | F60: 1 | G60: 1 | H60: 57060 | I60: 42 | J60: 32 | K60: 01 | L60: 01 | M60: 057060 | N60: 000042 | O60: 32|01|01 | P60: 1 | Q60: 1 | R60: 3 | S60: 42 | T60: 42 | U60: 01|01|03|42|42 | V60: National | W60: Forestry, Fisheries and the Environment | X60: Administration | Y60: Management | Z60: Non-transfer item | AA60: Current | AB60: Current payments | AC60: Interest and rent on land | AD60: Rent on land | AE60: Rent on land | AF60: Economic development | AG60: Economic regulation and infrastructure | AH60: NAT | AI60: 0 | AJ60: 0 | AK60: 0 | AL60: 0 | AM60: 0 | AN60: 0 | AO60: 0 | AP60: 0 | AQ60: 0 | AR60: 0 | AS60: 0 | BX60: =Dataset[[#This Row],[2023/24 From - Spending review Topic 1]]+Dataset[[#This Row],[2023/24 From - Spending review Topic 2]]+Dataset[[#This Row],[2023/24 From - Spending review Topic 3]]+Dataset[[#This Row],[2023/24 From - Spending review Topic 4]]+Dataset[[#This Row],[2023/24 From - Other reallocations]] -> 0 | BY60: =Dataset[[#This Row],[2024/25 From - Spending review Topic 1]]+Dataset[[#This Row],[2024/25 From - Spending review Topic 2]]+Dataset[[#This Row],[2024/25 From - Spending review Topic 3]]+Dataset[[#This Row],[2024/25 From - Spending review Topic 4]]+Dataset[[#This Row],[2024/25 From - Other reallocations]] -> 0 | BZ60: =Dataset[[#This Row],[2025/26 From - Spending review Topic 1]]+Dataset[[#This Row],[2025/26 From - Spending review Topic 2]]+Dataset[[#This Row],[2025/26 From - Spending review Topic 3]]+Dataset[[#This Row],[2025/26 From - Spending review Topic 4]]+Dataset[[#This Row],[2025/26 From - Other reallocations]] -> 0 | CA60: =Dataset[[#This Row],[2023/24 To - Spending review Topic 1]]+Dataset[[#This Row],[2023/24 To - Spending review Topic 2]]+Dataset[[#This Row],[2023/24 To - Spending review Topic 3]]+Dataset[[#This Row],[2023/24 To - Spending review Topic 4]]+Dataset[[#This Row],[2023/24 To - Other reallocations]] -> 0 | CB60: =Dataset[[#This Row],[2024/25 To - Spending review Topic 1]]+Dataset[[#This Row],[2024/25 To - Spending review Topic 2]]+Dataset[[#This Row],[2024/25 To - Spending review Topic 3]]+Dataset[[#This Row],[2024/25 To - Spending review Topic 4]]+Dataset[[#This Row],[2024/25 To - Other reallocations]] -> 0 | CC60: =Dataset[[#This Row],[2025/26 To - Spending review Topic 1]]+Dataset[[#This Row],[2025/26 To - Spending review Topic 2]]+Dataset[[#This Row],[2025/26 To - Spending review Topic 3]]+Dataset[[#This Row],[2025/26 To - Spending review Topic 4]]+Dataset[[#This Row],[2025/26 To - Other reallocations]] -> 0 | CD60: =Dataset[[#This Row],[2023/24 Baseline]]+Dataset[[#This Row],[2023/24 From - Total]]+Dataset[[#This Row],[2023/24 To - Total]] -> 0 | CE60: =Dataset[[#This Row],[2024/25 Baseline]]+Dataset[[#This Row],[2024/25 From - Total]]+Dataset[[#This Row],[2024/25 To - Total]] -> 0 | CF60: =Dataset[[#This Row],[2025/26 Baseline]]+Dataset[[#This Row],[2025/26 From - Total]]+Dataset[[#This Row],[2025/26 To - Total]] -> 0
A61: NAT|Provincil revenue funds | B61: 32|Provincial Revenue Funds | C61: 2023_24 | D61: MTEF2023 | E61: 32 | F61: 1 | G61: 1 | H61: 57061 | I61: 43 | J61: 32 | K61: 01 | L61: 01 | M61: 057061 | N61: 000043 | O61: 32|01|01 | P61: 1 | Q61: 2 | R61: 4 | S61: 43 | T61: 43 | U61: 01|02|04|43|43 | V61: National | W61: Forestry, Fisheries and the Environment | X61: Administration | Y61: Management | Z61: Provincil revenue funds | AA61: Current | AB61: Transfers and subsidies | AC61: Provinces and municipalities | AD61: Provinces | AE61: Provincial Revenue Funds | AF61: Economic development | AG61: Economic regulation and infrastructure | AH61: NAT | AI61: 0 | AJ61: 0 | AK61: 5 | AL61: 0 | AM61: 0 | AN61: 0 | AO61: 0 | AP61: 0 | AQ61: 0 | AR61: 0 | AS61: 0 | BX61: =Dataset[[#This Row],[2023/24 From - Spending review Topic 1]]+Dataset[[#This Row],[2023/24 From - Spending review Topic 2]]+Dataset[[#This Row],[2023/24 From - Spending review Topic 3]]+Dataset[[#This Row],[2023/24 From - Spending review Topic 4]]+Dataset[[#This Row],[2023/24 From - Other reallocations]] -> 0 | BY61: =Dataset[[#This Row],[2024/25 From - Spending review Topic 1]]+Dataset[[#This Row],[2024/25 From - Spending review Topic 2]]+Dataset[[#This Row],[2024/25 From - Spending review Topic 3]]+Dataset[[#This Row],[2024/25 From - Spending review Topic 4]]+Dataset[[#This Row],[2024/25 From - Other reallocations]] -> 0 | BZ61: =Dataset[[#This Row],[2025/26 From - Spending review Topic 1]]+Dataset[[#This Row],[2025/26 From - Spending review Topic 2]]+Dataset[[#This Row],[2025/26 From - Spending review Topic 3]]+Dataset[[#This Row],[2025/26 From - Spending review Topic 4]]+Dataset[[#This Row],[2025/26 From - Other reallocations]] -> 0 | CA61: =Dataset[[#This Row],[2023/24 To - Spending review Topic 1]]+Dataset[[#This Row],[2023/24 To - Spending review Topic 2]]+Dataset[[#This Row],[2023/24 To - Spending review Topic 3]]+Dataset[[#This Row],[2023/24 To - Spending review Topic 4]]+Dataset[[#This Row],[2023/24 To - Other reallocations]] -> 0 | CB61: =Dataset[[#This Row],[2024/25 To - Spending review Topic 1]]+Dataset[[#This Row],[2024/25 To - Spending review Topic 2]]+Dataset[[#This Row],[2024/25 To - Spending review Topic 3]]+Dataset[[#This Row],[2024/25 To - Spending review Topic 4]]+Dataset[[#This Row],[2024/25 To - Other reallocations]] -> 0 | CC61: =Dataset[[#This Row],[2025/26 To - Spending review Topic 1]]+Dataset[[#This Row],[2025/26 To - Spending review Topic 2]]+Dataset[[#This Row],[2025/26 To - Spending review Topic 3]]+Dataset[[#This Row],[2025/26 To - Spending review Topic 4]]+Dataset[[#This Row],[2025/26 To - Other reallocations]] -> 0 | CD61: =Dataset[[#This Row],[2023/24 Baseline]]+Dataset[[#This Row],[2023/24 From - Total]]+Dataset[[#This Row],[2023/24 To - Total]] -> 0 | CE61: =Dataset[[#This Row],[2024/25 Baseline]]+Dataset[[#This Row],[2024/25 From - Total]]+Dataset[[#This Row],[2024/25 To - Total]] -> 0 | CF61: =Dataset[[#This Row],[2025/26 Baseline]]+Dataset[[#This Row],[2025/26 From - Total]]+Dataset[[#This Row],[2025/26 To - Total]] -> 0
A62: NAT|Vehicle licences | B62: 32|Provincial Revenue Funds | C62: 2023_24 | D62: MTEF2023 | E62: 32 | F62: 1 | G62: 1 | H62: 57062 | I62: 44 | J62: 32 | K62: 01 | L62: 01 | M62: 057062 | N62: 000044 | O62: 32|01|01 | P62: 1 | Q62: 2 | R62: 4 | S62: 43 | T62: 43 | U62: 01|02|04|43|43 | V62: National | W62: Forestry, Fisheries and the Environment | X62: Administration | Y62: Management | Z62: Vehicle licences | AA62: Current | AB62: Transfers and subsidies | AC62: Provinces and municipalities | AD62: Provinces | AE62: Provincial Revenue Funds | AF62: Economic development | AG62: Economic regulation and infrastructure | AH62: NAT | AI62: 0 | AJ62: 3 | AK62: 0 | AL62: 0 | AM62: 0 | AN62: 0 | AO62: 0 | AP62: 0 | AQ62: 0 | AR62: 0 | AS62: 0 | BX62: =Dataset[[#This Row],[2023/24 From - Spending review Topic 1]]+Dataset[[#This Row],[2023/24 From - Spending review Topic 2]]+Dataset[[#This Row],[2023/24 From - Spending review Topic 3]]+Dataset[[#This Row],[2023/24 From - Spending review Topic 4]]+Dataset[[#This Row],[2023/24 From - Other reallocations]] -> 0 | BY62: =Dataset[[#This Row],[2024/25 From - Spending review Topic 1]]+Dataset[[#This Row],[2024/25 From - Spending review Topic 2]]+Dataset[[#This Row],[2024/25 From - Spending review Topic 3]]+Dataset[[#This Row],[2024/25 From - Spending review Topic 4]]+Dataset[[#This Row],[2024/25 From - Other reallocations]] -> 0 | BZ62: =Dataset[[#This Row],[2025/26 From - Spending review Topic 1]]+Dataset[[#This Row],[2025/26 From - Spending review Topic 2]]+Dataset[[#This Row],[2025/26 From - Spending review Topic 3]]+Dataset[[#This Row],[2025/26 From - Spending review Topic 4]]+Dataset[[#This Row],[2025/26 From - Other reallocations]] -> 0 | CA62: =Dataset[[#This Row],[2023/24 To - Spending review Topic 1]]+Dataset[[#This Row],[2023/24 To - Spending review Topic 2]]+Dataset[[#This Row],[2023/24 To - Spending review Topic 3]]+Dataset[[#This Row],[2023/24 To - Spending review Topic 4]]+Dataset[[#This Row],[2023/24 To - Other reallocations]] -> 0 | CB62: =Dataset[[#This Row],[2024/25 To - Spending review Topic 1]]+Dataset[[#This Row],[2024/25 To - Spending review Topic 2]]+Dataset[[#This Row],[2024/25 To - Spending review Topic 3]]+Dataset[[#This Row],[2024/25 To - Spending review Topic 4]]+Dataset[[#This Row],[2024/25 To - Other reallocations]] -> 0 | CC62: =Dataset[[#This Row],[2025/26 To - Spending review Topic 1]]+Dataset[[#This Row],[2025/26 To - Spending review Topic 2]]+Dataset[[#This Row],[2025/26 To - Spending review Topic 3]]+Dataset[[#This Row],[2025/26 To - Spending review Topic 4]]+Dataset[[#This Row],[2025/26 To - Other reallocations]] -> 0 | CD62: =Dataset[[#This Row],[2023/24 Baseline]]+Dataset[[#This Row],[2023/24 From - Total]]+Dataset[[#This Row],[2023/24 To - Total]] -> 0 | CE62: =Dataset[[#This Row],[2024/25 Baseline]]+Dataset[[#This Row],[2024/25 From - Total]]+Dataset[[#This Row],[2024/25 To - Total]] -> 0 | CF62: =Dataset[[#This Row],[2025/26 Baseline]]+Dataset[[#This Row],[2025/26 From - Total]]+Dataset[[#This Row],[2025/26 To - Total]] -> 0
A63: NAT|Non-transfer item | B63: 32|Provincial agencies and funds | C63: 2023_24 | D63: MTEF2023 | E63: 32 | F63: 1 | G63: 1 | H63: 57063 | I63: 45 | J63: 32 | K63: 01 | L63: 01 | M63: 057063 | N63: 000045 | O63: 32|01|01 | P63: 1 | Q63: 2 | R63: 4 | S63: 43 | T63: 44 | U63: 01|02|04|43|44 | V63: National | W63: Forestry, Fisheries and the Environment | X63: Administration | Y63: Management | Z63: Non-transfer item | AA63: Current | AB63: Transfers and subsidies | AC63: Provinces and municipalities | AD63: Provinces | AE63: Provincial agencies and funds | AF63: Economic development | AG63: Economic regulation and infrastructure | AH63: NAT | AI63: 0 | AJ63: 0 | AK63: 0 | AL63: 0 | AM63: 0 | AN63: 0 | AO63: 0 | AP63: 0 | AQ63: 0 | AR63: 0 | AS63: 0 | BX63: =Dataset[[#This Row],[2023/24 From - Spending review Topic 1]]+Dataset[[#This Row],[2023/24 From - Spending review Topic 2]]+Dataset[[#This Row],[2023/24 From - Spending review Topic 3]]+Dataset[[#This Row],[2023/24 From - Spending review Topic 4]]+Dataset[[#This Row],[2023/24 From - Other reallocations]] -> 0 | BY63: =Dataset[[#This Row],[2024/25 From - Spending review Topic 1]]+Dataset[[#This Row],[2024/25 From - Spending review Topic 2]]+Dataset[[#This Row],[2024/25 From - Spending review Topic 3]]+Dataset[[#This Row],[2024/25 From - Spending review Topic 4]]+Dataset[[#This Row],[2024/25 From - Other reallocations]] -> 0 | BZ63: =Dataset[[#This Row],[2025/26 From - Spending review Topic 1]]+Dataset[[#This Row],[2025/26 From - Spending review Topic 2]]+Dataset[[#This Row],[2025/26 From - Spending review Topic 3]]+Dataset[[#This Row],[2025/26 From - Spending review Topic 4]]+Dataset[[#This Row],[2025/26 From - Other reallocations]] -> 0 | CA63: =Dataset[[#This Row],[2023/24 To - Spending review Topic 1]]+Dataset[[#This Row],[2023/24 To - Spending review Topic 2]]+Dataset[[#This Row],[2023/24 To - Spending review Topic 3]]+Dataset[[#This Row],[2023/24 To - Spending review Topic 4]]+Dataset[[#This Row],[2023/24 To - Other reallocations]] -> 0 | CB63: =Dataset[[#This Row],[2024/25 To - Spending review Topic 1]]+Dataset[[#This Row],[2024/25 To - Spending review Topic 2]]+Dataset[[#This Row],[2024/25 To - Spending review Topic 3]]+Dataset[[#This Row],[2024/25 To - Spending review Topic 4]]+Dataset[[#This Row],[2024/25 To - Other reallocations]] -> 0 | CC63: =Dataset[[#This Row],[2025/26 To - Spending review Topic 1]]+Dataset[[#This Row],[2025/26 To - Spending review Topic 2]]+Dataset[[#This Row],[2025/26 To - Spending review Topic 3]]+Dataset[[#This Row],[2025/26 To - Spending review Topic 4]]+Dataset[[#This Row],[2025/26 To - Other reallocations]] -> 0 | CD63: =Dataset[[#This Row],[2023/24 Baseline]]+Dataset[[#This Row],[2023/24 From - Total]]+Dataset[[#This Row],[2023/24 To - Total]] -> 0 | CE63: =Dataset[[#This Row],[2024/25 Baseline]]+Dataset[[#This Row],[2024/25 From - Total]]+Dataset[[#This Row],[2024/25 To - Total]] -> 0 | CF63: =Dataset[[#This Row],[2025/26 Baseline]]+Dataset[[#This Row],[2025/26 From - Total]]+Dataset[[#This Row],[2025/26 To - Total]] -> 0
A64: NAT|Vehicle licences | B64: 32|Municipal bank accounts | C64: 2023_24 | D64: MTEF2023 | E64: 32 | F64: 1 | G64: 1 | H64: 57064 | I64: 46 | J64: 32 | K64: 01 | L64: 01 | M64: 057064 | N64: 000046 | O64: 32|01|01 | P64: 1 | Q64: 2 | R64: 4 | S64: 44 | T64: 45 | U64: 01|02|04|44|45 | V64: National | W64: Forestry, Fisheries and the Environment | X64: Administration | Y64: Management | Z64: Vehicle licences | AA64: Current | AB64: Transfers and subsidies | AC64: Provinces and municipalities | AD64: Municipalities | AE64: Municipal bank accounts | AF64: Economic development | AG64: Economic regulation and infrastructure | AH64: NAT | AI64: 4 | AJ64: 0 | AK64: 0 | AL64: 0 | AM64: 8 | AN64: 17 | AO64: 0 | AP64: 0 | AQ64: 0 | AR64: 0 | AS64: 0 | BX64: =Dataset[[#This Row],[2023/24 From - Spending review Topic 1]]+Dataset[[#This Row],[2023/24 From - Spending review Topic 2]]+Dataset[[#This Row],[2023/24 From - Spending review Topic 3]]+Dataset[[#This Row],[2023/24 From - Spending review Topic 4]]+Dataset[[#This Row],[2023/24 From - Other reallocations]] -> 0 | BY64: =Dataset[[#This Row],[2024/25 From - Spending review Topic 1]]+Dataset[[#This Row],[2024/25 From - Spending review Topic 2]]+Dataset[[#This Row],[2024/25 From - Spending review Topic 3]]+Dataset[[#This Row],[2024/25 From - Spending review Topic 4]]+Dataset[[#This Row],[2024/25 From - Other reallocations]] -> 0 | BZ64: =Dataset[[#This Row],[2025/26 From - Spending review Topic 1]]+Dataset[[#This Row],[2025/26 From - Spending review Topic 2]]+Dataset[[#This Row],[2025/26 From - Spending review Topic 3]]+Dataset[[#This Row],[2025/26 From - Spending review Topic 4]]+Dataset[[#This Row],[2025/26 From - Other reallocations]] -> 0 | CA64: =Dataset[[#This Row],[2023/24 To - Spending review Topic 1]]+Dataset[[#This Row],[2023/24 To - Spending review Topic 2]]+Dataset[[#This Row],[2023/24 To - Spending review Topic 3]]+Dataset[[#This Row],[2023/24 To - Spending review Topic 4]]+Dataset[[#This Row],[2023/24 To - Other reallocations]] -> 0 | CB64: =Dataset[[#This Row],[2024/25 To - Spending review Topic 1]]+Dataset[[#This Row],[2024/25 To - Spending review Topic 2]]+Dataset[[#This Row],[2024/25 To - Spending review Topic 3]]+Dataset[[#This Row],[2024/25 To - Spending review Topic 4]]+Dataset[[#This Row],[2024/25 To - Other reallocations]] -> 0 | CC64: =Dataset[[#This Row],[2025/26 To - Spending review Topic 1]]+Dataset[[#This Row],[2025/26 To - Spending review Topic 2]]+Dataset[[#This Row],[2025/26 To - Spending review Topic 3]]+Dataset[[#This Row],[2025/26 To - Spending review Topic 4]]+Dataset[[#This Row],[2025/26 To - Other reallocations]] -> 0 | CD64: =Dataset[[#This Row],[2023/24 Baseline]]+Dataset[[#This Row],[2023/24 From - Total]]+Dataset[[#This Row],[2023/24 To - Total]] -> 0 | CE64: =Dataset[[#This Row],[2024/25 Baseline]]+Dataset[[#This Row],[2024/25 From - Total]]+Dataset[[#This Row],[2024/25 To - Total]] -> 0 | CF64: =Dataset[[#This Row],[2025/26 Baseline]]+Dataset[[#This Row],[2025/26 From - Total]]+Dataset[[#This Row],[2025/26 To - Total]] -> 0
A65: NAT|Non-transfer item | B65: 32|Municipal agencies and funds | C65: 2023_24 | D65: MTEF2023 | E65: 32 | F65: 1 | G65: 1 | H65: 57065 | I65: 47 | J65: 32 | K65: 01 | L65: 01 | M65: 057065 | N65: 000047 | O65: 32|01|01 | P65: 1 | Q65: 2 | R65: 4 | S65: 44 | T65: 46 | U65: 01|02|04|44|46 | V65: National | W65: Forestry, Fisheries and the Environment | X65: Administration | Y65: Management | Z65: Non-transfer item | AA65: Current | AB65: Transfers and subsidies | AC65: Provinces and municipalities | AD65: Municipalities | AE65: Municipal agencies and funds | AF65: Economic development | AG65: Economic regulation and infrastructure | AH65: NAT | AI65: 0 | AJ65: 0 | AK65: 0 | AL65: 0 | AM65: 0 | AN65: 0 | AO65: 0 | AP65: 0 | AQ65: 0 | AR65: 0 | AS65: 0 | BX65: =Dataset[[#This Row],[2023/24 From - Spending review Topic 1]]+Dataset[[#This Row],[2023/24 From - Spending review Topic 2]]+Dataset[[#This Row],[2023/24 From - Spending review Topic 3]]+Dataset[[#This Row],[2023/24 From - Spending review Topic 4]]+Dataset[[#This Row],[2023/24 From - Other reallocations]] -> 0 | BY65: =Dataset[[#This Row],[2024/25 From - Spending review Topic 1]]+Dataset[[#This Row],[2024/25 From - Spending review Topic 2]]+Dataset[[#This Row],[2024/25 From - Spending review Topic 3]]+Dataset[[#This Row],[2024/25 From - Spending review Topic 4]]+Dataset[[#This Row],[2024/25 From - Other reallocations]] -> 0 | BZ65: =Dataset[[#This Row],[2025/26 From - Spending review Topic 1]]+Dataset[[#This Row],[2025/26 From - Spending review Topic 2]]+Dataset[[#This Row],[2025/26 From - Spending review Topic 3]]+Dataset[[#This Row],[2025/26 From - Spending review Topic 4]]+Dataset[[#This Row],[2025/26 From - Other reallocations]] -> 0 | CA65: =Dataset[[#This Row],[2023/24 To - Spending review Topic 1]]+Dataset[[#This Row],[2023/24 To - Spending review Topic 2]]+Dataset[[#This Row],[2023/24 To - Spending review Topic 3]]+Dataset[[#This Row],[2023/24 To - Spending review Topic 4]]+Dataset[[#This Row],[2023/24 To - Other reallocations]] -> 0 | CB65: =Dataset[[#This Row],[2024/25 To - Spending review Topic 1]]+Dataset[[#This Row],[2024/25 To - Spending review Topic 2]]+Dataset[[#This Row],[2024/25 To - Spending review Topic 3]]+Dataset[[#This Row],[2024/25 To - Spending review Topic 4]]+Dataset[[#This Row],[2024/25 To - Other reallocations]] -> 0 | CC65: =Dataset[[#This Row],[2025/26 To - Spending review Topic 1]]+Dataset[[#This Row],[2025/26 To - Spending review Topic 2]]+Dataset[[#This Row],[2025/26 To - Spending review Topic 3]]+Dataset[[#This Row],[2025/26 To - Spending review Topic 4]]+Dataset[[#This Row],[2025/26 To - Other reallocations]] -> 0 | CD65: =Dataset[[#This Row],[2023/24 Baseline]]+Dataset[[#This Row],[2023/24 From - Total]]+Dataset[[#This Row],[2023/24 To - Total]] -> 0 | CE65: =Dataset[[#This Row],[2024/25 Baseline]]+Dataset[[#This Row],[2024/25 From - Total]]+Dataset[[#This Row],[2024/25 To - Total]] -> 0 | CF65: =Dataset[[#This Row],[2025/26 Baseline]]+Dataset[[#This Row],[2025/26 From - Total]]+Dataset[[#This Row],[2025/26 To - Total]] -> 0
A66: NAT|Non-transfer item | B66: 32|Social security funds | C66: 2023_24 | D66: MTEF2023 | E66: 32 | F66: 1 | G66: 1 | H66: 57066 | I66: 48 | J66: 32 | K66: 01 | L66: 01 | M66: 057066 | N66: 000048 | O66: 32|01|01 | P66: 1 | Q66: 2 | R66: 5 | S66: 45 | T66: 47 | U66: 01|02|05|45|47 | V66: National | W66: Forestry, Fisheries and the Environment | X66: Administration | Y66: Management | Z66: Non-transfer item | AA66: Current | AB66: Transfers and subsidies | AC66: Departmental agencies and accounts | AD66: Social security funds | AE66: Social security funds | AF66: Economic development | AG66: Economic regulation and infrastructure | AH66: NAT | AI66: 0 | AJ66: 0 | AK66: 0 | AL66: 0 | AM66: 0 | AN66: 0 | AO66: 0 | AP66: 0 | AQ66: 0 | AR66: 0 | AS66: 0 | BX66: =Dataset[[#This Row],[2023/24 From - Spending review Topic 1]]+Dataset[[#This Row],[2023/24 From - Spending review Topic 2]]+Dataset[[#This Row],[2023/24 From - Spending review Topic 3]]+Dataset[[#This Row],[2023/24 From - Spending review Topic 4]]+Dataset[[#This Row],[2023/24 From - Other reallocations]] -> 0 | BY66: =Dataset[[#This Row],[2024/25 From - Spending review Topic 1]]+Dataset[[#This Row],[2024/25 From - Spending review Topic 2]]+Dataset[[#This Row],[2024/25 From - Spending review Topic 3]]+Dataset[[#This Row],[2024/25 From - Spending review Topic 4]]+Dataset[[#This Row],[2024/25 From - Other reallocations]] -> 0 | BZ66: =Dataset[[#This Row],[2025/26 From - Spending review Topic 1]]+Dataset[[#This Row],[2025/26 From - Spending review Topic 2]]+Dataset[[#This Row],[2025/26 From - Spending review Topic 3]]+Dataset[[#This Row],[2025/26 From - Spending review Topic 4]]+Dataset[[#This Row],[2025/26 From - Other reallocations]] -> 0 | CA66: =Dataset[[#This Row],[2023/24 To - Spending review Topic 1]]+Dataset[[#This Row],[2023/24 To - Spending review Topic 2]]+Dataset[[#This Row],[2023/24 To - Spending review Topic 3]]+Dataset[[#This Row],[2023/24 To - Spending review Topic 4]]+Dataset[[#This Row],[2023/24 To - Other reallocations]] -> 0 | CB66: =Dataset[[#This Row],[2024/25 To - Spending review Topic 1]]+Dataset[[#This Row],[2024/25 To - Spending review Topic 2]]+Dataset[[#This Row],[2024/25 To - Spending review Topic 3]]+Dataset[[#This Row],[2024/25 To - Spending review Topic 4]]+Dataset[[#This Row],[2024/25 To - Other reallocations]] -> 0 | CC66: =Dataset[[#This Row],[2025/26 To - Spending review Topic 1]]+Dataset[[#This Row],[2025/26 To - Spending review Topic 2]]+Dataset[[#This Row],[2025/26 To - Spending review Topic 3]]+Dataset[[#This Row],[2025/26 To - Spending review Topic 4]]+Dataset[[#This Row],[2025/26 To - Other reallocations]] -> 0 | CD66: =Dataset[[#This Row],[2023/24 Baseline]]+Dataset[[#This Row],[2023/24 From - Total]]+Dataset[[#This Row],[2023/24 To - Total]] -> 0 | CE66: =Dataset[[#This Row],[2024/25 Baseline]]+Dataset[[#This Row],[2024/25 From - Total]]+Dataset[[#This Row],[2024/25 To - Total]] -> 0 | CF66: =Dataset[[#This Row],[2025/26 Baseline]]+Dataset[[#This Row],[2025/26 From - Total]]+Dataset[[#This Row],[2025/26 To - Total]] -> 0
A67: NAT|Non-transfer item | B67: 32|Departmental agencies (non-business entities) | C67: 2023_24 | D67: MTEF2023 | E67: 32 | F67: 1 | G67: 1 | H67: 57067 | I67: 49 | J67: 32 | K67: 01 | L67: 01 | M67: 057067 | N67: 000049 | O67: 32|01|01 | P67: 1 | Q67: 2 | R67: 5 | S67: 46 | T67: 48 | U67: 01|02|05|46|48 | V67: National | W67: Forestry, Fisheries and the Environment | X67: Administration | Y67: Management | Z67: Non-transfer item | AA67: Current | AB67: Transfers and subsidies | AC67: Departmental agencies and accounts | AD67: Departmental agencies (non-business entities) | AE67: Departmental agencies (non-business entities) | AF67: Economic development | AG67: Economic regulation and infrastructure | AH67: NAT | AI67: 0 | AJ67: 0 | AK67: 0 | AL67: 0 | AM67: 0 | AN67: 0 | AO67: 0 | AP67: 0 | AQ67: 0 | AR67: 0 | AS67: 0 | BX67: =Dataset[[#This Row],[2023/24 From - Spending review Topic 1]]+Dataset[[#This Row],[2023/24 From - Spending review Topic 2]]+Dataset[[#This Row],[2023/24 From - Spending review Topic 3]]+Dataset[[#This Row],[2023/24 From - Spending review Topic 4]]+Dataset[[#This Row],[2023/24 From - Other reallocations]] -> 0 | BY67: =Dataset[[#This Row],[2024/25 From - Spending review Topic 1]]+Dataset[[#This Row],[2024/25 From - Spending review Topic 2]]+Dataset[[#This Row],[2024/25 From - Spending review Topic 3]]+Dataset[[#This Row],[2024/25 From - Spending review Topic 4]]+Dataset[[#This Row],[2024/25 From - Other reallocations]] -> 0 | BZ67: =Dataset[[#This Row],[2025/26 From - Spending review Topic 1]]+Dataset[[#This Row],[2025/26 From - Spending review Topic 2]]+Dataset[[#This Row],[2025/26 From - Spending review Topic 3]]+Dataset[[#This Row],[2025/26 From - Spending review Topic 4]]+Dataset[[#This Row],[2025/26 From - Other reallocations]] -> 0 | CA67: =Dataset[[#This Row],[2023/24 To - Spending review Topic 1]]+Dataset[[#This Row],[2023/24 To - Spending review Topic 2]]+Dataset[[#This Row],[2023/24 To - Spending review Topic 3]]+Dataset[[#This Row],[2023/24 To - Spending review Topic 4]]+Dataset[[#This Row],[2023/24 To - Other reallocations]] -> 0 | CB67: =Dataset[[#This Row],[2024/25 To - Spending review Topic 1]]+Dataset[[#This Row],[2024/25 To - Spending review Topic 2]]+Dataset[[#This Row],[2024/25 To - Spending review Topic 3]]+Dataset[[#This Row],[2024/25 To - Spending review Topic 4]]+Dataset[[#This Row],[2024/25 To - Other reallocations]] -> 0 | CC67: =Dataset[[#This Row],[2025/26 To - Spending review Topic 1]]+Dataset[[#This Row],[2025/26 To - Spending review Topic 2]]+Dataset[[#This Row],[2025/26 To - Spending review Topic 3]]+Dataset[[#This Row],[2025/26 To - Spending review Topic 4]]+Dataset[[#This Row],[2025/26 To - Other reallocations]] -> 0 | CD67: =Dataset[[#This Row],[2023/24 Baseline]]+Dataset[[#This Row],[2023/24 From - Total]]+Dataset[[#This Row],[2023/24 To - Total]] -> 0 | CE67: =Dataset[[#This Row],[2024/25 Baseline]]+Dataset[[#This Row],[2024/25 From - Total]]+Dataset[[#This Row],[2024/25 To - Total]] -> 0 | CF67: =Dataset[[#This Row],[2025/26 Baseline]]+Dataset[[#This Row],[2025/26 From - Total]]+Dataset[[#This Row],[2025/26 To - Total]] -> 0
A68: NAT|Non-transfer item | B68: 32|Higher education institutions | C68: 2023_24 | D68: MTEF2023 | E68: 32 | F68: 1 | G68: 1 | H68: 57068 | I68: 50 | J68: 32 | K68: 01 | L68: 01 | M68: 057068 | N68: 000050 | O68: 32|01|01 | P68: 1 | Q68: 2 | R68: 6 | S68: 47 | T68: 49 | U68: 01|02|06|47|49 | V68: National | W68: Forestry, Fisheries and the Environment | X68: Administration | Y68: Management | Z68: Non-transfer item | AA68: Current | AB68: Transfers and subsidies | AC68: Higher education institutions | AD68: Higher education institutions | AE68: Higher education institutions | AF68: Economic development | AG68: Economic regulation and infrastructure | AH68: NAT | AI68: 0 | AJ68: 0 | AK68: 0 | AL68: 0 | AM68: 0 | AN68: 0 | AO68: 0 | AP68: 0 | AQ68: 0 | AR68: 0 | AS68: 0 | BX68: =Dataset[[#This Row],[2023/24 From - Spending review Topic 1]]+Dataset[[#This Row],[2023/24 From - Spending review Topic 2]]+Dataset[[#This Row],[2023/24 From - Spending review Topic 3]]+Dataset[[#This Row],[2023/24 From - Spending review Topic 4]]+Dataset[[#This Row],[2023/24 From - Other reallocations]] -> 0 | BY68: =Dataset[[#This Row],[2024/25 From - Spending review Topic 1]]+Dataset[[#This Row],[2024/25 From - Spending review Topic 2]]+Dataset[[#This Row],[2024/25 From - Spending review Topic 3]]+Dataset[[#This Row],[2024/25 From - Spending review Topic 4]]+Dataset[[#This Row],[2024/25 From - Other reallocations]] -> 0 | BZ68: =Dataset[[#This Row],[2025/26 From - Spending review Topic 1]]+Dataset[[#This Row],[2025/26 From - Spending review Topic 2]]+Dataset[[#This Row],[2025/26 From - Spending review Topic 3]]+Dataset[[#This Row],[2025/26 From - Spending review Topic 4]]+Dataset[[#This Row],[2025/26 From - Other reallocations]] -> 0 | CA68: =Dataset[[#This Row],[2023/24 To - Spending review Topic 1]]+Dataset[[#This Row],[2023/24 To - Spending review Topic 2]]+Dataset[[#This Row],[2023/24 To - Spending review Topic 3]]+Dataset[[#This Row],[2023/24 To - Spending review Topic 4]]+Dataset[[#This Row],[2023/24 To - Other reallocations]] -> 0 | CB68: =Dataset[[#This Row],[2024/25 To - Spending review Topic 1]]+Dataset[[#This Row],[2024/25 To - Spending review Topic 2]]+Dataset[[#This Row],[2024/25 To - Spending review Topic 3]]+Dataset[[#This Row],[2024/25 To - Spending review Topic 4]]+Dataset[[#This Row],[2024/25 To - Other reallocations]] -> 0 | CC68: =Dataset[[#This Row],[2025/26 To - Spending review Topic 1]]+Dataset[[#This Row],[2025/26 To - Spending review Topic 2]]+Dataset[[#This Row],[2025/26 To - Spending review Topic 3]]+Dataset[[#This Row],[2025/26 To - Spending review Topic 4]]+Dataset[[#This Row],[2025/26 To - Other reallocations]] -> 0 | CD68: =Dataset[[#This Row],[2023/24 Baseline]]+Dataset[[#This Row],[2023/24 From - Total]]+Dataset[[#This Row],[2023/24 To - Total]] -> 0 | CE68: =Dataset[[#This Row],[2024/25 Baseline]]+Dataset[[#This Row],[2024/25 From - Total]]+Dataset[[#This Row],[2024/25 To - Total]] -> 0 | CF68: =Dataset[[#This Row],[2025/26 Baseline]]+Dataset[[#This Row],[2025/26 From - Total]]+Dataset[[#This Row],[2025/26 To - Total]] -> 0
A69: NAT|Non-transfer item | B69: 32|Foreign governments and international organisations | C69: 2023_24 | D69: MTEF2023 | E69: 32 | F69: 1 | G69: 1 | H69: 57069 | I69: 51 | J69: 32 | K69: 01 | L69: 01 | M69: 057069 | N69: 000051 | O69: 32|01|01 | P69: 1 | Q69: 2 | R69: 7 | S69: 48 | T69: 50 | U69: 01|02|07|48|50 | V69: National | W69: Forestry, Fisheries and the Environment | X69: Administration | Y69: Management | Z69: Non-transfer item | AA69: Current | AB69: Transfers and subsidies | AC69: Foreign governments and international organisations | AD69: Foreign governments and international organisations | AE69: Foreign governments and international organisations | AF69: Economic development | AG69: Economic regulation and infrastructure | AH69: NAT | AI69: 0 | AJ69: 0 | AK69: 0 | AL69: 0 | AM69: 0 | AN69: 0 | AO69: 0 | AP69: 0 | AQ69: 0 | AR69: 0 | AS69: 0 | BX69: =Dataset[[#This Row],[2023/24 From - Spending review Topic 1]]+Dataset[[#This Row],[2023/24 From - Spending review Topic 2]]+Dataset[[#This Row],[2023/24 From - Spending review Topic 3]]+Dataset[[#This Row],[2023/24 From - Spending review Topic 4]]+Dataset[[#This Row],[2023/24 From - Other reallocations]] -> 0 | BY69: =Dataset[[#This Row],[2024/25 From - Spending review Topic 1]]+Dataset[[#This Row],[2024/25 From - Spending review Topic 2]]+Dataset[[#This Row],[2024/25 From - Spending review Topic 3]]+Dataset[[#This Row],[2024/25 From - Spending review Topic 4]]+Dataset[[#This Row],[2024/25 From - Other reallocations]] -> 0 | BZ69: =Dataset[[#This Row],[2025/26 From - Spending review Topic 1]]+Dataset[[#This Row],[2025/26 From - Spending review Topic 2]]+Dataset[[#This Row],[2025/26 From - Spending review Topic 3]]+Dataset[[#This Row],[2025/26 From - Spending review Topic 4]]+Dataset[[#This Row],[2025/26 From - Other reallocations]] -> 0 | CA69: =Dataset[[#This Row],[2023/24 To - Spending review Topic 1]]+Dataset[[#This Row],[2023/24 To - Spending review Topic 2]]+Dataset[[#This Row],[2023/24 To - Spending review Topic 3]]+Dataset[[#This Row],[2023/24 To - Spending review Topic 4]]+Dataset[[#This Row],[2023/24 To - Other reallocations]] -> 0 | CB69: =Dataset[[#This Row],[2024/25 To - Spending review Topic 1]]+Dataset[[#This Row],[2024/25 To - Spending review Topic 2]]+Dataset[[#This Row],[2024/25 To - Spending review Topic 3]]+Dataset[[#This Row],[2024/25 To - Spending review Topic 4]]+Dataset[[#This Row],[2024/25 To - Other reallocations]] -> 0 | CC69: =Dataset[[#This Row],[2025/26 To - Spending review Topic 1]]+Dataset[[#This Row],[2025/26 To - Spending review Topic 2]]+Dataset[[#This Row],[2025/26 To - Spending review Topic 3]]+Dataset[[#This Row],[2025/26 To - Spending review Topic 4]]+Dataset[[#This Row],[2025/26 To - Other reallocations]] -> 0 | CD69: =Dataset[[#This Row],[2023/24 Baseline]]+Dataset[[#This Row],[2023/24 From - Total]]+Dataset[[#This Row],[2023/24 To - Total]] -> 0 | CE69: =Dataset[[#This Row],[2024/25 Baseline]]+Dataset[[#This Row],[2024/25 From - Total]]+Dataset[[#This Row],[2024/25 To - Total]] -> 0 | CF69: =Dataset[[#This Row],[2025/26 Baseline]]+Dataset[[#This Row],[2025/26 From - Total]]+Dataset[[#This Row],[2025/26 To - Total]] -> 0
A70: NAT|Non-transfer item | B70: 32|Subsidies on products and production (pc) | C70: 2023_24 | D70: MTEF2023 | E70: 32 | F70: 1 | G70: 1 | H70: 57070 | I70: 52 | J70: 32 | K70: 01 | L70: 01 | M70: 057070 | N70: 000052 | O70: 32|01|01 | P70: 1 | Q70: 2 | R70: 8 | S70: 49 | T70: 51 | U70: 01|02|08|49|51 | V70: National | W70: Forestry, Fisheries and the Environment | X70: Administration | Y70: Management | Z70: Non-transfer item | AA70: Current | AB70: Transfers and subsidies | AC70: Public corporations and private enterprises | AD70: Public corporations | AE70: Subsidies on products and production (pc) | AF70: Economic development | AG70: Economic regulation and infrastructure | AH70: NAT | AI70: 0 | AJ70: 0 | AK70: 0 | AL70: 0 | AM70: 0 | AN70: 0 | AO70: 0 | AP70: 0 | AQ70: 0 | AR70: 0 | AS70: 0 | BX70: =Dataset[[#This Row],[2023/24 From - Spending review Topic 1]]+Dataset[[#This Row],[2023/24 From - Spending review Topic 2]]+Dataset[[#This Row],[2023/24 From - Spending review Topic 3]]+Dataset[[#This Row],[2023/24 From - Spending review Topic 4]]+Dataset[[#This Row],[2023/24 From - Other reallocations]] -> 0 | BY70: =Dataset[[#This Row],[2024/25 From - Spending review Topic 1]]+Dataset[[#This Row],[2024/25 From - Spending review Topic 2]]+Dataset[[#This Row],[2024/25 From - Spending review Topic 3]]+Dataset[[#This Row],[2024/25 From - Spending review Topic 4]]+Dataset[[#This Row],[2024/25 From - Other reallocations]] -> 0 | BZ70: =Dataset[[#This Row],[2025/26 From - Spending review Topic 1]]+Dataset[[#This Row],[2025/26 From - Spending review Topic 2]]+Dataset[[#This Row],[2025/26 From - Spending review Topic 3]]+Dataset[[#This Row],[2025/26 From - Spending review Topic 4]]+Dataset[[#This Row],[2025/26 From - Other reallocations]] -> 0 | CA70: =Dataset[[#This Row],[2023/24 To - Spending review Topic 1]]+Dataset[[#This Row],[2023/24 To - Spending review Topic 2]]+Dataset[[#This Row],[2023/24 To - Spending review Topic 3]]+Dataset[[#This Row],[2023/24 To - Spending review Topic 4]]+Dataset[[#This Row],[2023/24 To - Other reallocations]] -> 0 | CB70: =Dataset[[#This Row],[2024/25 To - Spending review Topic 1]]+Dataset[[#This Row],[2024/25 To - Spending review Topic 2]]+Dataset[[#This Row],[2024/25 To - Spending review Topic 3]]+Dataset[[#This Row],[2024/25 To - Spending review Topic 4]]+Dataset[[#This Row],[2024/25 To - Other reallocations]] -> 0 | CC70: =Dataset[[#This Row],[2025/26 To - Spending review Topic 1]]+Dataset[[#This Row],[2025/26 To - Spending review Topic 2]]+Dataset[[#This Row],[2025/26 To - Spending review Topic 3]]+Dataset[[#This Row],[2025/26 To - Spending review Topic 4]]+Dataset[[#This Row],[2025/26 To - Other reallocations]] -> 0 | CD70: =Dataset[[#This Row],[2023/24 Baseline]]+Dataset[[#This Row],[2023/24 From - Total]]+Dataset[[#This Row],[2023/24 To - Total]] -> 0 | CE70: =Dataset[[#This Row],[2024/25 Baseline]]+Dataset[[#This Row],[2024/25 From - Total]]+Dataset[[#This Row],[2024/25 To - Total]] -> 0 | CF70: =Dataset[[#This Row],[2025/26 Baseline]]+Dataset[[#This Row],[2025/26 From - Total]]+Dataset[[#This Row],[2025/26 To - Total]] -> 0
A71: NAT|Non-transfer item | B71: 32|Other transfers to public corporations | C71: 2023_24 | D71: MTEF2023 | E71: 32 | F71: 1 | G71: 1 | H71: 57071 | I71: 53 | J71: 32 | K71: 01 | L71: 01 | M71: 057071 | N71: 000053 | O71: 32|01|01 | P71: 1 | Q71: 2 | R71: 8 | S71: 49 | T71: 52 | U71: 01|02|08|49|52 | V71: National | W71: Forestry, Fisheries and the Environment | X71: Administration | Y71: Management | Z71: Non-transfer item | AA71: Current | AB71: Transfers and subsidies | AC71: Public corporations and private enterprises | AD71: Public corporations | AE71: Other transfers to public corporations | AF71: Economic development | AG71: Economic regulation and infrastructure | AH71: NAT | AI71: 0 | AJ71: 0 | AK71: 0 | AL71: 0 | AM71: 0 | AN71: 0 | AO71: 0 | AP71: 0 | AQ71: 0 | AR71: 0 | AS71: 0 | BX71: =Dataset[[#This Row],[2023/24 From - Spending review Topic 1]]+Dataset[[#This Row],[2023/24 From - Spending review Topic 2]]+Dataset[[#This Row],[2023/24 From - Spending review Topic 3]]+Dataset[[#This Row],[2023/24 From - Spending review Topic 4]]+Dataset[[#This Row],[2023/24 From - Other reallocations]] -> 0 | BY71: =Dataset[[#This Row],[2024/25 From - Spending review Topic 1]]+Dataset[[#This Row],[2024/25 From - Spending review Topic 2]]+Dataset[[#This Row],[2024/25 From - Spending review Topic 3]]+Dataset[[#This Row],[2024/25 From - Spending review Topic 4]]+Dataset[[#This Row],[2024/25 From - Other reallocations]] -> 0 | BZ71: =Dataset[[#This Row],[2025/26 From - Spending review Topic 1]]+Dataset[[#This Row],[2025/26 From - Spending review Topic 2]]+Dataset[[#This Row],[2025/26 From - Spending review Topic 3]]+Dataset[[#This Row],[2025/26 From - Spending review Topic 4]]+Dataset[[#This Row],[2025/26 From - Other reallocations]] -> 0 | CA71: =Dataset[[#This Row],[2023/24 To - Spending review Topic 1]]+Dataset[[#This Row],[2023/24 To - Spending review Topic 2]]+Dataset[[#This Row],[2023/24 To - Spending review Topic 3]]+Dataset[[#This Row],[2023/24 To - Spending review Topic 4]]+Dataset[[#This Row],[2023/24 To - Other reallocations]] -> 0 | CB71: =Dataset[[#This Row],[2024/25 To - Spending review Topic 1]]+Dataset[[#This Row],[2024/25 To - Spending review Topic 2]]+Dataset[[#This Row],[2024/25 To - Spending review Topic 3]]+Dataset[[#This Row],[2024/25 To - Spending review Topic 4]]+Dataset[[#This Row],[2024/25 To - Other reallocations]] -> 0 | CC71: =Dataset[[#This Row],[2025/26 To - Spending review Topic 1]]+Dataset[[#This Row],[2025/26 To - Spending review Topic 2]]+Dataset[[#This Row],[2025/26 To - Spending review Topic 3]]+Dataset[[#This Row],[2025/26 To - Spending review Topic 4]]+Dataset[[#This Row],[2025/26 To - Other reallocations]] -> 0 | CD71: =Dataset[[#This Row],[2023/24 Baseline]]+Dataset[[#This Row],[2023/24 From - Total]]+Dataset[[#This Row],[2023/24 To - Total]] -> 0 | CE71: =Dataset[[#This Row],[2024/25 Baseline]]+Dataset[[#This Row],[2024/25 From - Total]]+Dataset[[#This Row],[2024/25 To - Total]] -> 0 | CF71: =Dataset[[#This Row],[2025/26 Baseline]]+Dataset[[#This Row],[2025/26 From - Total]]+Dataset[[#This Row],[2025/26 To - Total]] -> 0
A72: NAT|Non-transfer item | B72: 32|Subsidies on products and production (pe) | C72: 2023_24 | D72: MTEF2023 | E72: 32 | F72: 1 | G72: 1 | H72: 57072 | I72: 54 | J72: 32 | K72: 01 | L72: 01 | M72: 057072 | N72: 000054 | O72: 32|01|01 | P72: 1 | Q72: 2 | R72: 8 | S72: 50 | T72: 53 | U72: 01|02|08|50|53 | V72: National | W72: Forestry, Fisheries and the Environment | X72: Administration | Y72: Management | Z72: Non-transfer item | AA72: Current | AB72: Transfers and subsidies | AC72: Public corporations and private enterprises | AD72: Private enterprises | AE72: Subsidies on products and production (pe) | AF72: Economic development | AG72: Economic regulation and infrastructure | AH72: NAT | AI72: 0 | AJ72: 0 | AK72: 0 | AL72: 0 | AM72: 0 | AN72: 0 | AO72: 0 | AP72: 0 | AQ72: 0 | AR72: 0 | AS72: 0 | BX72: =Dataset[[#This Row],[2023/24 From - Spending review Topic 1]]+Dataset[[#This Row],[2023/24 From - Spending review Topic 2]]+Dataset[[#This Row],[2023/24 From - Spending review Topic 3]]+Dataset[[#This Row],[2023/24 From - Spending review Topic 4]]+Dataset[[#This Row],[2023/24 From - Other reallocations]] -> 0 | BY72: =Dataset[[#This Row],[2024/25 From - Spending review Topic 1]]+Dataset[[#This Row],[2024/25 From - Spending review Topic 2]]+Dataset[[#This Row],[2024/25 From - Spending review Topic 3]]+Dataset[[#This Row],[2024/25 From - Spending review Topic 4]]+Dataset[[#This Row],[2024/25 From - Other reallocations]] -> 0 | BZ72: =Dataset[[#This Row],[2025/26 From - Spending review Topic 1]]+Dataset[[#This Row],[2025/26 From - Spending review Topic 2]]+Dataset[[#This Row],[2025/26 From - Spending review Topic 3]]+Dataset[[#This Row],[2025/26 From - Spending review Topic 4]]+Dataset[[#This Row],[2025/26 From - Other reallocations]] -> 0 | CA72: =Dataset[[#This Row],[2023/24 To - Spending review Topic 1]]+Dataset[[#This Row],[2023/24 To - Spending review Topic 2]]+Dataset[[#This Row],[2023/24 To - Spending review Topic 3]]+Dataset[[#This Row],[2023/24 To - Spending review Topic 4]]+Dataset[[#This Row],[2023/24 To - Other reallocations]] -> 0 | CB72: =Dataset[[#This Row],[2024/25 To - Spending review Topic 1]]+Dataset[[#This Row],[2024/25 To - Spending review Topic 2]]+Dataset[[#This Row],[2024/25 To - Spending review Topic 3]]+Dataset[[#This Row],[2024/25 To - Spending review Topic 4]]+Dataset[[#This Row],[2024/25 To - Other reallocations]] -> 0 | CC72: =Dataset[[#This Row],[2025/26 To - Spending review Topic 1]]+Dataset[[#This Row],[2025/26 To - Spending review Topic 2]]+Dataset[[#This Row],[2025/26 To - Spending review Topic 3]]+Dataset[[#This Row],[2025/26 To - Spending review Topic 4]]+Dataset[[#This Row],[2025/26 To - Other reallocations]] -> 0 | CD72: =Dataset[[#This Row],[2023/24 Baseline]]+Dataset[[#This Row],[2023/24 From - Total]]+Dataset[[#This Row],[2023/24 To - Total]] -> 0 | CE72: =Dataset[[#This Row],[2024/25 Baseline]]+Dataset[[#This Row],[2024/25 From - Total]]+Dataset[[#This Row],[2024/25 To - Total]] -> 0 | CF72: =Dataset[[#This Row],[2025/26 Baseline]]+Dataset[[#This Row],[2025/26 From - Total]]+Dataset[[#This Row],[2025/26 To - Total]] -> 0
A73: NAT|Non-transfer item | B73: 32|Other transfers to private enterprises | C73: 2023_24 | D73: MTEF2023 | E73: 32 | F73: 1 | G73: 1 | H73: 57073 | I73: 55 | J73: 32 | K73: 01 | L73: 01 | M73: 057073 | N73: 000055 | O73: 32|01|01 | P73: 1 | Q73: 2 | R73: 8 | S73: 50 | T73: 54 | U73: 01|02|08|50|54 | V73: National | W73: Forestry, Fisheries and the Environment | X73: Administration | Y73: Management | Z73: Non-transfer item | AA73: Current | AB73: Transfers and subsidies | AC73: Public corporations and private enterprises | AD73: Private enterprises | AE73: Other transfers to private enterprises | AF73: Economic development | AG73: Economic regulation and infrastructure | AH73: NAT | AI73: 0 | AJ73: 0 | AK73: 0 | AL73: 0 | AM73: 0 | AN73: 0 | AO73: 0 | AP73: 0 | AQ73: 0 | AR73: 0 | AS73: 0 | BX73: =Dataset[[#This Row],[2023/24 From - Spending review Topic 1]]+Dataset[[#This Row],[2023/24 From - Spending review Topic 2]]+Dataset[[#This Row],[2023/24 From - Spending review Topic 3]]+Dataset[[#This Row],[2023/24 From - Spending review Topic 4]]+Dataset[[#This Row],[2023/24 From - Other reallocations]] -> 0 | BY73: =Dataset[[#This Row],[2024/25 From - Spending review Topic 1]]+Dataset[[#This Row],[2024/25 From - Spending review Topic 2]]+Dataset[[#This Row],[2024/25 From - Spending review Topic 3]]+Dataset[[#This Row],[2024/25 From - Spending review Topic 4]]+Dataset[[#This Row],[2024/25 From - Other reallocations]] -> 0 | BZ73: =Dataset[[#This Row],[2025/26 From - Spending review Topic 1]]+Dataset[[#This Row],[2025/26 From - Spending review Topic 2]]+Dataset[[#This Row],[2025/26 From - Spending review Topic 3]]+Dataset[[#This Row],[2025/26 From - Spending review Topic 4]]+Dataset[[#This Row],[2025/26 From - Other reallocations]] -> 0 | CA73: =Dataset[[#This Row],[2023/24 To - Spending review Topic 1]]+Dataset[[#This Row],[2023/24 To - Spending review Topic 2]]+Dataset[[#This Row],[2023/24 To - Spending review Topic 3]]+Dataset[[#This Row],[2023/24 To - Spending review Topic 4]]+Dataset[[#This Row],[2023/24 To - Other reallocations]] -> 0 | CB73: =Dataset[[#This Row],[2024/25 To - Spending review Topic 1]]+Dataset[[#This Row],[2024/25 To - Spending review Topic 2]]+Dataset[[#This Row],[2024/25 To - Spending review Topic 3]]+Dataset[[#This Row],[2024/25 To - Spending review Topic 4]]+Dataset[[#This Row],[2024/25 To - Other reallocations]] -> 0 | CC73: =Dataset[[#This Row],[2025/26 To - Spending review Topic 1]]+Dataset[[#This Row],[2025/26 To - Spending review Topic 2]]+Dataset[[#This Row],[2025/26 To - Spending review Topic 3]]+Dataset[[#This Row],[2025/26 To - Spending review Topic 4]]+Dataset[[#This Row],[2025/26 To - Other reallocations]] -> 0 | CD73: =Dataset[[#This Row],[2023/24 Baseline]]+Dataset[[#This Row],[2023/24 From - Total]]+Dataset[[#This Row],[2023/24 To - Total]] -> 0 | CE73: =Dataset[[#This Row],[2024/25 Baseline]]+Dataset[[#This Row],[2024/25 From - Total]]+Dataset[[#This Row],[2024/25 To - Total]] -> 0 | CF73: =Dataset[[#This Row],[2025/26 Baseline]]+Dataset[[#This Row],[2025/26 From - Total]]+Dataset[[#This Row],[2025/26 To - Total]] -> 0
A74: NAT|Non-transfer item | B74: 32|Non-profit institutions | C74: 2023_24 | D74: MTEF2023 | E74: 32 | F74: 1 | G74: 1 | H74: 57074 | I74: 56 | J74: 32 | K74: 01 | L74: 01 | M74: 057074 | N74: 000056 | O74: 32|01|01 | P74: 1 | Q74: 2 | R74: 9 | S74: 51 | T74: 55 | U74: 01|02|09|51|55 | V74: National | W74: Forestry, Fisheries and the Environment | X74: Administration | Y74: Management | Z74: Non-transfer item | AA74: Current | AB74: Transfers and subsidies | AC74: Non-profit institutions | AD74: Non-profit institutions | AE74: Non-profit institutions | AF74: Economic development | AG74: Economic regulation and infrastructure | AH74: NAT | AI74: 0 | AJ74: 0 | AK74: 0 | AL74: 0 | AM74: 0 | AN74: 0 | AO74: 0 | AP74: 0 | AQ74: 0 | AR74: 0 | AS74: 0 | BX74: =Dataset[[#This Row],[2023/24 From - Spending review Topic 1]]+Dataset[[#This Row],[2023/24 From - Spending review Topic 2]]+Dataset[[#This Row],[2023/24 From - Spending review Topic 3]]+Dataset[[#This Row],[2023/24 From - Spending review Topic 4]]+Dataset[[#This Row],[2023/24 From - Other reallocations]] -> 0 | BY74: =Dataset[[#This Row],[2024/25 From - Spending review Topic 1]]+Dataset[[#This Row],[2024/25 From - Spending review Topic 2]]+Dataset[[#This Row],[2024/25 From - Spending review Topic 3]]+Dataset[[#This Row],[2024/25 From - Spending review Topic 4]]+Dataset[[#This Row],[2024/25 From - Other reallocations]] -> 0 | BZ74: =Dataset[[#This Row],[2025/26 From - Spending review Topic 1]]+Dataset[[#This Row],[2025/26 From - Spending review Topic 2]]+Dataset[[#This Row],[2025/26 From - Spending review Topic 3]]+Dataset[[#This Row],[2025/26 From - Spending review Topic 4]]+Dataset[[#This Row],[2025/26 From - Other reallocations]] -> 0 | CA74: =Dataset[[#This Row],[2023/24 To - Spending review Topic 1]]+Dataset[[#This Row],[2023/24 To - Spending review Topic 2]]+Dataset[[#This Row],[2023/24 To - Spending review Topic 3]]+Dataset[[#This Row],[2023/24 To - Spending review Topic 4]]+Dataset[[#This Row],[2023/24 To - Other reallocations]] -> 0 | CB74: =Dataset[[#This Row],[2024/25 To - Spending review Topic 1]]+Dataset[[#This Row],[2024/25 To - Spending review Topic 2]]+Dataset[[#This Row],[2024/25 To - Spending review Topic 3]]+Dataset[[#This Row],[2024/25 To - Spending review Topic 4]]+Dataset[[#This Row],[2024/25 To - Other reallocations]] -> 0 | CC74: =Dataset[[#This Row],[2025/26 To - Spending review Topic 1]]+Dataset[[#This Row],[2025/26 To - Spending review Topic 2]]+Dataset[[#This Row],[2025/26 To - Spending review Topic 3]]+Dataset[[#This Row],[2025/26 To - Spending review Topic 4]]+Dataset[[#This Row],[2025/26 To - Other reallocations]] -> 0 | CD74: =Dataset[[#This Row],[2023/24 Baseline]]+Dataset[[#This Row],[2023/24 From - Total]]+Dataset[[#This Row],[2023/24 To - Total]] -> 0 | CE74: =Dataset[[#This Row],[2024/25 Baseline]]+Dataset[[#This Row],[2024/25 From - Total]]+Dataset[[#This Row],[2024/25 To - Total]] -> 0 | CF74: =Dataset[[#This Row],[2025/26 Baseline]]+Dataset[[#This Row],[2025/26 From - Total]]+Dataset[[#This Row],[2025/26 To - Total]] -> 0
A75: NAT|Employee social benefits | B75: 32|Social benefits | C75: 2023_24 | D75: MTEF2023 | E75: 32 | F75: 1 | G75: 1 | H75: 57075 | I75: 57 | J75: 32 | K75: 01 | L75: 01 | M75: 057075 | N75: 000057 | O75: 32|01|01 | P75: 1 | Q75: 2 | R75: 10 | S75: 52 | T75: 56 | U75: 01|02|10|52|56 | V75: National | W75: Forestry, Fisheries and the Environment | X75: Administration | Y75: Management | Z75: Employee social benefits | AA75: Current | AB75: Transfers and subsidies | AC75: Households | AD75: Social benefits | AE75: Social benefits | AF75: Economic development | AG75: Economic regulation and infrastructure | AH75: NAT | AI75: 0 | AJ75: 0 | AK75: 676 | AL75: 0 | AM75: 0 | AN75: 0 | AO75: 0 | AP75: 0 | AQ75: 0 | AR75: 0 | AS75: 0 | BX75: =Dataset[[#This Row],[2023/24 From - Spending review Topic 1]]+Dataset[[#This Row],[2023/24 From - Spending review Topic 2]]+Dataset[[#This Row],[2023/24 From - Spending review Topic 3]]+Dataset[[#This Row],[2023/24 From - Spending review Topic 4]]+Dataset[[#This Row],[2023/24 From - Other reallocations]] -> 0 | BY75: =Dataset[[#This Row],[2024/25 From - Spending review Topic 1]]+Dataset[[#This Row],[2024/25 From - Spending review Topic 2]]+Dataset[[#This Row],[2024/25 From - Spending review Topic 3]]+Dataset[[#This Row],[2024/25 From - Spending review Topic 4]]+Dataset[[#This Row],[2024/25 From - Other reallocations]] -> 0 | BZ75: =Dataset[[#This Row],[2025/26 From - Spending review Topic 1]]+Dataset[[#This Row],[2025/26 From - Spending review Topic 2]]+Dataset[[#This Row],[2025/26 From - Spending review Topic 3]]+Dataset[[#This Row],[2025/26 From - Spending review Topic 4]]+Dataset[[#This Row],[2025/26 From - Other reallocations]] -> 0 | CA75: =Dataset[[#This Row],[2023/24 To - Spending review Topic 1]]+Dataset[[#This Row],[2023/24 To - Spending review Topic 2]]+Dataset[[#This Row],[2023/24 To - Spending review Topic 3]]+Dataset[[#This Row],[2023/24 To - Spending review Topic 4]]+Dataset[[#This Row],[2023/24 To - Other reallocations]] -> 0 | CB75: =Dataset[[#This Row],[2024/25 To - Spending review Topic 1]]+Dataset[[#This Row],[2024/25 To - Spending review Topic 2]]+Dataset[[#This Row],[2024/25 To - Spending review Topic 3]]+Dataset[[#This Row],[2024/25 To - Spending review Topic 4]]+Dataset[[#This Row],[2024/25 To - Other reallocations]] -> 0 | CC75: =Dataset[[#This Row],[2025/26 To - Spending review Topic 1]]+Dataset[[#This Row],[2025/26 To - Spending review Topic 2]]+Dataset[[#This Row],[2025/26 To - Spending review Topic 3]]+Dataset[[#This Row],[2025/26 To - Spending review Topic 4]]+Dataset[[#This Row],[2025/26 To - Other reallocations]] -> 0 | CD75: =Dataset[[#This Row],[2023/24 Baseline]]+Dataset[[#This Row],[2023/24 From - Total]]+Dataset[[#This Row],[2023/24 To - Total]] -> 0 | CE75: =Dataset[[#This Row],[2024/25 Baseline]]+Dataset[[#This Row],[2024/25 From - Total]]+Dataset[[#This Row],[2024/25 To - Total]] -> 0 | CF75: =Dataset[[#This Row],[2025/26 Baseline]]+Dataset[[#This Row],[2025/26 From - Total]]+Dataset[[#This Row],[2025/26 To - Total]] -> 0
A76: NAT|Employee social benefits | B76: 32|Other transfers to households | C76: 2023_24 | D76: MTEF2023 | E76: 32 | F76: 1 | G76: 1 | H76: 57076 | I76: 58 | J76: 32 | K76: 01 | L76: 01 | M76: 057076 | N76: 000058 | O76: 32|01|01 | P76: 1 | Q76: 2 | R76: 10 | S76: 53 | T76: 57 | U76: 01|02|10|53|57 | V76: National | W76: Forestry, Fisheries and the Environment | X76: Administration | Y76: Management | Z76: Employee social benefits | AA76: Current | AB76: Transfers and subsidies | AC76: Households | AD76: Other transfers to households | AE76: Other transfers to households | AF76: Economic development | AG76: Economic regulation and infrastructure | AH76: NAT | AI76: 2368 | AJ76: 4423 | AK76: 0 | AL76: 0 | AM76: 0 | AN76: 0 | AO76: 0 | AP76: 0 | AQ76: 0 | AR76: 0 | AS76: 0 | BX76: =Dataset[[#This Row],[2023/24 From - Spending review Topic 1]]+Dataset[[#This Row],[2023/24 From - Spending review Topic 2]]+Dataset[[#This Row],[2023/24 From - Spending review Topic 3]]+Dataset[[#This Row],[2023/24 From - Spending review Topic 4]]+Dataset[[#This Row],[2023/24 From - Other reallocations]] -> 0 | BY76: =Dataset[[#This Row],[2024/25 From - Spending review Topic 1]]+Dataset[[#This Row],[2024/25 From - Spending review Topic 2]]+Dataset[[#This Row],[2024/25 From - Spending review Topic 3]]+Dataset[[#This Row],[2024/25 From - Spending review Topic 4]]+Dataset[[#This Row],[2024/25 From - Other reallocations]] -> 0 | BZ76: =Dataset[[#This Row],[2025/26 From - Spending review Topic 1]]+Dataset[[#This Row],[2025/26 From - Spending review Topic 2]]+Dataset[[#This Row],[2025/26 From - Spending review Topic 3]]+Dataset[[#This Row],[2025/26 From - Spending review Topic 4]]+Dataset[[#This Row],[2025/26 From - Other reallocations]] -> 0 | CA76: =Dataset[[#This Row],[2023/24 To - Spending review Topic 1]]+Dataset[[#This Row],[2023/24 To - Spending review Topic 2]]+Dataset[[#This Row],[2023/24 To - Spending review Topic 3]]+Dataset[[#This Row],[2023/24 To - Spending review Topic 4]]+Dataset[[#This Row],[2023/24 To - Other reallocations]] -> 0 | CB76: =Dataset[[#This Row],[2024/25 To - Spending review Topic 1]]+Dataset[[#This Row],[2024/25 To - Spending review Topic 2]]+Dataset[[#This Row],[2024/25 To - Spending review Topic 3]]+Dataset[[#This Row],[2024/25 To - Spending review Topic 4]]+Dataset[[#This Row],[2024/25 To - Other reallocations]] -> 0 | CC76: =Dataset[[#This Row],[2025/26 To - Spending review Topic 1]]+Dataset[[#This Row],[2025/26 To - Spending review Topic 2]]+Dataset[[#This Row],[2025/26 To - Spending review Topic 3]]+Dataset[[#This Row],[2025/26 To - Spending review Topic 4]]+Dataset[[#This Row],[2025/26 To - Other reallocations]] -> 0 | CD76: =Dataset[[#This Row],[2023/24 Baseline]]+Dataset[[#This Row],[2023/24 From - Total]]+Dataset[[#This Row],[2023/24 To - Total]] -> 0 | CE76: =Dataset[[#This Row],[2024/25 Baseline]]+Dataset[[#This Row],[2024/25 From - Total]]+Dataset[[#This Row],[2024/25 To - Total]] -> 0 | CF76: =Dataset[[#This Row],[2025/26 Baseline]]+Dataset[[#This Row],[2025/26 From - Total]]+Dataset[[#This Row],[2025/26 To - Total]] -> 0
A77: NAT|Non-transfer item | B77: 32|Provincial Revenue Funds | C77: 2023_24 | D77: MTEF2023 | E77: 32 | F77: 1 | G77: 1 | H77: 57077 | I77: 59 | J77: 32 | K77: 01 | L77: 01 | M77: 057077 | N77: 000059 | O77: 32|01|01 | P77: 2 | Q77: 2 | R77: 4 | S77: 43 | T77: 43 | U77: 02|02|04|43|43 | V77: National | W77: Forestry, Fisheries and the Environment | X77: Administration | Y77: Management | Z77: Non-transfer item | AA77: Capital | AB77: Transfers and subsidies | AC77: Provinces and municipalities | AD77: Provinces | AE77: Provincial Revenue Funds | AF77: Economic development | AG77: Economic regulation and infrastructure | AH77: NAT | AI77: 0 | AJ77: 0 | AK77: 0 | AL77: 0 | AM77: 0 | AN77: 0 | AO77: 0 | AP77: 0 | AQ77: 0 | AR77: 0 | AS77: 0 | BX77: =Dataset[[#This Row],[2023/24 From - Spending review Topic 1]]+Dataset[[#This Row],[2023/24 From - Spending review Topic 2]]+Dataset[[#This Row],[2023/24 From - Spending review Topic 3]]+Dataset[[#This Row],[2023/24 From - Spending review Topic 4]]+Dataset[[#This Row],[2023/24 From - Other reallocations]] -> 0 | BY77: =Dataset[[#This Row],[2024/25 From - Spending review Topic 1]]+Dataset[[#This Row],[2024/25 From - Spending review Topic 2]]+Dataset[[#This Row],[2024/25 From - Spending review Topic 3]]+Dataset[[#This Row],[2024/25 From - Spending review Topic 4]]+Dataset[[#This Row],[2024/25 From - Other reallocations]] -> 0 | BZ77: =Dataset[[#This Row],[2025/26 From - Spending review Topic 1]]+Dataset[[#This Row],[2025/26 From - Spending review Topic 2]]+Dataset[[#This Row],[2025/26 From - Spending review Topic 3]]+Dataset[[#This Row],[2025/26 From - Spending review Topic 4]]+Dataset[[#This Row],[2025/26 From - Other reallocations]] -> 0 | CA77: =Dataset[[#This Row],[2023/24 To - Spending review Topic 1]]+Dataset[[#This Row],[2023/24 To - Spending review Topic 2]]+Dataset[[#This Row],[2023/24 To - Spending review Topic 3]]+Dataset[[#This Row],[2023/24 To - Spending review Topic 4]]+Dataset[[#This Row],[2023/24 To - Other reallocations]] -> 0 | CB77: =Dataset[[#This Row],[2024/25 To - Spending review Topic 1]]+Dataset[[#This Row],[2024/25 To - Spending review Topic 2]]+Dataset[[#This Row],[2024/25 To - Spending review Topic 3]]+Dataset[[#This Row],[2024/25 To - Spending review Topic 4]]+Dataset[[#This Row],[2024/25 To - Other reallocations]] -> 0 | CC77: =Dataset[[#This Row],[2025/26 To - Spending review Topic 1]]+Dataset[[#This Row],[2025/26 To - Spending review Topic 2]]+Dataset[[#This Row],[2025/26 To - Spending review Topic 3]]+Dataset[[#This Row],[2025/26 To - Spending review Topic 4]]+Dataset[[#This Row],[2025/26 To - Other reallocations]] -> 0 | CD77: =Dataset[[#This Row],[2023/24 Baseline]]+Dataset[[#This Row],[2023/24 From - Total]]+Dataset[[#This Row],[2023/24 To - Total]] -> 0 | CE77: =Dataset[[#This Row],[2024/25 Baseline]]+Dataset[[#This Row],[2024/25 From - Total]]+Dataset[[#This Row],[2024/25 To - Total]] -> 0 | CF77: =Dataset[[#This Row],[2025/26 Baseline]]+Dataset[[#This Row],[2025/26 From - Total]]+Dataset[[#This Row],[2025/26 To - Total]] -> 0
A78: NAT|Non-transfer item | B78: 32|Municipal bank accounts | C78: 2023_24 | D78: MTEF2023 | E78: 32 | F78: 1 | G78: 1 | H78: 57078 | I78: 60 | J78: 32 | K78: 01 | L78: 01 | M78: 057078 | N78: 000060 | O78: 32|01|01 | P78: 2 | Q78: 2 | R78: 4 | S78: 44 | T78: 45 | U78: 02|02|04|44|45 | V78: National | W78: Forestry, Fisheries and the Environment | X78: Administration | Y78: Management | Z78: Non-transfer item | AA78: Capital | AB78: Transfers and subsidies | AC78: Provinces and municipalities | AD78: Municipalities | AE78: Municipal bank accounts | AF78: Economic development | AG78: Economic regulation and infrastructure | AH78: NAT | AI78: 0 | AJ78: 0 | AK78: 0 | AL78: 0 | AM78: 0 | AN78: 0 | AO78: 0 | AP78: 0 | AQ78: 0 | AR78: 0 | AS78: 0 | BX78: =Dataset[[#This Row],[2023/24 From - Spending review Topic 1]]+Dataset[[#This Row],[2023/24 From - Spending review Topic 2]]+Dataset[[#This Row],[2023/24 From - Spending review Topic 3]]+Dataset[[#This Row],[2023/24 From - Spending review Topic 4]]+Dataset[[#This Row],[2023/24 From - Other reallocations]] -> 0 | BY78: =Dataset[[#This Row],[2024/25 From - Spending review Topic 1]]+Dataset[[#This Row],[2024/25 From - Spending review Topic 2]]+Dataset[[#This Row],[2024/25 From - Spending review Topic 3]]+Dataset[[#This Row],[2024/25 From - Spending review Topic 4]]+Dataset[[#This Row],[2024/25 From - Other reallocations]] -> 0 | BZ78: =Dataset[[#This Row],[2025/26 From - Spending review Topic 1]]+Dataset[[#This Row],[2025/26 From - Spending review Topic 2]]+Dataset[[#This Row],[2025/26 From - Spending review Topic 3]]+Dataset[[#This Row],[2025/26 From - Spending review Topic 4]]+Dataset[[#This Row],[2025/26 From - Other reallocations]] -> 0 | CA78: =Dataset[[#This Row],[2023/24 To - Spending review Topic 1]]+Dataset[[#This Row],[2023/24 To - Spending review Topic 2]]+Dataset[[#This Row],[2023/24 To - Spending review Topic 3]]+Dataset[[#This Row],[2023/24 To - Spending review Topic 4]]+Dataset[[#This Row],[2023/24 To - Other reallocations]] -> 0 | CB78: =Dataset[[#This Row],[2024/25 To - Spending review Topic 1]]+Dataset[[#This Row],[2024/25 To - Spending review Topic 2]]+Dataset[[#This Row],[2024/25 To - Spending review Topic 3]]+Dataset[[#This Row],[2024/25 To - Spending review Topic 4]]+Dataset[[#This Row],[2024/25 To - Other reallocations]] -> 0 | CC78: =Dataset[[#This Row],[2025/26 To - Spending review Topic 1]]+Dataset[[#This Row],[2025/26 To - Spending review Topic 2]]+Dataset[[#This Row],[2025/26 To - Spending review Topic 3]]+Dataset[[#This Row],[2025/26 To - Spending review Topic 4]]+Dataset[[#This Row],[2025/26 To - Other reallocations]] -> 0 | CD78: =Dataset[[#This Row],[2023/24 Baseline]]+Dataset[[#This Row],[2023/24 From - Total]]+Dataset[[#This Row],[2023/24 To - Total]] -> 0 | CE78: =Dataset[[#This Row],[2024/25 Baseline]]+Dataset[[#This Row],[2024/25 From - Total]]+Dataset[[#This Row],[2024/25 To - Total]] -> 0 | CF78: =Dataset[[#This Row],[2025/26 Baseline]]+Dataset[[#This Row],[2025/26 From - Total]]+Dataset[[#This Row],[2025/26 To - Total]] -> 0
A79: NAT|Non-transfer item | B79: 32|Departmental agencies (non-business entities) | C79: 2023_24 | D79: MTEF2023 | E79: 32 | F79: 1 | G79: 1 | H79: 57079 | I79: 61 | J79: 32 | K79: 01 | L79: 01 | M79: 057079 | N79: 000061 | O79: 32|01|01 | P79: 2 | Q79: 2 | R79: 5 | S79: 46 | T79: 48 | U79: 02|02|05|46|48 | V79: National | W79: Forestry, Fisheries and the Environment | X79: Administration | Y79: Management | Z79: Non-transfer item | AA79: Capital | AB79: Transfers and subsidies | AC79: Departmental agencies and accounts | AD79: Departmental agencies (non-business entities) | AE79: Departmental agencies (non-business entities) | AF79: Economic development | AG79: Economic regulation and infrastructure | AH79: NAT | AI79: 0 | AJ79: 0 | AK79: 0 | AL79: 0 | AM79: 0 | AN79: 0 | AO79: 0 | AP79: 0 | AQ79: 0 | AR79: 0 | AS79: 0 | BX79: =Dataset[[#This Row],[2023/24 From - Spending review Topic 1]]+Dataset[[#This Row],[2023/24 From - Spending review Topic 2]]+Dataset[[#This Row],[2023/24 From - Spending review Topic 3]]+Dataset[[#This Row],[2023/24 From - Spending review Topic 4]]+Dataset[[#This Row],[2023/24 From - Other reallocations]] -> 0 | BY79: =Dataset[[#This Row],[2024/25 From - Spending review Topic 1]]+Dataset[[#This Row],[2024/25 From - Spending review Topic 2]]+Dataset[[#This Row],[2024/25 From - Spending review Topic 3]]+Dataset[[#This Row],[2024/25 From - Spending review Topic 4]]+Dataset[[#This Row],[2024/25 From - Other reallocations]] -> 0 | BZ79: =Dataset[[#This Row],[2025/26 From - Spending review Topic 1]]+Dataset[[#This Row],[2025/26 From - Spending review Topic 2]]+Dataset[[#This Row],[2025/26 From - Spending review Topic 3]]+Dataset[[#This Row],[2025/26 From - Spending review Topic 4]]+Dataset[[#This Row],[2025/26 From - Other reallocations]] -> 0 | CA79: =Dataset[[#This Row],[2023/24 To - Spending review Topic 1]]+Dataset[[#This Row],[2023/24 To - Spending review Topic 2]]+Dataset[[#This Row],[2023/24 To - Spending review Topic 3]]+Dataset[[#This Row],[2023/24 To - Spending review Topic 4]]+Dataset[[#This Row],[2023/24 To - Other reallocations]] -> 0 | CB79: =Dataset[[#This Row],[2024/25 To - Spending review Topic 1]]+Dataset[[#This Row],[2024/25 To - Spending review Topic 2]]+Dataset[[#This Row],[2024/25 To - Spending review Topic 3]]+Dataset[[#This Row],[2024/25 To - Spending review Topic 4]]+Dataset[[#This Row],[2024/25 To - Other reallocations]] -> 0 | CC79: =Dataset[[#This Row],[2025/26 To - Spending review Topic 1]]+Dataset[[#This Row],[2025/26 To - Spending review Topic 2]]+Dataset[[#This Row],[2025/26 To - Spending review Topic 3]]+Dataset[[#This Row],[2025/26 To - Spending review Topic 4]]+Dataset[[#This Row],[2025/26 To - Other reallocations]] -> 0 | CD79: =Dataset[[#This Row],[2023/24 Baseline]]+Dataset[[#This Row],[2023/24 From - Total]]+Dataset[[#This Row],[2023/24 To - Total]] -> 0 | CE79: =Dataset[[#This Row],[2024/25 Baseline]]+Dataset[[#This Row],[2024/25 From - Total]]+Dataset[[#This Row],[2024/25 To - Total]] -> 0 | CF79: =Dataset[[#This Row],[2025/26 Baseline]]+Dataset[[#This Row],[2025/26 From - Total]]+Dataset[[#This Row],[2025/26 To - Total]] -> 0
A80: NAT|Non-transfer item | B80: 32|Higher education institutions | C80: 2023_24 | D80: MTEF2023 | E80: 32 | F80: 1 | G80: 1 | H80: 57080 | I80: 62 | J80: 32 | K80: 01 | L80: 01 | M80: 057080 | N80: 000062 | O80: 32|01|01 | P80: 2 | Q80: 2 | R80: 6 | S80: 47 | T80: 49 | U80: 02|02|06|47|49 | V80: National | W80: Forestry, Fisheries and the Environment | X80: Administration | Y80: Management | Z80: Non-transfer item | AA80: Capital | AB80: Transfers and subsidies | AC80: Higher education institutions | AD80: Higher education institutions | AE80: Higher education institutions | AF80: Economic development | AG80: Economic regulation and infrastructure | AH80: NAT | AI80: 0 | AJ80: 0 | AK80: 0 | AL80: 0 | AM80: 0 | AN80: 0 | AO80: 0 | AP80: 0 | AQ80: 0 | AR80: 0 | AS80: 0 | BX80: =Dataset[[#This Row],[2023/24 From - Spending review Topic 1]]+Dataset[[#This Row],[2023/24 From - Spending review Topic 2]]+Dataset[[#This Row],[2023/24 From - Spending review Topic 3]]+Dataset[[#This Row],[2023/24 From - Spending review Topic 4]]+Dataset[[#This Row],[2023/24 From - Other reallocations]] -> 0 | BY80: =Dataset[[#This Row],[2024/25 From - Spending review Topic 1]]+Dataset[[#This Row],[2024/25 From - Spending review Topic 2]]+Dataset[[#This Row],[2024/25 From - Spending review Topic 3]]+Dataset[[#This Row],[2024/25 From - Spending review Topic 4]]+Dataset[[#This Row],[2024/25 From - Other reallocations]] -> 0 | BZ80: =Dataset[[#This Row],[2025/26 From - Spending review Topic 1]]+Dataset[[#This Row],[2025/26 From - Spending review Topic 2]]+Dataset[[#This Row],[2025/26 From - Spending review Topic 3]]+Dataset[[#This Row],[2025/26 From - Spending review Topic 4]]+Dataset[[#This Row],[2025/26 From - Other reallocations]] -> 0 | CA80: =Dataset[[#This Row],[2023/24 To - Spending review Topic 1]]+Dataset[[#This Row],[2023/24 To - Spending review Topic 2]]+Dataset[[#This Row],[2023/24 To - Spending review Topic 3]]+Dataset[[#This Row],[2023/24 To - Spending review Topic 4]]+Dataset[[#This Row],[2023/24 To - Other reallocations]] -> 0 | CB80: =Dataset[[#This Row],[2024/25 To - Spending review Topic 1]]+Dataset[[#This Row],[2024/25 To - Spending review Topic 2]]+Dataset[[#This Row],[2024/25 To - Spending review Topic 3]]+Dataset[[#This Row],[2024/25 To - Spending review Topic 4]]+Dataset[[#This Row],[2024/25 To - Other reallocations]] -> 0 | CC80: =Dataset[[#This Row],[2025/26 To - Spending review Topic 1]]+Dataset[[#This Row],[2025/26 To - Spending review Topic 2]]+Dataset[[#This Row],[2025/26 To - Spending review Topic 3]]+Dataset[[#This Row],[2025/26 To - Spending review Topic 4]]+Dataset[[#This Row],[2025/26 To - Other reallocations]] -> 0 | CD80: =Dataset[[#This Row],[2023/24 Baseline]]+Dataset[[#This Row],[2023/24 From - Total]]+Dataset[[#This Row],[2023/24 To - Total]] -> 0 | CE80: =Dataset[[#This Row],[2024/25 Baseline]]+Dataset[[#This Row],[2024/25 From - Total]]+Dataset[[#This Row],[2024/25 To - Total]] -> 0 | CF80: =Dataset[[#This Row],[2025/26 Baseline]]+Dataset[[#This Row],[2025/26 From - Total]]+Dataset[[#This Row],[2025/26 To - Total]] -> 0
A81: NAT|Non-transfer item | B81: 32|Foreign governments and international organisations | C81: 2023_24 | D81: MTEF2023 | E81: 32 | F81: 1 | G81: 1 | H81: 57081 | I81: 63 | J81: 32 | K81: 01 | L81: 01 | M81: 057081 | N81: 000063 | O81: 32|01|01 | P81: 2 | Q81: 2 | R81: 7 | S81: 48 | T81: 50 | U81: 02|02|07|48|50 | V81: National | W81: Forestry, Fisheries and the Environment | X81: Administration | Y81: Management | Z81: Non-transfer item | AA81: Capital | AB81: Transfers and subsidies | AC81: Foreign governments and international organisations | AD81: Foreign governments and international organisations | AE81: Foreign governments and international organisations | AF81: Economic development | AG81: Economic regulation and infrastructure | AH81: NAT | AI81: 0 | AJ81: 0 | AK81: 0 | AL81: 0 | AM81: 0 | AN81: 0 | AO81: 0 | AP81: 0 | AQ81: 0 | AR81: 0 | AS81: 0 | BX81: =Dataset[[#This Row],[2023/24 From - Spending review Topic 1]]+Dataset[[#This Row],[2023/24 From - Spending review Topic 2]]+Dataset[[#This Row],[2023/24 From - Spending review Topic 3]]+Dataset[[#This Row],[2023/24 From - Spending review Topic 4]]+Dataset[[#This Row],[2023/24 From - Other reallocations]] -> 0 | BY81: =Dataset[[#This Row],[2024/25 From - Spending review Topic 1]]+Dataset[[#This Row],[2024/25 From - Spending review Topic 2]]+Dataset[[#This Row],[2024/25 From - Spending review Topic 3]]+Dataset[[#This Row],[2024/25 From - Spending review Topic 4]]+Dataset[[#This Row],[2024/25 From - Other reallocations]] -> 0 | BZ81: =Dataset[[#This Row],[2025/26 From - Spending review Topic 1]]+Dataset[[#This Row],[2025/26 From - Spending review Topic 2]]+Dataset[[#This Row],[2025/26 From - Spending review Topic 3]]+Dataset[[#This Row],[2025/26 From - Spending review Topic 4]]+Dataset[[#This Row],[2025/26 From - Other reallocations]] -> 0 | CA81: =Dataset[[#This Row],[2023/24 To - Spending review Topic 1]]+Dataset[[#This Row],[2023/24 To - Spending review Topic 2]]+Dataset[[#This Row],[2023/24 To - Spending review Topic 3]]+Dataset[[#This Row],[2023/24 To - Spending review Topic 4]]+Dataset[[#This Row],[2023/24 To - Other reallocations]] -> 0 | CB81: =Dataset[[#This Row],[2024/25 To - Spending review Topic 1]]+Dataset[[#This Row],[2024/25 To - Spending review Topic 2]]+Dataset[[#This Row],[2024/25 To - Spending review Topic 3]]+Dataset[[#This Row],[2024/25 To - Spending review Topic 4]]+Dataset[[#This Row],[2024/25 To - Other reallocations]] -> 0 | CC81: =Dataset[[#This Row],[2025/26 To - Spending review Topic 1]]+Dataset[[#This Row],[2025/26 To - Spending review Topic 2]]+Dataset[[#This Row],[2025/26 To - Spending review Topic 3]]+Dataset[[#This Row],[2025/26 To - Spending review Topic 4]]+Dataset[[#This Row],[2025/26 To - Other reallocations]] -> 0 | CD81: =Dataset[[#This Row],[2023/24 Baseline]]+Dataset[[#This Row],[2023/24 From - Total]]+Dataset[[#This Row],[2023/24 To - Total]] -> 0 | CE81: =Dataset[[#This Row],[2024/25 Baseline]]+Dataset[[#This Row],[2024/25 From - Total]]+Dataset[[#This Row],[2024/25 To - Total]] -> 0 | CF81: =Dataset[[#This Row],[2025/26 Baseline]]+Dataset[[#This Row],[2025/26 From - Total]]+Dataset[[#This Row],[2025/26 To - Total]] -> 0
A82: NAT|Non-transfer item | B82: 32|Subsidies on products and production (pc) | C82: 2023_24 | D82: MTEF2023 | E82: 32 | F82: 1 | G82: 1 | H82: 57082 | I82: 64 | J82: 32 | K82: 01 | L82: 01 | M82: 057082 | N82: 000064 | O82: 32|01|01 | P82: 2 | Q82: 2 | R82: 8 | S82: 49 | T82: 51 | U82: 02|02|08|49|51 | V82: National | W82: Forestry, Fisheries and the Environment | X82: Administration | Y82: Management | Z82: Non-transfer item | AA82: Capital | AB82: Transfers and subsidies | AC82: Public corporations and private enterprises | AD82: Public corporations | AE82: Subsidies on products and production (pc) | AF82: Economic development | AG82: Economic regulation and infrastructure | AH82: NAT | AI82: 0 | AJ82: 0 | AK82: 0 | AL82: 0 | AM82: 0 | AN82: 0 | AO82: 0 | AP82: 0 | AQ82: 0 | AR82: 0 | AS82: 0 | BX82: =Dataset[[#This Row],[2023/24 From - Spending review Topic 1]]+Dataset[[#This Row],[2023/24 From - Spending review Topic 2]]+Dataset[[#This Row],[2023/24 From - Spending review Topic 3]]+Dataset[[#This Row],[2023/24 From - Spending review Topic 4]]+Dataset[[#This Row],[2023/24 From - Other reallocations]] -> 0 | BY82: =Dataset[[#This Row],[2024/25 From - Spending review Topic 1]]+Dataset[[#This Row],[2024/25 From - Spending review Topic 2]]+Dataset[[#This Row],[2024/25 From - Spending review Topic 3]]+Dataset[[#This Row],[2024/25 From - Spending review Topic 4]]+Dataset[[#This Row],[2024/25 From - Other reallocations]] -> 0 | BZ82: =Dataset[[#This Row],[2025/26 From - Spending review Topic 1]]+Dataset[[#This Row],[2025/26 From - Spending review Topic 2]]+Dataset[[#This Row],[2025/26 From - Spending review Topic 3]]+Dataset[[#This Row],[2025/26 From - Spending review Topic 4]]+Dataset[[#This Row],[2025/26 From - Other reallocations]] -> 0 | CA82: =Dataset[[#This Row],[2023/24 To - Spending review Topic 1]]+Dataset[[#This Row],[2023/24 To - Spending review Topic 2]]+Dataset[[#This Row],[2023/24 To - Spending review Topic 3]]+Dataset[[#This Row],[2023/24 To - Spending review Topic 4]]+Dataset[[#This Row],[2023/24 To - Other reallocations]] -> 0 | CB82: =Dataset[[#This Row],[2024/25 To - Spending review Topic 1]]+Dataset[[#This Row],[2024/25 To - Spending review Topic 2]]+Dataset[[#This Row],[2024/25 To - Spending review Topic 3]]+Dataset[[#This Row],[2024/25 To - Spending review Topic 4]]+Dataset[[#This Row],[2024/25 To - Other reallocations]] -> 0 | CC82: =Dataset[[#This Row],[2025/26 To - Spending review Topic 1]]+Dataset[[#This Row],[2025/26 To - Spending review Topic 2]]+Dataset[[#This Row],[2025/26 To - Spending review Topic 3]]+Dataset[[#This Row],[2025/26 To - Spending review Topic 4]]+Dataset[[#This Row],[2025/26 To - Other reallocations]] -> 0 | CD82: =Dataset[[#This Row],[2023/24 Baseline]]+Dataset[[#This Row],[2023/24 From - Total]]+Dataset[[#This Row],[2023/24 To - Total]] -> 0 | CE82: =Dataset[[#This Row],[2024/25 Baseline]]+Dataset[[#This Row],[2024/25 From - Total]]+Dataset[[#This Row],[2024/25 To - Total]] -> 0 | CF82: =Dataset[[#This Row],[2025/26 Baseline]]+Dataset[[#This Row],[2025/26 From - Total]]+Dataset[[#This Row],[2025/26 To - Total]] -> 0
A83: NAT|Non-transfer item | B83: 32|Other transfers to public corporations | C83: 2023_24 | D83: MTEF2023 | E83: 32 | F83: 1 | G83: 1 | H83: 57083 | I83: 65 | J83: 32 | K83: 01 | L83: 01 | M83: 057083 | N83: 000065 | O83: 32|01|01 | P83: 2 | Q83: 2 | R83: 8 | S83: 49 | T83: 52 | U83: 02|02|08|49|52 | V83: National | W83: Forestry, Fisheries and the Environment | X83: Administration | Y83: Management | Z83: Non-transfer item | AA83: Capital | AB83: Transfers and subsidies | AC83: Public corporations and private enterprises | AD83: Public corporations | AE83: Other transfers to public corporations | AF83: Economic development | AG83: Economic regulation and infrastructure | AH83: NAT | AI83: 0 | AJ83: 0 | AK83: 0 | AL83: 0 | AM83: 0 | AN83: 0 | AO83: 0 | AP83: 0 | AQ83: 0 | AR83: 0 | AS83: 0 | BX83: =Dataset[[#This Row],[2023/24 From - Spending review Topic 1]]+Dataset[[#This Row],[2023/24 From - Spending review Topic 2]]+Dataset[[#This Row],[2023/24 From - Spending review Topic 3]]+Dataset[[#This Row],[2023/24 From - Spending review Topic 4]]+Dataset[[#This Row],[2023/24 From - Other reallocations]] -> 0 | BY83: =Dataset[[#This Row],[2024/25 From - Spending review Topic 1]]+Dataset[[#This Row],[2024/25 From - Spending review Topic 2]]+Dataset[[#This Row],[2024/25 From - Spending review Topic 3]]+Dataset[[#This Row],[2024/25 From - Spending review Topic 4]]+Dataset[[#This Row],[2024/25 From - Other reallocations]] -> 0 | BZ83: =Dataset[[#This Row],[2025/26 From - Spending review Topic 1]]+Dataset[[#This Row],[2025/26 From - Spending review Topic 2]]+Dataset[[#This Row],[2025/26 From - Spending review Topic 3]]+Dataset[[#This Row],[2025/26 From - Spending review Topic 4]]+Dataset[[#This Row],[2025/26 From - Other reallocations]] -> 0 | CA83: =Dataset[[#This Row],[2023/24 To - Spending review Topic 1]]+Dataset[[#This Row],[2023/24 To - Spending review Topic 2]]+Dataset[[#This Row],[2023/24 To - Spending review Topic 3]]+Dataset[[#This Row],[2023/24 To - Spending review Topic 4]]+Dataset[[#This Row],[2023/24 To - Other reallocations]] -> 0 | CB83: =Dataset[[#This Row],[2024/25 To - Spending review Topic 1]]+Dataset[[#This Row],[2024/25 To - Spending review Topic 2]]+Dataset[[#This Row],[2024/25 To - Spending review Topic 3]]+Dataset[[#This Row],[2024/25 To - Spending review Topic 4]]+Dataset[[#This Row],[2024/25 To - Other reallocations]] -> 0 | CC83: =Dataset[[#This Row],[2025/26 To - Spending review Topic 1]]+Dataset[[#This Row],[2025/26 To - Spending review Topic 2]]+Dataset[[#This Row],[2025/26 To - Spending review Topic 3]]+Dataset[[#This Row],[2025/26 To - Spending review Topic 4]]+Dataset[[#This Row],[2025/26 To - Other reallocations]] -> 0 | CD83: =Dataset[[#This Row],[2023/24 Baseline]]+Dataset[[#This Row],[2023/24 From - Total]]+Dataset[[#This Row],[2023/24 To - Total]] -> 0 | CE83: =Dataset[[#This Row],[2024/25 Baseline]]+Dataset[[#This Row],[2024/25 From - Total]]+Dataset[[#This Row],[2024/25 To - Total]] -> 0 | CF83: =Dataset[[#This Row],[2025/26 Baseline]]+Dataset[[#This Row],[2025/26 From - Total]]+Dataset[[#This Row],[2025/26 To - Total]] -> 0
A84: NAT|Non-transfer item | B84: 32|Other transfers to private enterprises | C84: 2023_24 | D84: MTEF2023 | E84: 32 | F84: 1 | G84: 1 | H84: 57084 | I84: 66 | J84: 32 | K84: 01 | L84: 01 | M84: 057084 | N84: 000066 | O84: 32|01|01 | P84: 2 | Q84: 2 | R84: 8 | S84: 50 | T84: 54 | U84: 02|02|08|50|54 | V84: National | W84: Forestry, Fisheries and the Environment | X84: Administration | Y84: Management | Z84: Non-transfer item | AA84: Capital | AB84: Transfers and subsidies | AC84: Public corporations and private enterprises | AD84: Private enterprises | AE84: Other transfers to private enterprises | AF84: Economic development | AG84: Economic regulation and infrastructure | AH84: NAT | AI84: 0 | AJ84: 0 | AK84: 0 | AL84: 0 | AM84: 0 | AN84: 0 | AO84: 0 | AP84: 0 | AQ84: 0 | AR84: 0 | AS84: 0 | BX84: =Dataset[[#This Row],[2023/24 From - Spending review Topic 1]]+Dataset[[#This Row],[2023/24 From - Spending review Topic 2]]+Dataset[[#This Row],[2023/24 From - Spending review Topic 3]]+Dataset[[#This Row],[2023/24 From - Spending review Topic 4]]+Dataset[[#This Row],[2023/24 From - Other reallocations]] -> 0 | BY84: =Dataset[[#This Row],[2024/25 From - Spending review Topic 1]]+Dataset[[#This Row],[2024/25 From - Spending review Topic 2]]+Dataset[[#This Row],[2024/25 From - Spending review Topic 3]]+Dataset[[#This Row],[2024/25 From - Spending review Topic 4]]+Dataset[[#This Row],[2024/25 From - Other reallocations]] -> 0 | BZ84: =Dataset[[#This Row],[2025/26 From - Spending review Topic 1]]+Dataset[[#This Row],[2025/26 From - Spending review Topic 2]]+Dataset[[#This Row],[2025/26 From - Spending review Topic 3]]+Dataset[[#This Row],[2025/26 From - Spending review Topic 4]]+Dataset[[#This Row],[2025/26 From - Other reallocations]] -> 0 | CA84: =Dataset[[#This Row],[2023/24 To - Spending review Topic 1]]+Dataset[[#This Row],[2023/24 To - Spending review Topic 2]]+Dataset[[#This Row],[2023/24 To - Spending review Topic 3]]+Dataset[[#This Row],[2023/24 To - Spending review Topic 4]]+Dataset[[#This Row],[2023/24 To - Other reallocations]] -> 0 | CB84: =Dataset[[#This Row],[2024/25 To - Spending review Topic 1]]+Dataset[[#This Row],[2024/25 To - Spending review Topic 2]]+Dataset[[#This Row],[2024/25 To - Spending review Topic 3]]+Dataset[[#This Row],[2024/25 To - Spending review Topic 4]]+Dataset[[#This Row],[2024/25 To - Other reallocations]] -> 0 | CC84: =Dataset[[#This Row],[2025/26 To - Spending review Topic 1]]+Dataset[[#This Row],[2025/26 To - Spending review Topic 2]]+Dataset[[#This Row],[2025/26 To - Spending review Topic 3]]+Dataset[[#This Row],[2025/26 To - Spending review Topic 4]]+Dataset[[#This Row],[2025/26 To - Other reallocations]] -> 0 | CD84: =Dataset[[#This Row],[2023/24 Baseline]]+Dataset[[#This Row],[2023/24 From - Total]]+Dataset[[#This Row],[2023/24 To - Total]] -> 0 | CE84: =Dataset[[#This Row],[2024/25 Baseline]]+Dataset[[#This Row],[2024/25 From - Total]]+Dataset[[#This Row],[2024/25 To - Total]] -> 0 | CF84: =Dataset[[#This Row],[2025/26 Baseline]]+Dataset[[#This Row],[2025/26 From - Total]]+Dataset[[#This Row],[2025/26 To - Total]] -> 0
A85: NAT|Non-transfer item | B85: 32|Non-profit institutions | C85: 2023_24 | D85: MTEF2023 | E85: 32 | F85: 1 | G85: 1 | H85: 57085 | I85: 67 | J85: 32 | K85: 01 | L85: 01 | M85: 057085 | N85: 000067 | O85: 32|01|01 | P85: 2 | Q85: 2 | R85: 9 | S85: 51 | T85: 55 | U85: 02|02|09|51|55 | V85: National | W85: Forestry, Fisheries and the Environment | X85: Administration | Y85: Management | Z85: Non-transfer item | AA85: Capital | AB85: Transfers and subsidies | AC85: Non-profit institutions | AD85: Non-profit institutions | AE85: Non-profit institutions | AF85: Economic development | AG85: Economic regulation and infrastructure | AH85: NAT | AI85: 0 | AJ85: 0 | AK85: 0 | AL85: 0 | AM85: 0 | AN85: 0 | AO85: 0 | AP85: 0 | AQ85: 0 | AR85: 0 | AS85: 0 | BX85: =Dataset[[#This Row],[2023/24 From - Spending review Topic 1]]+Dataset[[#This Row],[2023/24 From - Spending review Topic 2]]+Dataset[[#This Row],[2023/24 From - Spending review Topic 3]]+Dataset[[#This Row],[2023/24 From - Spending review Topic 4]]+Dataset[[#This Row],[2023/24 From - Other reallocations]] -> 0 | BY85: =Dataset[[#This Row],[2024/25 From - Spending review Topic 1]]+Dataset[[#This Row],[2024/25 From - Spending review Topic 2]]+Dataset[[#This Row],[2024/25 From - Spending review Topic 3]]+Dataset[[#This Row],[2024/25 From - Spending review Topic 4]]+Dataset[[#This Row],[2024/25 From - Other reallocations]] -> 0 | BZ85: =Dataset[[#This Row],[2025/26 From - Spending review Topic 1]]+Dataset[[#This Row],[2025/26 From - Spending review Topic 2]]+Dataset[[#This Row],[2025/26 From - Spending review Topic 3]]+Dataset[[#This Row],[2025/26 From - Spending review Topic 4]]+Dataset[[#This Row],[2025/26 From - Other reallocations]] -> 0 | CA85: =Dataset[[#This Row],[2023/24 To - Spending review Topic 1]]+Dataset[[#This Row],[2023/24 To - Spending review Topic 2]]+Dataset[[#This Row],[2023/24 To - Spending review Topic 3]]+Dataset[[#This Row],[2023/24 To - Spending review Topic 4]]+Dataset[[#This Row],[2023/24 To - Other reallocations]] -> 0 | CB85: =Dataset[[#This Row],[2024/25 To - Spending review Topic 1]]+Dataset[[#This Row],[2024/25 To - Spending review Topic 2]]+Dataset[[#This Row],[2024/25 To - Spending review Topic 3]]+Dataset[[#This Row],[2024/25 To - Spending review Topic 4]]+Dataset[[#This Row],[2024/25 To - Other reallocations]] -> 0 | CC85: =Dataset[[#This Row],[2025/26 To - Spending review Topic 1]]+Dataset[[#This Row],[2025/26 To - Spending review Topic 2]]+Dataset[[#This Row],[2025/26 To - Spending review Topic 3]]+Dataset[[#This Row],[2025/26 To - Spending review Topic 4]]+Dataset[[#This Row],[2025/26 To - Other reallocations]] -> 0 | CD85: =Dataset[[#This Row],[2023/24 Baseline]]+Dataset[[#This Row],[2023/24 From - Total]]+Dataset[[#This Row],[2023/24 To - Total]] -> 0 | CE85: =Dataset[[#This Row],[2024/25 Baseline]]+Dataset[[#This Row],[2024/25 From - Total]]+Dataset[[#This Row],[2024/25 To - Total]] -> 0 | CF85: =Dataset[[#This Row],[2025/26 Baseline]]+Dataset[[#This Row],[2025/26 From - Total]]+Dataset[[#This Row],[2025/26 To - Total]] -> 0
A86: NAT|Non-transfer item | B86: 32|Other transfers to households | C86: 2023_24 | D86: MTEF2023 | E86: 32 | F86: 1 | G86: 1 | H86: 57086 | I86: 68 | J86: 32 | K86: 01 | L86: 01 | M86: 057086 | N86: 000068 | O86: 32|01|01 | P86: 2 | Q86: 2 | R86: 10 | S86: 53 | T86: 57 | U86: 02|02|10|53|57 | V86: National | W86: Forestry, Fisheries and the Environment | X86: Administration | Y86: Management | Z86: Non-transfer item | AA86: Capital | AB86: Transfers and subsidies | AC86: Households | AD86: Other transfers to households | AE86: Other transfers to households | AF86: Economic development | AG86: Economic regulation and infrastructure | AH86: NAT | AI86: 0 | AJ86: 0 | AK86: 0 | AL86: 0 | AM86: 0 | AN86: 0 | AO86: 0 | AP86: 0 | AQ86: 0 | AR86: 0 | AS86: 0 | BX86: =Dataset[[#This Row],[2023/24 From - Spending review Topic 1]]+Dataset[[#This Row],[2023/24 From - Spending review Topic 2]]+Dataset[[#This Row],[2023/24 From - Spending review Topic 3]]+Dataset[[#This Row],[2023/24 From - Spending review Topic 4]]+Dataset[[#This Row],[2023/24 From - Other reallocations]] -> 0 | BY86: =Dataset[[#This Row],[2024/25 From - Spending review Topic 1]]+Dataset[[#This Row],[2024/25 From - Spending review Topic 2]]+Dataset[[#This Row],[2024/25 From - Spending review Topic 3]]+Dataset[[#This Row],[2024/25 From - Spending review Topic 4]]+Dataset[[#This Row],[2024/25 From - Other reallocations]] -> 0 | BZ86: =Dataset[[#This Row],[2025/26 From - Spending review Topic 1]]+Dataset[[#This Row],[2025/26 From - Spending review Topic 2]]+Dataset[[#This Row],[2025/26 From - Spending review Topic 3]]+Dataset[[#This Row],[2025/26 From - Spending review Topic 4]]+Dataset[[#This Row],[2025/26 From - Other reallocations]] -> 0 | CA86: =Dataset[[#This Row],[2023/24 To - Spending review Topic 1]]+Dataset[[#This Row],[2023/24 To - Spending review Topic 2]]+Dataset[[#This Row],[2023/24 To - Spending review Topic 3]]+Dataset[[#This Row],[2023/24 To - Spending review Topic 4]]+Dataset[[#This Row],[2023/24 To - Other reallocations]] -> 0 | CB86: =Dataset[[#This Row],[2024/25 To - Spending review Topic 1]]+Dataset[[#This Row],[2024/25 To - Spending review Topic 2]]+Dataset[[#This Row],[2024/25 To - Spending review Topic 3]]+Dataset[[#This Row],[2024/25 To - Spending review Topic 4]]+Dataset[[#This Row],[2024/25 To - Other reallocations]] -> 0 | CC86: =Dataset[[#This Row],[2025/26 To - Spending review Topic 1]]+Dataset[[#This Row],[2025/26 To - Spending review Topic 2]]+Dataset[[#This Row],[2025/26 To - Spending review Topic 3]]+Dataset[[#This Row],[2025/26 To - Spending review Topic 4]]+Dataset[[#This Row],[2025/26 To - Other reallocations]] -> 0 | CD86: =Dataset[[#This Row],[2023/24 Baseline]]+Dataset[[#This Row],[2023/24 From - Total]]+Dataset[[#This Row],[2023/24 To - Total]] -> 0 | CE86: =Dataset[[#This Row],[2024/25 Baseline]]+Dataset[[#This Row],[2024/25 From - Total]]+Dataset[[#This Row],[2024/25 To - Total]] -> 0 | CF86: =Dataset[[#This Row],[2025/26 Baseline]]+Dataset[[#This Row],[2025/26 From - Total]]+Dataset[[#This Row],[2025/26 To - Total]] -> 0
A87: NAT|Non-transfer item | B87: 32|Buildings | C87: 2023_24 | D87: MTEF2023 | E87: 32 | F87: 1 | G87: 1 | H87: 57087 | I87: 69 | J87: 32 | K87: 01 | L87: 01 | M87: 057087 | N87: 000069 | O87: 32|01|01 | P87: 2 | Q87: 3 | R87: 11 | S87: 54 | T87: 58 | U87: 02|03|11|54|58 | V87: National | W87: Forestry, Fisheries and the Environment | X87: Administration | Y87: Management | Z87: Non-transfer item | AA87: Capital | AB87: Payments for capital assets | AC87: Buildings and other fixed structures | AD87: Buildings | AE87: Buildings | AF87: Economic development | AG87: Economic regulation and infrastructure | AH87: NAT | AI87: 0 | AJ87: 0 | AK87: 0 | AL87: 0 | AM87: 0 | AN87: 0 | AO87: 0 | AP87: 0 | AQ87: 0 | AR87: 0 | AS87: 0 | BX87: =Dataset[[#This Row],[2023/24 From - Spending review Topic 1]]+Dataset[[#This Row],[2023/24 From - Spending review Topic 2]]+Dataset[[#This Row],[2023/24 From - Spending review Topic 3]]+Dataset[[#This Row],[2023/24 From - Spending review Topic 4]]+Dataset[[#This Row],[2023/24 From - Other reallocations]] -> 0 | BY87: =Dataset[[#This Row],[2024/25 From - Spending review Topic 1]]+Dataset[[#This Row],[2024/25 From - Spending review Topic 2]]+Dataset[[#This Row],[2024/25 From - Spending review Topic 3]]+Dataset[[#This Row],[2024/25 From - Spending review Topic 4]]+Dataset[[#This Row],[2024/25 From - Other reallocations]] -> 0 | BZ87: =Dataset[[#This Row],[2025/26 From - Spending review Topic 1]]+Dataset[[#This Row],[2025/26 From - Spending review Topic 2]]+Dataset[[#This Row],[2025/26 From - Spending review Topic 3]]+Dataset[[#This Row],[2025/26 From - Spending review Topic 4]]+Dataset[[#This Row],[2025/26 From - Other reallocations]] -> 0 | CA87: =Dataset[[#This Row],[2023/24 To - Spending review Topic 1]]+Dataset[[#This Row],[2023/24 To - Spending review Topic 2]]+Dataset[[#This Row],[2023/24 To - Spending review Topic 3]]+Dataset[[#This Row],[2023/24 To - Spending review Topic 4]]+Dataset[[#This Row],[2023/24 To - Other reallocations]] -> 0 | CB87: =Dataset[[#This Row],[2024/25 To - Spending review Topic 1]]+Dataset[[#This Row],[2024/25 To - Spending review Topic 2]]+Dataset[[#This Row],[2024/25 To - Spending review Topic 3]]+Dataset[[#This Row],[2024/25 To - Spending review Topic 4]]+Dataset[[#This Row],[2024/25 To - Other reallocations]] -> 0 | CC87: =Dataset[[#This Row],[2025/26 To - Spending review Topic 1]]+Dataset[[#This Row],[2025/26 To - Spending review Topic 2]]+Dataset[[#This Row],[2025/26 To - Spending review Topic 3]]+Dataset[[#This Row],[2025/26 To - Spending review Topic 4]]+Dataset[[#This Row],[2025/26 To - Other reallocations]] -> 0 | CD87: =Dataset[[#This Row],[2023/24 Baseline]]+Dataset[[#This Row],[2023/24 From - Total]]+Dataset[[#This Row],[2023/24 To - Total]] -> 0 | CE87: =Dataset[[#This Row],[2024/25 Baseline]]+Dataset[[#This Row],[2024/25 From - Total]]+Dataset[[#This Row],[2024/25 To - Total]] -> 0 | CF87: =Dataset[[#This Row],[2025/26 Baseline]]+Dataset[[#This Row],[2025/26 From - Total]]+Dataset[[#This Row],[2025/26 To - Total]] -> 0
A88: NAT|Non-transfer item | B88: 32|Other fixed structures | C88: 2023_24 | D88: MTEF2023 | E88: 32 | F88: 1 | G88: 1 | H88: 57088 | I88: 70 | J88: 32 | K88: 01 | L88: 01 | M88: 057088 | N88: 000070 | O88: 32|01|01 | P88: 2 | Q88: 3 | R88: 11 | S88: 55 | T88: 59 | U88: 02|03|11|55|59 | V88: National | W88: Forestry, Fisheries and the Environment | X88: Administration | Y88: Management | Z88: Non-transfer item | AA88: Capital | AB88: Payments for capital assets | AC88: Buildings and other fixed structures | AD88: Other fixed structures | AE88: Other fixed structures | AF88: Economic development | AG88: Economic regulation and infrastructure | AH88: NAT | AI88: 0 | AJ88: 0 | AK88: 0 | AL88: 0 | AM88: 0 | AN88: 0 | AO88: 0 | AP88: 0 | AQ88: 0 | AR88: 0 | AS88: 0 | BX88: =Dataset[[#This Row],[2023/24 From - Spending review Topic 1]]+Dataset[[#This Row],[2023/24 From - Spending review Topic 2]]+Dataset[[#This Row],[2023/24 From - Spending review Topic 3]]+Dataset[[#This Row],[2023/24 From - Spending review Topic 4]]+Dataset[[#This Row],[2023/24 From - Other reallocations]] -> 0 | BY88: =Dataset[[#This Row],[2024/25 From - Spending review Topic 1]]+Dataset[[#This Row],[2024/25 From - Spending review Topic 2]]+Dataset[[#This Row],[2024/25 From - Spending review Topic 3]]+Dataset[[#This Row],[2024/25 From - Spending review Topic 4]]+Dataset[[#This Row],[2024/25 From - Other reallocations]] -> 0 | BZ88: =Dataset[[#This Row],[2025/26 From - Spending review Topic 1]]+Dataset[[#This Row],[2025/26 From - Spending review Topic 2]]+Dataset[[#This Row],[2025/26 From - Spending review Topic 3]]+Dataset[[#This Row],[2025/26 From - Spending review Topic 4]]+Dataset[[#This Row],[2025/26 From - Other reallocations]] -> 0 | CA88: =Dataset[[#This Row],[2023/24 To - Spending review Topic 1]]+Dataset[[#This Row],[2023/24 To - Spending review Topic 2]]+Dataset[[#This Row],[2023/24 To - Spending review Topic 3]]+Dataset[[#This Row],[2023/24 To - Spending review Topic 4]]+Dataset[[#This Row],[2023/24 To - Other reallocations]] -> 0 | CB88: =Dataset[[#This Row],[2024/25 To - Spending review Topic 1]]+Dataset[[#This Row],[2024/25 To - Spending review Topic 2]]+Dataset[[#This Row],[2024/25 To - Spending review Topic 3]]+Dataset[[#This Row],[2024/25 To - Spending review Topic 4]]+Dataset[[#This Row],[2024/25 To - Other reallocations]] -> 0 | CC88: =Dataset[[#This Row],[2025/26 To - Spending review Topic 1]]+Dataset[[#This Row],[2025/26 To - Spending review Topic 2]]+Dataset[[#This Row],[2025/26 To - Spending review Topic 3]]+Dataset[[#This Row],[2025/26 To - Spending review Topic 4]]+Dataset[[#This Row],[2025/26 To - Other reallocations]] -> 0 | CD88: =Dataset[[#This Row],[2023/24 Baseline]]+Dataset[[#This Row],[2023/24 From - Total]]+Dataset[[#This Row],[2023/24 To - Total]] -> 0 | CE88: =Dataset[[#This Row],[2024/25 Baseline]]+Dataset[[#This Row],[2024/25 From - Total]]+Dataset[[#This Row],[2024/25 To - Total]] -> 0 | CF88: =Dataset[[#This Row],[2025/26 Baseline]]+Dataset[[#This Row],[2025/26 From - Total]]+Dataset[[#This Row],[2025/26 To - Total]] -> 0
A89: NAT|Non-transfer item | B89: 32|Transport equipment | C89: 2023_24 | D89: MTEF2023 | E89: 32 | F89: 1 | G89: 1 | H89: 57089 | I89: 71 | J89: 32 | K89: 01 | L89: 01 | M89: 057089 | N89: 000071 | O89: 32|01|01 | P89: 2 | Q89: 3 | R89: 12 | S89: 56 | T89: 60 | U89: 02|03|12|56|60 | V89: National | W89: Forestry, Fisheries and the Environment | X89: Administration | Y89: Management | Z89: Non-transfer item | AA89: Capital | AB89: Payments for capital assets | AC89: Machinery and equipment | AD89: Transport equipment | AE89: Transport equipment | AF89: Economic development | AG89: Economic regulation and infrastructure | AH89: NAT | AI89: 0 | AJ89: 0 | AK89: 0 | AL89: 0 | AM89: 0 | AN89: 0 | AO89: 0 | AP89: 0 | AQ89: 0 | AR89: 0 | AS89: 0 | BX89: =Dataset[[#This Row],[2023/24 From - Spending review Topic 1]]+Dataset[[#This Row],[2023/24 From - Spending review Topic 2]]+Dataset[[#This Row],[2023/24 From - Spending review Topic 3]]+Dataset[[#This Row],[2023/24 From - Spending review Topic 4]]+Dataset[[#This Row],[2023/24 From - Other reallocations]] -> 0 | BY89: =Dataset[[#This Row],[2024/25 From - Spending review Topic 1]]+Dataset[[#This Row],[2024/25 From - Spending review Topic 2]]+Dataset[[#This Row],[2024/25 From - Spending review Topic 3]]+Dataset[[#This Row],[2024/25 From - Spending review Topic 4]]+Dataset[[#This Row],[2024/25 From - Other reallocations]] -> 0 | BZ89: =Dataset[[#This Row],[2025/26 From - Spending review Topic 1]]+Dataset[[#This Row],[2025/26 From - Spending review Topic 2]]+Dataset[[#This Row],[2025/26 From - Spending review Topic 3]]+Dataset[[#This Row],[2025/26 From - Spending review Topic 4]]+Dataset[[#This Row],[2025/26 From - Other reallocations]] -> 0 | CA89: =Dataset[[#This Row],[2023/24 To - Spending review Topic 1]]+Dataset[[#This Row],[2023/24 To - Spending review Topic 2]]+Dataset[[#This Row],[2023/24 To - Spending review Topic 3]]+Dataset[[#This Row],[2023/24 To - Spending review Topic 4]]+Dataset[[#This Row],[2023/24 To - Other reallocations]] -> 0 | CB89: =Dataset[[#This Row],[2024/25 To - Spending review Topic 1]]+Dataset[[#This Row],[2024/25 To - Spending review Topic 2]]+Dataset[[#This Row],[2024/25 To - Spending review Topic 3]]+Dataset[[#This Row],[2024/25 To - Spending review Topic 4]]+Dataset[[#This Row],[2024/25 To - Other reallocations]] -> 0 | CC89: =Dataset[[#This Row],[2025/26 To - Spending review Topic 1]]+Dataset[[#This Row],[2025/26 To - Spending review Topic 2]]+Dataset[[#This Row],[2025/26 To - Spending review Topic 3]]+Dataset[[#This Row],[2025/26 To - Spending review Topic 4]]+Dataset[[#This Row],[2025/26 To - Other reallocations]] -> 0 | CD89: =Dataset[[#This Row],[2023/24 Baseline]]+Dataset[[#This Row],[2023/24 From - Total]]+Dataset[[#This Row],[2023/24 To - Total]] -> 0 | CE89: =Dataset[[#This Row],[2024/25 Baseline]]+Dataset[[#This Row],[2024/25 From - Total]]+Dataset[[#This Row],[2024/25 To - Total]] -> 0 | CF89: =Dataset[[#This Row],[2025/26 Baseline]]+Dataset[[#This Row],[2025/26 From - Total]]+Dataset[[#This Row],[2025/26 To - Total]] -> 0
A90: NAT|Non-transfer item | B90: 32|Other machinery and equipment | C90: 2023_24 | D90: MTEF2023 | E90: 32 | F90: 1 | G90: 1 | H90: 57090 | I90: 72 | J90: 32 | K90: 01 | L90: 01 | M90: 057090 | N90: 000072 | O90: 32|01|01 | P90: 2 | Q90: 3 | R90: 12 | S90: 57 | T90: 61 | U90: 02|03|12|57|61 | V90: National | W90: Forestry, Fisheries and the Environment | X90: Administration | Y90: Management | Z90: Non-transfer item | AA90: Capital | AB90: Payments for capital assets | AC90: Machinery and equipment | AD90: Other machinery and equipment | AE90: Other machinery and equipment | AF90: Economic development | AG90: Economic regulation and infrastructure | AH90: NAT | AI90: 445 | AJ90: 508 | AK90: 362 | AL90: 2747 | AM90: 2747 | AN90: 0 | AO90: 0 | AP90: 1725 | AQ90: 1832 | AR90: 3168 | AS90: 3310 | BX90: =Dataset[[#This Row],[2023/24 From - Spending review Topic 1]]+Dataset[[#This Row],[2023/24 From - Spending review Topic 2]]+Dataset[[#This Row],[2023/24 From - Spending review Topic 3]]+Dataset[[#This Row],[2023/24 From - Spending review Topic 4]]+Dataset[[#This Row],[2023/24 From - Other reallocations]] -> 0 | BY90: =Dataset[[#This Row],[2024/25 From - Spending review Topic 1]]+Dataset[[#This Row],[2024/25 From - Spending review Topic 2]]+Dataset[[#This Row],[2024/25 From - Spending review Topic 3]]+Dataset[[#This Row],[2024/25 From - Spending review Topic 4]]+Dataset[[#This Row],[2024/25 From - Other reallocations]] -> 0 | BZ90: =Dataset[[#This Row],[2025/26 From - Spending review Topic 1]]+Dataset[[#This Row],[2025/26 From - Spending review Topic 2]]+Dataset[[#This Row],[2025/26 From - Spending review Topic 3]]+Dataset[[#This Row],[2025/26 From - Spending review Topic 4]]+Dataset[[#This Row],[2025/26 From - Other reallocations]] -> 0 | CA90: =Dataset[[#This Row],[2023/24 To - Spending review Topic 1]]+Dataset[[#This Row],[2023/24 To - Spending review Topic 2]]+Dataset[[#This Row],[2023/24 To - Spending review Topic 3]]+Dataset[[#This Row],[2023/24 To - Spending review Topic 4]]+Dataset[[#This Row],[2023/24 To - Other reallocations]] -> 0 | CB90: =Dataset[[#This Row],[2024/25 To - Spending review Topic 1]]+Dataset[[#This Row],[2024/25 To - Spending review Topic 2]]+Dataset[[#This Row],[2024/25 To - Spending review Topic 3]]+Dataset[[#This Row],[2024/25 To - Spending review Topic 4]]+Dataset[[#This Row],[2024/25 To - Other reallocations]] -> 0 | CC90: =Dataset[[#This Row],[2025/26 To - Spending review Topic 1]]+Dataset[[#This Row],[2025/26 To - Spending review Topic 2]]+Dataset[[#This Row],[2025/26 To - Spending review Topic 3]]+Dataset[[#This Row],[2025/26 To - Spending review Topic 4]]+Dataset[[#This Row],[2025/26 To - Other reallocations]] -> 0 | CD90: =Dataset[[#This Row],[2023/24 Baseline]]+Dataset[[#This Row],[2023/24 From - Total]]+Dataset[[#This Row],[2023/24 To - Total]] -> 1832 | CE90: =Dataset[[#This Row],[2024/25 Baseline]]+Dataset[[#This Row],[2024/25 From - Total]]+Dataset[[#This Row],[2024/25 To - Total]] -> 3168 | CF90: =Dataset[[#This Row],[2025/26 Baseline]]+Dataset[[#This Row],[2025/26 From - Total]]+Dataset[[#This Row],[2025/26 To - Total]] -> 3310
A91: NAT|Non-transfer item | B91: 32|Heritage assets | C91: 2023_24 | D91: MTEF2023 | E91: 32 | F91: 1 | G91: 1 | H91: 57091 | I91: 73 | J91: 32 | K91: 01 | L91: 01 | M91: 057091 | N91: 000073 | O91: 32|01|01 | P91: 2 | Q91: 3 | R91: 13 | S91: 58 | T91: 62 | U91: 02|03|13|58|62 | V91: National | W91: Forestry, Fisheries and the Environment | X91: Administration | Y91: Management | Z91: Non-transfer item | AA91: Capital | AB91: Payments for capital assets | AC91: Heritage assets | AD91: Heritage assets | AE91: Heritage assets | AF91: Economic development | AG91: Economic regulation and infrastructure | AH91: NAT | AI91: 0 | AJ91: 0 | AK91: 0 | AL91: 0 | AM91: 0 | AN91: 0 | AO91: 0 | AP91: 0 | AQ91: 0 | AR91: 0 | AS91: 0 | BX91: =Dataset[[#This Row],[2023/24 From - Spending review Topic 1]]+Dataset[[#This Row],[2023/24 From - Spending review Topic 2]]+Dataset[[#This Row],[2023/24 From - Spending review Topic 3]]+Dataset[[#This Row],[2023/24 From - Spending review Topic 4]]+Dataset[[#This Row],[2023/24 From - Other reallocations]] -> 0 | BY91: =Dataset[[#This Row],[2024/25 From - Spending review Topic 1]]+Dataset[[#This Row],[2024/25 From - Spending review Topic 2]]+Dataset[[#This Row],[2024/25 From - Spending review Topic 3]]+Dataset[[#This Row],[2024/25 From - Spending review Topic 4]]+Dataset[[#This Row],[2024/25 From - Other reallocations]] -> 0 | BZ91: =Dataset[[#This Row],[2025/26 From - Spending review Topic 1]]+Dataset[[#This Row],[2025/26 From - Spending review Topic 2]]+Dataset[[#This Row],[2025/26 From - Spending review Topic 3]]+Dataset[[#This Row],[2025/26 From - Spending review Topic 4]]+Dataset[[#This Row],[2025/26 From - Other reallocations]] -> 0 | CA91: =Dataset[[#This Row],[2023/24 To - Spending review Topic 1]]+Dataset[[#This Row],[2023/24 To - Spending review Topic 2]]+Dataset[[#This Row],[2023/24 To - Spending review Topic 3]]+Dataset[[#This Row],[2023/24 To - Spending review Topic 4]]+Dataset[[#This Row],[2023/24 To - Other reallocations]] -> 0 | CB91: =Dataset[[#This Row],[2024/25 To - Spending review Topic 1]]+Dataset[[#This Row],[2024/25 To - Spending review Topic 2]]+Dataset[[#This Row],[2024/25 To - Spending review Topic 3]]+Dataset[[#This Row],[2024/25 To - Spending review Topic 4]]+Dataset[[#This Row],[2024/25 To - Other reallocations]] -> 0 | CC91: =Dataset[[#This Row],[2025/26 To - Spending review Topic 1]]+Dataset[[#This Row],[2025/26 To - Spending review Topic 2]]+Dataset[[#This Row],[2025/26 To - Spending review Topic 3]]+Dataset[[#This Row],[2025/26 To - Spending review Topic 4]]+Dataset[[#This Row],[2025/26 To - Other reallocations]] -> 0 | CD91: =Dataset[[#This Row],[2023/24 Baseline]]+Dataset[[#This Row],[2023/24 From - Total]]+Dataset[[#This Row],[2023/24 To - Total]] -> 0 | CE91: =Dataset[[#This Row],[2024/25 Baseline]]+Dataset[[#This Row],[2024/25 From - Total]]+Dataset[[#This Row],[2024/25 To - Total]] -> 0 | CF91: =Dataset[[#This Row],[2025/26 Baseline]]+Dataset[[#This Row],[2025/26 From - Total]]+Dataset[[#This Row],[2025/26 To - Total]] -> 0
A92: NAT|Non-transfer item | B92: 32|Specialised military assets | C92: 2023_24 | D92: MTEF2023 | E92: 32 | F92: 1 | G92: 1 | H92: 57092 | I92: 74 | J92: 32 | K92: 01 | L92: 01 | M92: 057092 | N92: 000074 | O92: 32|01|01 | P92: 2 | Q92: 3 | R92: 14 | S92: 59 | T92: 63 | U92: 02|03|14|59|63 | V92: National | W92: Forestry, Fisheries and the Environment | X92: Administration | Y92: Management | Z92: Non-transfer item | AA92: Capital | AB92: Payments for capital assets | AC92: Specialised military assets | AD92: Specialised military assets | AE92: Specialised military assets | AF92: Economic development | AG92: Economic regulation and infrastructure | AH92: NAT | AI92: 0 | AJ92: 0 | AK92: 0 | AL92: 0 | AM92: 0 | AN92: 0 | AO92: 0 | AP92: 0 | AQ92: 0 | AR92: 0 | AS92: 0 | BX92: =Dataset[[#This Row],[2023/24 From - Spending review Topic 1]]+Dataset[[#This Row],[2023/24 From - Spending review Topic 2]]+Dataset[[#This Row],[2023/24 From - Spending review Topic 3]]+Dataset[[#This Row],[2023/24 From - Spending review Topic 4]]+Dataset[[#This Row],[2023/24 From - Other reallocations]] -> 0 | BY92: =Dataset[[#This Row],[2024/25 From - Spending review Topic 1]]+Dataset[[#This Row],[2024/25 From - Spending review Topic 2]]+Dataset[[#This Row],[2024/25 From - Spending review Topic 3]]+Dataset[[#This Row],[2024/25 From - Spending review Topic 4]]+Dataset[[#This Row],[2024/25 From - Other reallocations]] -> 0 | BZ92: =Dataset[[#This Row],[2025/26 From - Spending review Topic 1]]+Dataset[[#This Row],[2025/26 From - Spending review Topic 2]]+Dataset[[#This Row],[2025/26 From - Spending review Topic 3]]+Dataset[[#This Row],[2025/26 From - Spending review Topic 4]]+Dataset[[#This Row],[2025/26 From - Other reallocations]] -> 0 | CA92: =Dataset[[#This Row],[2023/24 To - Spending review Topic 1]]+Dataset[[#This Row],[2023/24 To - Spending review Topic 2]]+Dataset[[#This Row],[2023/24 To - Spending review Topic 3]]+Dataset[[#This Row],[2023/24 To - Spending review Topic 4]]+Dataset[[#This Row],[2023/24 To - Other reallocations]] -> 0 | CB92: =Dataset[[#This Row],[2024/25 To - Spending review Topic 1]]+Dataset[[#This Row],[2024/25 To - Spending review Topic 2]]+Dataset[[#This Row],[2024/25 To - Spending review Topic 3]]+Dataset[[#This Row],[2024/25 To - Spending review Topic 4]]+Dataset[[#This Row],[2024/25 To - Other reallocations]] -> 0 | CC92: =Dataset[[#This Row],[2025/26 To - Spending review Topic 1]]+Dataset[[#This Row],[2025/26 To - Spending review Topic 2]]+Dataset[[#This Row],[2025/26 To - Spending review Topic 3]]+Dataset[[#This Row],[2025/26 To - Spending review Topic 4]]+Dataset[[#This Row],[2025/26 To - Other reallocations]] -> 0 | CD92: =Dataset[[#This Row],[2023/24 Baseline]]+Dataset[[#This Row],[2023/24 From - Total]]+Dataset[[#This Row],[2023/24 To - Total]] -> 0 | CE92: =Dataset[[#This Row],[2024/25 Baseline]]+Dataset[[#This Row],[2024/25 From - Total]]+Dataset[[#This Row],[2024/25 To - Total]] -> 0 | CF92: =Dataset[[#This Row],[2025/26 Baseline]]+Dataset[[#This Row],[2025/26 From - Total]]+Dataset[[#This Row],[2025/26 To - Total]] -> 0
A93: NAT|Non-transfer item | B93: 32|Biological assets | C93: 2023_24 | D93: MTEF2023 | E93: 32 | F93: 1 | G93: 1 | H93: 57093 | I93: 75 | J93: 32 | K93: 01 | L93: 01 | M93: 057093 | N93: 000075 | O93: 32|01|01 | P93: 2 | Q93: 3 | R93: 15 | S93: 60 | T93: 64 | U93: 02|03|15|60|64 | V93: National | W93: Forestry, Fisheries and the Environment | X93: Administration | Y93: Management | Z93: Non-transfer item | AA93: Capital | AB93: Payments for capital assets | AC93: Biological assets | AD93: Biological assets | AE93: Biological assets | AF93: Economic development | AG93: Economic regulation and infrastructure | AH93: NAT | AI93: 0 | AJ93: 0 | AK93: 0 | AL93: 0 | AM93: 0 | AN93: 0 | AO93: 0 | AP93: 0 | AQ93: 0 | AR93: 0 | AS93: 0 | BX93: =Dataset[[#This Row],[2023/24 From - Spending review Topic 1]]+Dataset[[#This Row],[2023/24 From - Spending review Topic 2]]+Dataset[[#This Row],[2023/24 From - Spending review Topic 3]]+Dataset[[#This Row],[2023/24 From - Spending review Topic 4]]+Dataset[[#This Row],[2023/24 From - Other reallocations]] -> 0 | BY93: =Dataset[[#This Row],[2024/25 From - Spending review Topic 1]]+Dataset[[#This Row],[2024/25 From - Spending review Topic 2]]+Dataset[[#This Row],[2024/25 From - Spending review Topic 3]]+Dataset[[#This Row],[2024/25 From - Spending review Topic 4]]+Dataset[[#This Row],[2024/25 From - Other reallocations]] -> 0 | BZ93: =Dataset[[#This Row],[2025/26 From - Spending review Topic 1]]+Dataset[[#This Row],[2025/26 From - Spending review Topic 2]]+Dataset[[#This Row],[2025/26 From - Spending review Topic 3]]+Dataset[[#This Row],[2025/26 From - Spending review Topic 4]]+Dataset[[#This Row],[2025/26 From - Other reallocations]] -> 0 | CA93: =Dataset[[#This Row],[2023/24 To - Spending review Topic 1]]+Dataset[[#This Row],[2023/24 To - Spending review Topic 2]]+Dataset[[#This Row],[2023/24 To - Spending review Topic 3]]+Dataset[[#This Row],[2023/24 To - Spending review Topic 4]]+Dataset[[#This Row],[2023/24 To - Other reallocations]] -> 0 | CB93: =Dataset[[#This Row],[2024/25 To - Spending review Topic 1]]+Dataset[[#This Row],[2024/25 To - Spending review Topic 2]]+Dataset[[#This Row],[2024/25 To - Spending review Topic 3]]+Dataset[[#This Row],[2024/25 To - Spending review Topic 4]]+Dataset[[#This Row],[2024/25 To - Other reallocations]] -> 0 | CC93: =Dataset[[#This Row],[2025/26 To - Spending review Topic 1]]+Dataset[[#This Row],[2025/26 To - Spending review Topic 2]]+Dataset[[#This Row],[2025/26 To - Spending review Topic 3]]+Dataset[[#This Row],[2025/26 To - Spending review Topic 4]]+Dataset[[#This Row],[2025/26 To - Other reallocations]] -> 0 | CD93: =Dataset[[#This Row],[2023/24 Baseline]]+Dataset[[#This Row],[2023/24 From - Total]]+Dataset[[#This Row],[2023/24 To - Total]] -> 0 | CE93: =Dataset[[#This Row],[2024/25 Baseline]]+Dataset[[#This Row],[2024/25 From - Total]]+Dataset[[#This Row],[2024/25 To - Total]] -> 0 | CF93: =Dataset[[#This Row],[2025/26 Baseline]]+Dataset[[#This Row],[2025/26 From - Total]]+Dataset[[#This Row],[2025/26 To - Total]] -> 0
A94: NAT|Non-transfer item | B94: 32|Land and sub-soil assets | C94: 2023_24 | D94: MTEF2023 | E94: 32 | F94: 1 | G94: 1 | H94: 57094 | I94: 76 | J94: 32 | K94: 01 | L94: 01 | M94: 057094 | N94: 000076 | O94: 32|01|01 | P94: 2 | Q94: 3 | R94: 16 | S94: 61 | T94: 65 | U94: 02|03|16|61|65 | V94: National | W94: Forestry, Fisheries and the Environment | X94: Administration | Y94: Management | Z94: Non-transfer item | AA94: Capital | AB94: Payments for capital assets | AC94: Land and sub-soil assets | AD94: Land and sub-soil assets | AE94: Land and sub-soil assets | AF94: Economic development | AG94: Economic regulation and infrastructure | AH94: NAT | AI94: 0 | AJ94: 0 | AK94: 0 | AL94: 0 | AM94: 0 | AN94: 0 | AO94: 0 | AP94: 0 | AQ94: 0 | AR94: 0 | AS94: 0 | BX94: =Dataset[[#This Row],[2023/24 From - Spending review Topic 1]]+Dataset[[#This Row],[2023/24 From - Spending review Topic 2]]+Dataset[[#This Row],[2023/24 From - Spending review Topic 3]]+Dataset[[#This Row],[2023/24 From - Spending review Topic 4]]+Dataset[[#This Row],[2023/24 From - Other reallocations]] -> 0 | BY94: =Dataset[[#This Row],[2024/25 From - Spending review Topic 1]]+Dataset[[#This Row],[2024/25 From - Spending review Topic 2]]+Dataset[[#This Row],[2024/25 From - Spending review Topic 3]]+Dataset[[#This Row],[2024/25 From - Spending review Topic 4]]+Dataset[[#This Row],[2024/25 From - Other reallocations]] -> 0 | BZ94: =Dataset[[#This Row],[2025/26 From - Spending review Topic 1]]+Dataset[[#This Row],[2025/26 From - Spending review Topic 2]]+Dataset[[#This Row],[2025/26 From - Spending review Topic 3]]+Dataset[[#This Row],[2025/26 From - Spending review Topic 4]]+Dataset[[#This Row],[2025/26 From - Other reallocations]] -> 0 | CA94: =Dataset[[#This Row],[2023/24 To - Spending review Topic 1]]+Dataset[[#This Row],[2023/24 To - Spending review Topic 2]]+Dataset[[#This Row],[2023/24 To - Spending review Topic 3]]+Dataset[[#This Row],[2023/24 To - Spending review Topic 4]]+Dataset[[#This Row],[2023/24 To - Other reallocations]] -> 0 | CB94: =Dataset[[#This Row],[2024/25 To - Spending review Topic 1]]+Dataset[[#This Row],[2024/25 To - Spending review Topic 2]]+Dataset[[#This Row],[2024/25 To - Spending review Topic 3]]+Dataset[[#This Row],[2024/25 To - Spending review Topic 4]]+Dataset[[#This Row],[2024/25 To - Other reallocations]] -> 0 | CC94: =Dataset[[#This Row],[2025/26 To - Spending review Topic 1]]+Dataset[[#This Row],[2025/26 To - Spending review Topic 2]]+Dataset[[#This Row],[2025/26 To - Spending review Topic 3]]+Dataset[[#This Row],[2025/26 To - Spending review Topic 4]]+Dataset[[#This Row],[2025/26 To - Other reallocations]] -> 0 | CD94: =Dataset[[#This Row],[2023/24 Baseline]]+Dataset[[#This Row],[2023/24 From - Total]]+Dataset[[#This Row],[2023/24 To - Total]] -> 0 | CE94: =Dataset[[#This Row],[2024/25 Baseline]]+Dataset[[#This Row],[2024/25 From - Total]]+Dataset[[#This Row],[2024/25 To - Total]] -> 0 | CF94: =Dataset[[#This Row],[2025/26 Baseline]]+Dataset[[#This Row],[2025/26 From - Total]]+Dataset[[#This Row],[2025/26 To - Total]] -> 0
A95: NAT|Non-transfer item | B95: 32|Software and other intangible assets | C95: 2023_24 | D95: MTEF2023 | E95: 32 | F95: 1 | G95: 1 | H95: 57095 | I95: 77 | J95: 32 | K95: 01 | L95: 01 | M95: 057095 | N95: 000077 | O95: 32|01|01 | P95: 2 | Q95: 3 | R95: 17 | S95: 62 | T95: 66 | U95: 02|03|17|62|66 | V95: National | W95: Forestry, Fisheries and the Environment | X95: Administration | Y95: Management | Z95: Non-transfer item | AA95: Capital | AB95: Payments for capital assets | AC95: Software and other intangible assets | AD95: Software and other intangible assets | AE95: Software and other intangible assets | AF95: Economic development | AG95: Economic regulation and infrastructure | AH95: NAT | AI95: 0 | AJ95: 0 | AK95: 0 | AL95: 0 | AM95: 0 | AN95: 0 | AO95: 0 | AP95: 50 | AQ95: 0 | AR95: 0 | AS95: 0 | BX95: =Dataset[[#This Row],[2023/24 From - Spending review Topic 1]]+Dataset[[#This Row],[2023/24 From - Spending review Topic 2]]+Dataset[[#This Row],[2023/24 From - Spending review Topic 3]]+Dataset[[#This Row],[2023/24 From - Spending review Topic 4]]+Dataset[[#This Row],[2023/24 From - Other reallocations]] -> 0 | BY95: =Dataset[[#This Row],[2024/25 From - Spending review Topic 1]]+Dataset[[#This Row],[2024/25 From - Spending review Topic 2]]+Dataset[[#This Row],[2024/25 From - Spending review Topic 3]]+Dataset[[#This Row],[2024/25 From - Spending review Topic 4]]+Dataset[[#This Row],[2024/25 From - Other reallocations]] -> 0 | BZ95: =Dataset[[#This Row],[2025/26 From - Spending review Topic 1]]+Dataset[[#This Row],[2025/26 From - Spending review Topic 2]]+Dataset[[#This Row],[2025/26 From - Spending review Topic 3]]+Dataset[[#This Row],[2025/26 From - Spending review Topic 4]]+Dataset[[#This Row],[2025/26 From - Other reallocations]] -> 0 | CA95: =Dataset[[#This Row],[2023/24 To - Spending review Topic 1]]+Dataset[[#This Row],[2023/24 To - Spending review Topic 2]]+Dataset[[#This Row],[2023/24 To - Spending review Topic 3]]+Dataset[[#This Row],[2023/24 To - Spending review Topic 4]]+Dataset[[#This Row],[2023/24 To - Other reallocations]] -> 0 | CB95: =Dataset[[#This Row],[2024/25 To - Spending review Topic 1]]+Dataset[[#This Row],[2024/25 To - Spending review Topic 2]]+Dataset[[#This Row],[2024/25 To - Spending review Topic 3]]+Dataset[[#This Row],[2024/25 To - Spending review Topic 4]]+Dataset[[#This Row],[2024/25 To - Other reallocations]] -> 0 | CC95: =Dataset[[#This Row],[2025/26 To - Spending review Topic 1]]+Dataset[[#This Row],[2025/26 To - Spending review Topic 2]]+Dataset[[#This Row],[2025/26 To - Spending review Topic 3]]+Dataset[[#This Row],[2025/26 To - Spending review Topic 4]]+Dataset[[#This Row],[2025/26 To - Other reallocations]] -> 0 | CD95: =Dataset[[#This Row],[2023/24 Baseline]]+Dataset[[#This Row],[2023/24 From - Total]]+Dataset[[#This Row],[2023/24 To - Total]] -> 0 | CE95: =Dataset[[#This Row],[2024/25 Baseline]]+Dataset[[#This Row],[2024/25 From - Total]]+Dataset[[#This Row],[2024/25 To - Total]] -> 0 | CF95: =Dataset[[#This Row],[2025/26 Baseline]]+Dataset[[#This Row],[2025/26 From - Total]]+Dataset[[#This Row],[2025/26 To - Total]] -> 0
A96: NAT|Non-transfer item | B96: 32|Payments for financial assets | C96: 2023_24 | D96: MTEF2023 | E96: 32 | F96: 1 | G96: 1 | H96: 57096 | I96: 78 | J96: 32 | K96: 01 | L96: 01 | M96: 057096 | N96: 000078 | O96: 32|01|01 | P96: 3 | Q96: 4 | R96: 18 | S96: 63 | T96: 67 | U96: 03|04|18|63|67 | V96: National | W96: Forestry, Fisheries and the Environment | X96: Administration | Y96: Management | Z96: Non-transfer item | AA96: Payments for financial assets | AB96: Payments for financial assets | AC96: Payments for financial assets | AD96: Payments for financial assets | AE96: Payments for financial assets | AF96: Economic development | AG96: Economic regulation and infrastructure | AH96: NAT | AI96: 0 | AJ96: 0 | AK96: 0 | AL96: 0 | AM96: 0 | AN96: 0 | AO96: 0 | AP96: 0 | AQ96: 0 | AR96: 0 | AS96: 0 | BX96: =Dataset[[#This Row],[2023/24 From - Spending review Topic 1]]+Dataset[[#This Row],[2023/24 From - Spending review Topic 2]]+Dataset[[#This Row],[2023/24 From - Spending review Topic 3]]+Dataset[[#This Row],[2023/24 From - Spending review Topic 4]]+Dataset[[#This Row],[2023/24 From - Other reallocations]] -> 0 | BY96: =Dataset[[#This Row],[2024/25 From - Spending review Topic 1]]+Dataset[[#This Row],[2024/25 From - Spending review Topic 2]]+Dataset[[#This Row],[2024/25 From - Spending review Topic 3]]+Dataset[[#This Row],[2024/25 From - Spending review Topic 4]]+Dataset[[#This Row],[2024/25 From - Other reallocations]] -> 0 | BZ96: =Dataset[[#This Row],[2025/26 From - Spending review Topic 1]]+Dataset[[#This Row],[2025/26 From - Spending review Topic 2]]+Dataset[[#This Row],[2025/26 From - Spending review Topic 3]]+Dataset[[#This Row],[2025/26 From - Spending review Topic 4]]+Dataset[[#This Row],[2025/26 From - Other reallocations]] -> 0 | CA96: =Dataset[[#This Row],[2023/24 To - Spending review Topic 1]]+Dataset[[#This Row],[2023/24 To - Spending review Topic 2]]+Dataset[[#This Row],[2023/24 To - Spending review Topic 3]]+Dataset[[#This Row],[2023/24 To - Spending review Topic 4]]+Dataset[[#This Row],[2023/24 To - Other reallocations]] -> 0 | CB96: =Dataset[[#This Row],[2024/25 To - Spending review Topic 1]]+Dataset[[#This Row],[2024/25 To - Spending review Topic 2]]+Dataset[[#This Row],[2024/25 To - Spending review Topic 3]]+Dataset[[#This Row],[2024/25 To - Spending review Topic 4]]+Dataset[[#This Row],[2024/25 To - Other reallocations]] -> 0 | CC96: =Dataset[[#This Row],[2025/26 To - Spending review Topic 1]]+Dataset[[#This Row],[2025/26 To - Spending review Topic 2]]+Dataset[[#This Row],[2025/26 To - Spending review Topic 3]]+Dataset[[#This Row],[2025/26 To - Spending review Topic 4]]+Dataset[[#This Row],[2025/26 To - Other reallocations]] -> 0 | CD96: =Dataset[[#This Row],[2023/24 Baseline]]+Dataset[[#This Row],[2023/24 From - Total]]+Dataset[[#This Row],[2023/24 To - Total]] -> 0 | CE96: =Dataset[[#This Row],[2024/25 Baseline]]+Dataset[[#This Row],[2024/25 From - Total]]+Dataset[[#This Row],[2024/25 To - Total]] -> 0 | CF96: =Dataset[[#This Row],[2025/26 Baseline]]+Dataset[[#This Row],[2025/26 From - Total]]+Dataset[[#This Row],[2025/26 To - Total]] -> 0
A97: NAT|Non-transfer item | B97: 32|Salaries and wages | C97: 2023_24 | D97: MTEF2023 | E97: 32 | F97: 1 | G97: 2 | H97: 57097 | I97: 79 | J97: 32 | K97: 01 | L97: 02 | M97: 057097 | N97: 000079 | O97: 32|01|02 | P97: 1 | Q97: 1 | R97: 1 | S97: 1 | T97: 1 | U97: 01|01|01|01|01 | V97: National | W97: Forestry, Fisheries and the Environment | X97: Administration | Y97: Corporate Management Services | Z97: Non-transfer item | AA97: Current | AB97: Current payments | AC97: Compensation of employees | AD97: Salaries and wages | AE97: Salaries and wages | AF97: Economic development | AG97: Economic regulation and infrastructure | AH97: NAT | AI97: 301279 | AJ97: 257596 | AK97: 229143 | AL97: 148997 | AM97: 178997 | AN97: 236354 | AO97: 0 | AP97: 290971 | AQ97: 282919 | AR97: 296080 | AS97: 309344 | BX97: =Dataset[[#This Row],[2023/24 From - Spending review Topic 1]]+Dataset[[#This Row],[2023/24 From - Spending review Topic 2]]+Dataset[[#This Row],[2023/24 From - Spending review Topic 3]]+Dataset[[#This Row],[2023/24 From - Spending review Topic 4]]+Dataset[[#This Row],[2023/24 From - Other reallocations]] -> 0 | BY97: =Dataset[[#This Row],[2024/25 From - Spending review Topic 1]]+Dataset[[#This Row],[2024/25 From - Spending review Topic 2]]+Dataset[[#This Row],[2024/25 From - Spending review Topic 3]]+Dataset[[#This Row],[2024/25 From - Spending review Topic 4]]+Dataset[[#This Row],[2024/25 From - Other reallocations]] -> 0 | BZ97: =Dataset[[#This Row],[2025/26 From - Spending review Topic 1]]+Dataset[[#This Row],[2025/26 From - Spending review Topic 2]]+Dataset[[#This Row],[2025/26 From - Spending review Topic 3]]+Dataset[[#This Row],[2025/26 From - Spending review Topic 4]]+Dataset[[#This Row],[2025/26 From - Other reallocations]] -> 0 | CA97: =Dataset[[#This Row],[2023/24 To - Spending review Topic 1]]+Dataset[[#This Row],[2023/24 To - Spending review Topic 2]]+Dataset[[#This Row],[2023/24 To - Spending review Topic 3]]+Dataset[[#This Row],[2023/24 To - Spending review Topic 4]]+Dataset[[#This Row],[2023/24 To - Other reallocations]] -> 0 | CB97: =Dataset[[#This Row],[2024/25 To - Spending review Topic 1]]+Dataset[[#This Row],[2024/25 To - Spending review Topic 2]]+Dataset[[#This Row],[2024/25 To - Spending review Topic 3]]+Dataset[[#This Row],[2024/25 To - Spending review Topic 4]]+Dataset[[#This Row],[2024/25 To - Other reallocations]] -> 0 | CC97: =Dataset[[#This Row],[2025/26 To - Spending review Topic 1]]+Dataset[[#This Row],[2025/26 To - Spending review Topic 2]]+Dataset[[#This Row],[2025/26 To - Spending review Topic 3]]+Dataset[[#This Row],[2025/26 To - Spending review Topic 4]]+Dataset[[#This Row],[2025/26 To - Other reallocations]] -> 0 | CD97: =Dataset[[#This Row],[2023/24 Baseline]]+Dataset[[#This Row],[2023/24 From - Total]]+Dataset[[#This Row],[2023/24 To - Total]] -> 282919 | CE97: =Dataset[[#This Row],[2024/25 Baseline]]+Dataset[[#This Row],[2024/25 From - Total]]+Dataset[[#This Row],[2024/25 To - Total]] -> 296080 | CF97: =Dataset[[#This Row],[2025/26 Baseline]]+Dataset[[#This Row],[2025/26 From - Total]]+Dataset[[#This Row],[2025/26 To - Total]] -> 309344
A98: NAT|Non-transfer item | B98: 32|Social contributions | C98: 2023_24 | D98: MTEF2023 | E98: 32 | F98: 1 | G98: 2 | H98: 57098 | I98: 80 | J98: 32 | K98: 01 | L98: 02 | M98: 057098 | N98: 000080 | O98: 32|01|02 | P98: 1 | Q98: 1 | R98: 1 | S98: 2 | T98: 2 | U98: 01|01|01|02|02 | V98: National | W98: Forestry, Fisheries and the Environment | X98: Administration | Y98: Corporate Management Services | Z98: Non-transfer item | AA98: Current | AB98: Current payments | AC98: Compensation of employees | AD98: Social contributions | AE98: Social contributions | AF98: Economic development | AG98: Economic regulation and infrastructure | AH98: NAT | AI98: 31796 | AJ98: 28016 | AK98: 25529 | AL98: 21631 | AM98: 21631 | AN98: 23192 | AO98: 0 | AP98: 22458 | AQ98: 22498 | AR98: 23283 | AS98: 24326 | BX98: =Dataset[[#This Row],[2023/24 From - Spending review Topic 1]]+Dataset[[#This Row],[2023/24 From - Spending review Topic 2]]+Dataset[[#This Row],[2023/24 From - Spending review Topic 3]]+Dataset[[#This Row],[2023/24 From - Spending review Topic 4]]+Dataset[[#This Row],[2023/24 From - Other reallocations]] -> 0 | BY98: =Dataset[[#This Row],[2024/25 From - Spending review Topic 1]]+Dataset[[#This Row],[2024/25 From - Spending review Topic 2]]+Dataset[[#This Row],[2024/25 From - Spending review Topic 3]]+Dataset[[#This Row],[2024/25 From - Spending review Topic 4]]+Dataset[[#This Row],[2024/25 From - Other reallocations]] -> 0 | BZ98: =Dataset[[#This Row],[2025/26 From - Spending review Topic 1]]+Dataset[[#This Row],[2025/26 From - Spending review Topic 2]]+Dataset[[#This Row],[2025/26 From - Spending review Topic 3]]+Dataset[[#This Row],[2025/26 From - Spending review Topic 4]]+Dataset[[#This Row],[2025/26 From - Other reallocations]] -> 0 | CA98: =Dataset[[#This Row],[2023/24 To - Spending review Topic 1]]+Dataset[[#This Row],[2023/24 To - Spending review Topic 2]]+Dataset[[#This Row],[2023/24 To - Spending review Topic 3]]+Dataset[[#This Row],[2023/24 To - Spending review Topic 4]]+Dataset[[#This Row],[2023/24 To - Other reallocations]] -> 0 | CB98: =Dataset[[#This Row],[2024/25 To - Spending review Topic 1]]+Dataset[[#This Row],[2024/25 To - Spending review Topic 2]]+Dataset[[#This Row],[2024/25 To - Spending review Topic 3]]+Dataset[[#This Row],[2024/25 To - Spending review Topic 4]]+Dataset[[#This Row],[2024/25 To - Other reallocations]] -> 0 | CC98: =Dataset[[#This Row],[2025/26 To - Spending review Topic 1]]+Dataset[[#This Row],[2025/26 To - Spending review Topic 2]]+Dataset[[#This Row],[2025/26 To - Spending review Topic 3]]+Dataset[[#This Row],[2025/26 To - Spending review Topic 4]]+Dataset[[#This Row],[2025/26 To - Other reallocations]] -> 0 | CD98: =Dataset[[#This Row],[2023/24 Baseline]]+Dataset[[#This Row],[2023/24 From - Total]]+Dataset[[#This Row],[2023/24 To - Total]] -> 22498 | CE98: =Dataset[[#This Row],[2024/25 Baseline]]+Dataset[[#This Row],[2024/25 From - Total]]+Dataset[[#This Row],[2024/25 To - Total]] -> 23283 | CF98: =Dataset[[#This Row],[2025/26 Baseline]]+Dataset[[#This Row],[2025/26 From - Total]]+Dataset[[#This Row],[2025/26 To - Total]] -> 24326
A99: NAT|Non-transfer item | B99: 32|Administrative fees | C99: 2023_24 | D99: MTEF2023 | E99: 32 | F99: 1 | G99: 2 | H99: 57099 | I99: 81 | J99: 32 | K99: 01 | L99: 02 | M99: 057099 | N99: 000081 | O99: 32|01|02 | P99: 1 | Q99: 1 | R99: 2 | S99: 3 | T99: 3 | U99: 01|01|02|03|03 | V99: National | W99: Forestry, Fisheries and the Environment | X99: Administration | Y99: Corporate Management Services | Z99: Non-transfer item | AA99: Current | AB99: Current payments | AC99: Goods and services | AD99: Administrative fees | AE99: Administrative fees | AF99: Economic development | AG99: Economic regulation and infrastructure | AH99: NAT | AI99: 10036 | AJ99: 9899 | AK99: 3646 | AL99: 7438 | AM99: 7438 | AN99: 7438 | AO99: 0 | AP99: 540 | AQ99: 625 | AR99: 976 | AS99: 1020 | BX99: =Dataset[[#This Row],[2023/24 From - Spending review Topic 1]]+Dataset[[#This Row],[2023/24 From - Spending review Topic 2]]+Dataset[[#This Row],[2023/24 From - Spending review Topic 3]]+Dataset[[#This Row],[2023/24 From - Spending review Topic 4]]+Dataset[[#This Row],[2023/24 From - Other reallocations]] -> 0 | BY99: =Dataset[[#This Row],[2024/25 From - Spending review Topic 1]]+Dataset[[#This Row],[2024/25 From - Spending review Topic 2]]+Dataset[[#This Row],[2024/25 From - Spending review Topic 3]]+Dataset[[#This Row],[2024/25 From - Spending review Topic 4]]+Dataset[[#This Row],[2024/25 From - Other reallocations]] -> 0 | BZ99: =Dataset[[#This Row],[2025/26 From - Spending review Topic 1]]+Dataset[[#This Row],[2025/26 From - Spending review Topic 2]]+Dataset[[#This Row],[2025/26 From - Spending review Topic 3]]+Dataset[[#This Row],[2025/26 From - Spending review Topic 4]]+Dataset[[#This Row],[2025/26 From - Other reallocations]] -> 0 | CA99: =Dataset[[#This Row],[2023/24 To - Spending review Topic 1]]+Dataset[[#This Row],[2023/24 To - Spending review Topic 2]]+Dataset[[#This Row],[2023/24 To - Spending review Topic 3]]+Dataset[[#This Row],[2023/24 To - Spending review Topic 4]]+Dataset[[#This Row],[2023/24 To - Other reallocations]] -> 0 | CB99: =Dataset[[#This Row],[2024/25 To - Spending review Topic 1]]+Dataset[[#This Row],[2024/25 To - Spending review Topic 2]]+Dataset[[#This Row],[2024/25 To - Spending review Topic 3]]+Dataset[[#This Row],[2024/25 To - Spending review Topic 4]]+Dataset[[#This Row],[2024/25 To - Other reallocations]] -> 0 | CC99: =Dataset[[#This Row],[2025/26 To - Spending review Topic 1]]+Dataset[[#This Row],[2025/26 To - Spending review Topic 2]]+Dataset[[#This Row],[2025/26 To - Spending review Topic 3]]+Dataset[[#This Row],[2025/26 To - Spending review Topic 4]]+Dataset[[#This Row],[2025/26 To - Other reallocations]] -> 0 | CD99: =Dataset[[#This Row],[2023/24 Baseline]]+Dataset[[#This Row],[2023/24 From - Total]]+Dataset[[#This Row],[2023/24 To - Total]] -> 625 | CE99: =Dataset[[#This Row],[2024/25 Baseline]]+Dataset[[#This Row],[2024/25 From - Total]]+Dataset[[#This Row],[2024/25 To - Total]] -> 976 | CF99: =Dataset[[#This Row],[2025/26 Baseline]]+Dataset[[#This Row],[2025/26 From - Total]]+Dataset[[#This Row],[2025/26 To - Total]] -> 1020
A100: NAT|Non-transfer item | B100: 32|Advertising | C100: 2023_24 | D100: MTEF2023 | E100: 32 | F100: 1 | G100: 2 | H100: 57100 | I100: 82 | J100: 32 | K100: 01 | L100: 02 | M100: 057100 | N100: 000082 | O100: 32|01|02 | P100: 1 | Q100: 1 | R100: 2 | S100: 4 | T100: 4 | U100: 01|01|02|04|04 | V100: National | W100: Forestry, Fisheries and the Environment | X100: Administration | Y100: Corporate Management Services | Z100: Non-transfer item | AA100: Current | AB100: Current payments | AC100: Goods and services | AD100: Advertising | AE100: Advertising | AF100: Economic development | AG100: Economic regulation and infrastructure | AH100: NAT | AI100: 35562 | AJ100: 19259 | AK100: 3876 | AL100: 7068 | AM100: 7068 | AN100: 23512 | AO100: 0 | AP100: 37141 | AQ100: 37221 | AR100: 37554 | AS100: 39236 | BX100: =Dataset[[#This Row],[2023/24 From - Spending review Topic 1]]+Dataset[[#This Row],[2023/24 From - Spending review Topic 2]]+Dataset[[#This Row],[2023/24 From - Spending review Topic 3]]+Dataset[[#This Row],[2023/24 From - Spending review Topic 4]]+Dataset[[#This Row],[2023/24 From - Other reallocations]] -> 0 | BY100: =Dataset[[#This Row],[2024/25 From - Spending review Topic 1]]+Dataset[[#This Row],[2024/25 From - Spending review Topic 2]]+Dataset[[#This Row],[2024/25 From - Spending review Topic 3]]+Dataset[[#This Row],[2024/25 From - Spending review Topic 4]]+Dataset[[#This Row],[2024/25 From - Other reallocations]] -> 0 | BZ100: =Dataset[[#This Row],[2025/26 From - Spending review Topic 1]]+Dataset[[#This Row],[2025/26 From - Spending review Topic 2]]+Dataset[[#This Row],[2025/26 From - Spending review Topic 3]]+Dataset[[#This Row],[2025/26 From - Spending review Topic 4]]+Dataset[[#This Row],[2025/26 From - Other reallocations]] -> 0 | CA100: =Dataset[[#This Row],[2023/24 To - Spending review Topic 1]]+Dataset[[#This Row],[2023/24 To - Spending review Topic 2]]+Dataset[[#This Row],[2023/24 To - Spending review Topic 3]]+Dataset[[#This Row],[2023/24 To - Spending review Topic 4]]+Dataset[[#This Row],[2023/24 To - Other reallocations]] -> 0 | CB100: =Dataset[[#This Row],[2024/25 To - Spending review Topic 1]]+Dataset[[#This Row],[2024/25 To - Spending review Topic 2]]+Dataset[[#This Row],[2024/25 To - Spending review Topic 3]]+Dataset[[#This Row],[2024/25 To - Spending review Topic 4]]+Dataset[[#This Row],[2024/25 To - Other reallocations]] -> 0 | CC100: =Dataset[[#This Row],[2025/26 To - Spending review Topic 1]]+Dataset[[#This Row],[2025/26 To - Spending review Topic 2]]+Dataset[[#This Row],[2025/26 To - Spending review Topic 3]]+Dataset[[#This Row],[2025/26 To - Spending review Topic 4]]+Dataset[[#This Row],[2025/26 To - Other reallocations]] -> 0 | CD100: =Dataset[[#This Row],[2023/24 Baseline]]+Dataset[[#This Row],[2023/24 From - Total]]+Dataset[[#This Row],[2023/24 To - Total]] -> 37221 | CE100: =Dataset[[#This Row],[2024/25 Baseline]]+Dataset[[#This Row],[2024/25 From - Total]]+Dataset[[#This Row],[2024/25 To - Total]] -> 37554 | CF100: =Dataset[[#This Row],[2025/26 Baseline]]+Dataset[[#This Row],[2025/26 From - Total]]+Dataset[[#This Row],[2025/26 To - Total]] -> 39236
